Workbook

Sheet 

Sheet Initialize Model
C2: ACC-HUMANsteady 1.0
C9: Click this button to start or reset the model.

Sheet Model Input & Results
B1: Human bioaccumulation model for neutral organic contaminants | K1: =B1 -> Human bioaccumulation model for neutral organic contaminants
B2: G.Czub, E. Arbaban, E. Undeman, J. Armitage, M.S. McLachlan | K2: =B2 -> G.Czub, E. Arbaban, E. Undeman, J. Armitage, M.S. McLachlan
B3: Dept. of Appl. Environ. Sci. (ITM), Stockholm University, SE-106 91 Stockholm | K3: =B3 -> Dept. of Appl. Environ. Sci. (ITM), Stockholm University, SE-106 91 Stockholm
K5: Hypothetical 1
K6: Default Scenario
B19: Human | K19: Cattle
B20: 30 year-old | D20: 30 year-old | L20: Beef Cattle | M20: Milk Cow | N20: Beef | O20: Milk | P20: Dairy Products
B21: Concentration (ng / g body weight) | D21: 5.646694145e-08 | K21: Concentration (ng / g ww) | L21: 1.342498948e-08 | M21: 1.723154426e-08 | N21: 1.342498948e-08 | O21: 6.056093413e-09 | P21: 2.442667558e-08
B22: Concentration (ng / g lipid) | D22: -- | K22: Concentration (ng / g lipid) | L22: 6.102267943e-08 | M22: 7.83252012e-08 | N22: 6.102267943e-08 | O22: 1.211218683e-07 | P22: --
B23: Body burden (g) | D23: 7.114834622e-12 | K23: Fugacity (pPa) | L23: 0.1132424619 | M23: 0.1453515102 | N23: 0.1132424619 | O23: 0.1453515102 | P23: 0.1453515102
B24: Daily intake(ng / kg. d) | D24: 8.619679157e-07 | K24: BAF (Lair / kg ww) | L24: 238.8203893 | M24: 306.5361144
B25: Fugacity (pPa) | D25: 7.404588266 | K25: BAF (Lair / kg lipid) | L25: 1085.547224 | M25: 1393.345974
B26: BAF (Lair / kg body weight) | D26: 1004.504098 | K26: BAF (Pa/Pa) | L26: 0.1132424619 | M26: 0.1453515102
B27: BAF (Lair / kg lipid) | D27: 0 | K27: mmBAF (m2 / organism) | L27: - | M27: -
B28: BAF (Pa/Pa) | D28: 7.404588266 | K28: BMF (g ww / g ww) | L28: 0.3252229918 | M28: 0.339951196
B29: mmBAF (m2 / organism) | D29: - | K29: BMF (Pa / Pa) | L29: 0.1896409109 | M29: 0.2024896989
B30: BMF (kg dietary comp. / kg body weight) | D30: 0.001183627481 | K30: t90 (d) | L30: 2.239573007 | M30: 2.253909116
B31: BMF (Pa / Pa) | D31: 7.421067006
B32: t90 (d) | D32: 0.094877986
B35: Aquatic Food Chain | K35: Grass and Cultivated Plants
C36: Zoo- plankton | D36: Amphipod | E36: benthic Filter Feeder | F36: benthic Predator | G36: Fish 1 | H36: Fish 2 | L36: Grass | M36: Apple | N36: Grain | O36: Potato | P36: Lettuce | Q36: Carrot
B37: Concentration (ng / g ww) | C37: 2.69952453e-07 | D37: 2.69952453e-07 | E37: 1.841517982e-07 | F37: 1.468895595e-07 | G37: 1.977728347e-07 | H37: 1.909376144e-07 | K37: Leaf:
B38: Concentration (ng / g lipid) | C38: 5.868531586e-06 | D38: 5.868531586e-06 | E38: 6.6721666e-06 | F38: 7.983128234e-06 | G38: 6.142013501e-06 | H38: 4.716838301e-06 | K38: Concentration (pg / g ww) | L38: 1.350003172e-05 | M38: 2.297604172e-06 | N38: 8.218722803e-06 | O38: 1.208431825e-06 | P38: 9.051108658e-06 | Q38: 9.484721512e-07
B39: Fugacity (pPa) | C39: 1 | D39: 1 | E39: 0.9464936066 | F39: 0.9212774024 | G39: 0.9054904146 | H39: 0.76054493 | K39: Fugacity (pPa) | L39: 0.2574989516 | M39: 0.04382439076 | N39: 0.1567635209 | O39: 0.02304957013 | P39: 0.1726404084 | Q39: 0.0180911119
B40: BAF (L / kg) | C40: 3.632008132 | D40: 3.632008132 | E40: 2.477624563 | F40: 1.976289042 | G40: 2.660885412 | H40: 2.56892264 | K40: BAF (Lair / kg ww) | L40: 240.155334 | M40: 40.8726371 | N40: 0.1462048505 | O40: 21.49708642 | P40: 161.0123641 | Q40: 16.87260082
B41: BAF (L / kg lipid) | C41: 78.95669851 | D41: 78.95669851 | E41: 89.76900591 | F41: 107.4070131 | G41: 82.63619291 | H41: 63.46152767 | K41: BAF (Pa / Paair) | L41: 0.2574989516 | M41: 0.04382439076 | N41: 0.1567635209 | O41: 0.02304957013 | P41: 0.1726404084 | Q41: 0.0180911119
B42: BSAF (g OC / g lipid) | C42: - | D42: - | E42: 3.946994638e-06 | F42: 4.722508628e-06 | G42: 3.633376654e-06 | H42: 2.790298354e-06 | K42: t90 (d) | L42: 0.4016630574 | M42: 0.3356895609 | N42: 0.3848157075 | O42: 0.4068924353 | P42: 0.4004535116 | Q42: 0.4084604097
B43: BAF (Pa / Pa) | C43: 1 | D43: 1 | E43: 0.9464936066 | F43: 0.9212774024 | G43: 0.9054904146 | H43: 0.76054493
B44: BMF (g / g ) | C44: - | D44: - | E44: 1.092720798 | F44: 0.9201809137 | G44: 0.7326209952 | H44: 1.058720877 | K44: Root:
B45: BMF (Pa / Pa) | C45: - | D45: - | E45: 0.9464936066 | F45: 0.9212774024 | G45: 0.9054904146 | H45: 0.8274381042 | K45: Concentration (pg / g ww) | L45: 6.284928e-05 | M45: 2.747714162e-07 | N45: 1.825412352e-05 | O45: 4.279134536e-06 | P45: 1.89167764e-05 | Q45: 1.32995332e-07
B46: t90 (d) | C46: - | D46: - | E46: 0.0222519126 | F46: 0.03306190082 | G46: 0.03995262291 | H46: 0.1005867591 | K46: Fugacity (pPa) | L46: 0.7991558811 | M46: 0.003532658269 | N46: 0.2346880957 | O46: 0.05501562067 | P46: 0.243207636 | Q46: 0.001709883313
K47: BAF (g OC / g ww) | L47: 0.03717919321 | M47: 0.0001625440987 | N47: 0.01079843055 | O47: 0.002531369806 | P47: 0.01119043026 | Q47: 7.867487339e-05
K48: BAF (Pa / Pasoil) | L48: 0.7991558811 | M48: 0.003532658269 | N48: 0.2346880957 | O48: 0.05501562067 | P48: 0.243207636 | Q48: 0.001709883313
K49: t90 (d) | L49: 1.750317293 | M49: 0.4096379194 | N49: 0.3147626272 | O49: 0.3930348403 | P49: 0.3147626272 | Q49: 0.4103872443
K50: Fruit / Tuber
K51: Concentration (pg / g ww) | L51: - | M51: 4.651484711e-07 | N51: 8.749247042e-06 | O51: 3.794554902e-06 | P51: - | Q51: -
K52: Fugacity (pPa) | L52: - | M52: 0.007946366121 | N52: 0.04376332151 | O52: 0.08538517958 | P52: - | Q52: -
K53: BAF (Lair / kg ww) | L53: - | O53: - | P53: - | Q53: -
K54: BAF (g OC / g ww) | L54: - | M54: 0.008274638811 | N54: 0.1556424747 | O54: 0.002244711313 | P54: - | Q54: -
K55: BAF (Pa / Pa) | L55: - | M55: 0.007946366121 | N55: 0.04376332151 | O55: 0.08538517958 | P55: - | Q55: -
K56: t90 (d) | L56: - | M56: 0.4156211637 | N56: 0.4150187181 | O56: 0.3734039722 | P56: - | Q56: -

Sheet ResultsSummary
A1: Nr outputs | B1: =COUNTA(B2:B199) -> 198
B2: Output
A3: ='Model Input & Results'!B19 -> Human | B3: ='Model Input & Results'!B21 -> Concentration (ng / g body weight) | C3: ='Model Input & Results'!D21 -> 5.646694145e-08
A4: ='Model Input & Results'!B20 -> 30 year-old | B4: ='Model Input & Results'!B22 -> Concentration (ng / g lipid) | C4: ='Model Input & Results'!D22 -> --
B5: ='Model Input & Results'!B23 -> Body burden (g) | C5: ='Model Input & Results'!D23 -> 7.114834622e-12
B6: ='Model Input & Results'!B24 -> Daily intake(ng / kg. d) | C6: ='Model Input & Results'!D24 -> 8.619679157e-07
B7: ='Model Input & Results'!B25 -> Fugacity (pPa) | C7: ='Model Input & Results'!D25 -> 7.404588266
B8: ='Model Input & Results'!B26 -> BAF (Lair / kg body weight) | C8: ='Model Input & Results'!D26 -> 1004.504098
B9: ='Model Input & Results'!B27 -> BAF (Lair / kg lipid) | C9: ='Model Input & Results'!D27 -> 0
B10: ='Model Input & Results'!B28 -> BAF (Pa/Pa) | C10: ='Model Input & Results'!D28 -> 7.404588266
B11: ='Model Input & Results'!B29 -> mmBAF (m2 / organism) | C11: ='Model Input & Results'!D29 -> -
B12: ='Model Input & Results'!B30 -> BMF (kg dietary comp. / kg body weight) | C12: ='Model Input & Results'!D30 -> 0.001183627481
B13: ='Model Input & Results'!B31 -> BMF (Pa / Pa) | C13: ='Model Input & Results'!D31 -> 7.421067006
B14: ='Model Input & Results'!B32 -> t90 (d) | C14: ='Model Input & Results'!D32 -> 0.094877986
A15: ='Model Input & Results'!B35 -> Aquatic Food Chain | B15: ='Model Input & Results'!B37 -> Concentration (ng / g ww) | C15: ='Model Input & Results'!C37 -> 2.69952453e-07
A16: ='Model Input & Results'!C36 -> Zoo- plankton | B16: ='Model Input & Results'!B38 -> Concentration (ng / g lipid) | C16: ='Model Input & Results'!C38 -> 5.868531586e-06
B17: ='Model Input & Results'!B39 -> Fugacity (pPa) | C17: ='Model Input & Results'!C39 -> 1
B18: ='Model Input & Results'!B40 -> BAF (L / kg) | C18: ='Model Input & Results'!C40 -> 3.632008132
B19: ='Model Input & Results'!B41 -> BAF (L / kg lipid) | C19: ='Model Input & Results'!C41 -> 78.95669851
B20: ='Model Input & Results'!B42 -> BSAF (g OC / g lipid) | C20: ='Model Input & Results'!C42 -> -
B21: ='Model Input & Results'!B43 -> BAF (Pa / Pa) | C21: ='Model Input & Results'!C43 -> 1
B22: ='Model Input & Results'!B44 -> BMF (g / g ) | C22: ='Model Input & Results'!C44 -> -
B23: ='Model Input & Results'!B45 -> BMF (Pa / Pa) | C23: ='Model Input & Results'!C45 -> -
B24: ='Model Input & Results'!B46 -> t90 (d) | C24: ='Model Input & Results'!C46 -> -
A25: ='Model Input & Results'!B35 -> Aquatic Food Chain | B25: ='Model Input & Results'!B37 -> Concentration (ng / g ww) | C25: ='Model Input & Results'!D37 -> 2.69952453e-07
A26: ='Model Input & Results'!D36 -> Amphipod | B26: ='Model Input & Results'!B38 -> Concentration (ng / g lipid) | C26: ='Model Input & Results'!D38 -> 5.868531586e-06
B27: ='Model Input & Results'!B39 -> Fugacity (pPa) | C27: ='Model Input & Results'!D39 -> 1
B28: ='Model Input & Results'!B40 -> BAF (L / kg) | C28: ='Model Input & Results'!D40 -> 3.632008132
B29: ='Model Input & Results'!B41 -> BAF (L / kg lipid) | C29: ='Model Input & Results'!D41 -> 78.95669851
B30: ='Model Input & Results'!B42 -> BSAF (g OC / g lipid) | C30: ='Model Input & Results'!D42 -> -
B31: ='Model Input & Results'!B43 -> BAF (Pa / Pa) | C31: ='Model Input & Results'!D43 -> 1
B32: ='Model Input & Results'!B44 -> BMF (g / g ) | C32: ='Model Input & Results'!D44 -> -
B33: ='Model Input & Results'!B45 -> BMF (Pa / Pa) | C33: ='Model Input & Results'!D45 -> -
B34: ='Model Input & Results'!B46 -> t90 (d) | C34: ='Model Input & Results'!D46 -> -
A35: ='Model Input & Results'!B35 -> Aquatic Food Chain | B35: ='Model Input & Results'!B37 -> Concentration (ng / g ww) | C35: ='Model Input & Results'!E37 -> 1.841517982e-07
A36: ='Model Input & Results'!E36 -> benthic Filter Feeder | B36: ='Model Input & Results'!B38 -> Concentration (ng / g lipid) | C36: ='Model Input & Results'!E38 -> 6.6721666e-06
B37: ='Model Input & Results'!B39 -> Fugacity (pPa) | C37: ='Model Input & Results'!E39 -> 0.9464936066
B38: ='Model Input & Results'!B40 -> BAF (L / kg) | C38: ='Model Input & Results'!E40 -> 2.477624563
B39: ='Model Input & Results'!B41 -> BAF (L / kg lipid) | C39: ='Model Input & Results'!E41 -> 89.76900591
B40: ='Model Input & Results'!B42 -> BSAF (g OC / g lipid) | C40: ='Model Input & Results'!E42 -> 3.946994638e-06
B41: ='Model Input & Results'!B43 -> BAF (Pa / Pa) | C41: ='Model Input & Results'!E43 -> 0.9464936066
B42: ='Model Input & Results'!B44 -> BMF (g / g ) | C42: ='Model Input & Results'!E44 -> 1.092720798
B43: ='Model Input & Results'!B45 -> BMF (Pa / Pa) | C43: ='Model Input & Results'!E45 -> 0.9464936066
B44: ='Model Input & Results'!B46 -> t90 (d) | C44: ='Model Input & Results'!E46 -> 0.0222519126
A45: ='Model Input & Results'!B35 -> Aquatic Food Chain | B45: ='Model Input & Results'!B37 -> Concentration (ng / g ww) | C45: ='Model Input & Results'!F37 -> 1.468895595e-07
A46: ='Model Input & Results'!F36 -> benthic Predator | B46: ='Model Input & Results'!B38 -> Concentration (ng / g lipid) | C46: ='Model Input & Results'!F38 -> 7.983128234e-06
B47: ='Model Input & Results'!B39 -> Fugacity (pPa) | C47: ='Model Input & Results'!F39 -> 0.9212774024
B48: ='Model Input & Results'!B40 -> BAF (L / kg) | C48: ='Model Input & Results'!F40 -> 1.976289042
B49: ='Model Input & Results'!B41 -> BAF (L / kg lipid) | C49: ='Model Input & Results'!F41 -> 107.4070131
B50: ='Model Input & Results'!B42 -> BSAF (g OC / g lipid) | C50: ='Model Input & Results'!F42 -> 4.722508628e-06
B51: ='Model Input & Results'!B43 -> BAF (Pa / Pa) | C51: ='Model Input & Results'!F43 -> 0.9212774024
B52: ='Model Input & Results'!B44 -> BMF (g / g ) | C52: ='Model Input & Results'!F44 -> 0.9201809137
B53: ='Model Input & Results'!B45 -> BMF (Pa / Pa) | C53: ='Model Input & Results'!F45 -> 0.9212774024
B54: ='Model Input & Results'!B46 -> t90 (d) | C54: ='Model Input & Results'!F46 -> 0.03306190082
A55: ='Model Input & Results'!B35 -> Aquatic Food Chain | B55: ='Model Input & Results'!B37 -> Concentration (ng / g ww) | C55: ='Model Input & Results'!G37 -> 1.977728347e-07
A56: ='Model Input & Results'!G36 -> Fish 1 | B56: ='Model Input & Results'!B38 -> Concentration (ng / g lipid) | C56: ='Model Input & Results'!G38 -> 6.142013501e-06
B57: ='Model Input & Results'!B39 -> Fugacity (pPa) | C57: ='Model Input & Results'!G39 -> 0.9054904146
B58: ='Model Input & Results'!B40 -> BAF (L / kg) | C58: ='Model Input & Results'!G40 -> 2.660885412
B59: ='Model Input & Results'!B41 -> BAF (L / kg lipid) | C59: ='Model Input & Results'!G41 -> 82.63619291
B60: ='Model Input & Results'!B42 -> BSAF (g OC / g lipid) | C60: ='Model Input & Results'!G42 -> 3.633376654e-06
B61: ='Model Input & Results'!B43 -> BAF (Pa / Pa) | C61: ='Model Input & Results'!G43 -> 0.9054904146
B62: ='Model Input & Results'!B44 -> BMF (g / g ) | C62: ='Model Input & Results'!G44 -> 0.7326209952
B63: ='Model Input & Results'!B45 -> BMF (Pa / Pa) | C63: ='Model Input & Results'!G45 -> 0.9054904146
B64: ='Model Input & Results'!B46 -> t90 (d) | C64: ='Model Input & Results'!G46 -> 0.03995262291
A65: ='Model Input & Results'!B35 -> Aquatic Food Chain | B65: ='Model Input & Results'!B37 -> Concentration (ng / g ww) | C65: ='Model Input & Results'!H37 -> 1.909376144e-07
A66: ='Model Input & Results'!H36 -> Fish 2 | B66: ='Model Input & Results'!B38 -> Concentration (ng / g lipid) | C66: ='Model Input & Results'!H38 -> 4.716838301e-06
B67: ='Model Input & Results'!B39 -> Fugacity (pPa) | C67: ='Model Input & Results'!H39 -> 0.76054493
B68: ='Model Input & Results'!B40 -> BAF (L / kg) | C68: ='Model Input & Results'!H40 -> 2.56892264
B69: ='Model Input & Results'!B41 -> BAF (L / kg lipid) | C69: ='Model Input & Results'!H41 -> 63.46152767
B70: ='Model Input & Results'!B42 -> BSAF (g OC / g lipid) | C70: ='Model Input & Results'!H42 -> 2.790298354e-06
B71: ='Model Input & Results'!B43 -> BAF (Pa / Pa) | C71: ='Model Input & Results'!H43 -> 0.76054493
B72: ='Model Input & Results'!B44 -> BMF (g / g ) | C72: ='Model Input & Results'!H44 -> 1.058720877
B73: ='Model Input & Results'!B45 -> BMF (Pa / Pa) | C73: ='Model Input & Results'!H45 -> 0.8274381042
B74: ='Model Input & Results'!B46 -> t90 (d) | C74: ='Model Input & Results'!H46 -> 0.1005867591
A75: ='Model Input & Results'!K19 -> Cattle | B75: ='Model Input & Results'!K21 -> Concentration (ng / g ww) | C75: ='Model Input & Results'!L21 -> 1.342498948e-08
A76: ='Model Input & Results'!L20 -> Beef Cattle | B76: ='Model Input & Results'!K22 -> Concentration (ng / g lipid) | C76: ='Model Input & Results'!L22 -> 6.102267943e-08
B77: ='Model Input & Results'!K23 -> Fugacity (pPa) | C77: ='Model Input & Results'!L23 -> 0.1132424619
B78: ='Model Input & Results'!K24 -> BAF (Lair / kg ww) | C78: ='Model Input & Results'!L24 -> 238.8203893
B79: ='Model Input & Results'!K25 -> BAF (Lair / kg lipid) | C79: ='Model Input & Results'!L25 -> 1085.547224
B80: ='Model Input & Results'!K26 -> BAF (Pa/Pa) | C80: ='Model Input & Results'!L26 -> 0.1132424619
B81: ='Model Input & Results'!K27 -> mmBAF (m2 / organism) | C81: ='Model Input & Results'!L27 -> -
B82: ='Model Input & Results'!K28 -> BMF (g ww / g ww) | C82: ='Model Input & Results'!L28 -> 0.3252229918
B83: ='Model Input & Results'!K29 -> BMF (Pa / Pa) | C83: ='Model Input & Results'!L29 -> 0.1896409109
B84: ='Model Input & Results'!K30 -> t90 (d) | C84: ='Model Input & Results'!L30 -> 2.239573007
A85: ='Model Input & Results'!K19 -> Cattle | B85: ='Model Input & Results'!K21 -> Concentration (ng / g ww) | C85: ='Model Input & Results'!M21 -> 1.723154426e-08
A86: ='Model Input & Results'!M20 -> Milk Cow | B86: ='Model Input & Results'!K22 -> Concentration (ng / g lipid) | C86: ='Model Input & Results'!M22 -> 7.83252012e-08
B87: ='Model Input & Results'!K23 -> Fugacity (pPa) | C87: ='Model Input & Results'!M23 -> 0.1453515102
B88: ='Model Input & Results'!K24 -> BAF (Lair / kg ww) | C88: ='Model Input & Results'!M24 -> 306.5361144
B89: ='Model Input & Results'!K25 -> BAF (Lair / kg lipid) | C89: ='Model Input & Results'!M25 -> 1393.345974
B90: ='Model Input & Results'!K26 -> BAF (Pa/Pa) | C90: ='Model Input & Results'!M26 -> 0.1453515102
B91: ='Model Input & Results'!K27 -> mmBAF (m2 / organism) | C91: ='Model Input & Results'!M27 -> -
B92: ='Model Input & Results'!K28 -> BMF (g ww / g ww) | C92: ='Model Input & Results'!M28 -> 0.339951196
B93: ='Model Input & Results'!K29 -> BMF (Pa / Pa) | C93: ='Model Input & Results'!M29 -> 0.2024896989
B94: ='Model Input & Results'!K30 -> t90 (d) | C94: ='Model Input & Results'!M30 -> 2.253909116
A95: ='Model Input & Results'!K19 -> Cattle | B95: ='Model Input & Results'!K21 -> Concentration (ng / g ww) | C95: ='Model Input & Results'!N21 -> 1.342498948e-08
A96: ='Model Input & Results'!N20 -> Beef | B96: ='Model Input & Results'!K22 -> Concentration (ng / g lipid) | C96: ='Model Input & Results'!N22 -> 6.102267943e-08
B97: ='Model Input & Results'!K23 -> Fugacity (pPa) | C97: ='Model Input & Results'!N23 -> 0.1132424619
A98: ='Model Input & Results'!K19 -> Cattle | B98: ='Model Input & Results'!K21 -> Concentration (ng / g ww) | C98: ='Model Input & Results'!O21 -> 6.056093413e-09
A99: ='Model Input & Results'!O20 -> Milk | B99: ='Model Input & Results'!K22 -> Concentration (ng / g lipid) | C99: ='Model Input & Results'!O22 -> 1.211218683e-07
B100: ='Model Input & Results'!K23 -> Fugacity (pPa) | C100: ='Model Input & Results'!O23 -> 0.1453515102
A101: ='Model Input & Results'!K19 -> Cattle | B101: ='Model Input & Results'!K21 -> Concentration (ng / g ww) | C101: ='Model Input & Results'!P21 -> 2.442667558e-08
A102: ='Model Input & Results'!P20 -> Dairy Products | B102: ='Model Input & Results'!K22 -> Concentration (ng / g lipid) | C102: ='Model Input & Results'!P22 -> --
B103: ='Model Input & Results'!K23 -> Fugacity (pPa) | C103: ='Model Input & Results'!P23 -> 0.1453515102
A104: ='Model Input & Results'!K35 -> Grass and Cultivated Plants | B104: ='Model Input & Results'!K38 -> Concentration (pg / g ww) | C104: ='Model Input & Results'!L38 -> 1.350003172e-05
A105: ='Model Input & Results'!L36 -> Grass | B105: ='Model Input & Results'!K39 -> Fugacity (pPa) | C105: ='Model Input & Results'!L39 -> 0.2574989516
A106: ='Model Input & Results'!K37 -> Leaf: | B106: ='Model Input & Results'!K40 -> BAF (Lair / kg ww) | C106: ='Model Input & Results'!L40 -> 240.155334
B107: ='Model Input & Results'!K41 -> BAF (Pa / Paair) | C107: ='Model Input & Results'!L41 -> 0.2574989516
B108: ='Model Input & Results'!K42 -> t90 (d) | C108: ='Model Input & Results'!L42 -> 0.4016630574
A109: ='Model Input & Results'!K44 -> Root: | B109: ='Model Input & Results'!K45 -> Concentration (pg / g ww) | C109: ='Model Input & Results'!L45 -> 6.284928e-05
B110: ='Model Input & Results'!K46 -> Fugacity (pPa) | C110: ='Model Input & Results'!L46 -> 0.7991558811
B111: ='Model Input & Results'!K47 -> BAF (g OC / g ww) | C111: ='Model Input & Results'!L47 -> 0.03717919321
B112: ='Model Input & Results'!K48 -> BAF (Pa / Pasoil) | C112: ='Model Input & Results'!L48 -> 0.7991558811
B113: ='Model Input & Results'!K49 -> t90 (d) | C113: ='Model Input & Results'!L49 -> 1.750317293
A114: ='Model Input & Results'!K50 -> Fruit / Tuber | B114: ='Model Input & Results'!K51 -> Concentration (pg / g ww) | C114: ='Model Input & Results'!L51 -> -
B115: ='Model Input & Results'!K52 -> Fugacity (pPa) | C115: ='Model Input & Results'!L52 -> -
B116: ='Model Input & Results'!K53 -> BAF (Lair / kg ww) | C116: ='Model Input & Results'!L53 -> -
B117: ='Model Input & Results'!K54 -> BAF (g OC / g ww) | C117: ='Model Input & Results'!L54 -> -
B118: ='Model Input & Results'!K55 -> BAF (Pa / Pa) | C118: ='Model Input & Results'!L55 -> -
B119: ='Model Input & Results'!K56 -> t90 (d) | C119: ='Model Input & Results'!L56 -> -
A120: ='Model Input & Results'!K35 -> Grass and Cultivated Plants | B120: ='Model Input & Results'!K38 -> Concentration (pg / g ww) | C120: ='Model Input & Results'!M38 -> 2.297604172e-06
A121: ='Model Input & Results'!M36 -> Apple | B121: ='Model Input & Results'!K39 -> Fugacity (pPa) | C121: ='Model Input & Results'!M39 -> 0.04382439076
A122: ='Model Input & Results'!K37 -> Leaf: | B122: ='Model Input & Results'!K40 -> BAF (Lair / kg ww) | C122: ='Model Input & Results'!M40 -> 40.8726371
B123: ='Model Input & Results'!K41 -> BAF (Pa / Paair) | C123: ='Model Input & Results'!M41 -> 0.04382439076
B124: ='Model Input & Results'!K42 -> t90 (d) | C124: ='Model Input & Results'!M42 -> 0.3356895609
A125: ='Model Input & Results'!K44 -> Root: | B125: ='Model Input & Results'!K45 -> Concentration (pg / g ww) | C125: ='Model Input & Results'!M45 -> 2.747714162e-07
B126: ='Model Input & Results'!K46 -> Fugacity (pPa) | C126: ='Model Input & Results'!M46 -> 0.003532658269
B127: ='Model Input & Results'!K47 -> BAF (g OC / g ww) | C127: ='Model Input & Results'!M47 -> 0.0001625440987
B128: ='Model Input & Results'!K48 -> BAF (Pa / Pasoil) | C128: ='Model Input & Results'!M48 -> 0.003532658269
B129: ='Model Input & Results'!K49 -> t90 (d) | C129: ='Model Input & Results'!M49 -> 0.4096379194
A130: ='Model Input & Results'!K50 -> Fruit / Tuber | B130: ='Model Input & Results'!K51 -> Concentration (pg / g ww) | C130: ='Model Input & Results'!M51 -> 4.651484711e-07
B131: ='Model Input & Results'!K52 -> Fugacity (pPa) | C131: ='Model Input & Results'!M52 -> 0.007946366121
B132: ='Model Input & Results'!K53 -> BAF (Lair / kg ww) | C132: ='Model Input & Results'!M53 -> 0
B133: ='Model Input & Results'!K54 -> BAF (g OC / g ww) | C133: ='Model Input & Results'!M54 -> 0.008274638811
B134: ='Model Input & Results'!K55 -> BAF (Pa / Pa) | C134: ='Model Input & Results'!M55 -> 0.007946366121
B135: ='Model Input & Results'!K56 -> t90 (d) | C135: ='Model Input & Results'!M56 -> 0.4156211637
A136: ='Model Input & Results'!K35 -> Grass and Cultivated Plants | B136: ='Model Input & Results'!K38 -> Concentration (pg / g ww) | C136: ='Model Input & Results'!N38 -> 8.218722803e-06
A137: ='Model Input & Results'!N36 -> Grain | B137: ='Model Input & Results'!K39 -> Fugacity (pPa) | C137: ='Model Input & Results'!N39 -> 0.1567635209
A138: ='Model Input & Results'!K37 -> Leaf: | B138: ='Model Input & Results'!K40 -> BAF (Lair / kg ww) | C138: ='Model Input & Results'!N40 -> 0.1462048505
B139: ='Model Input & Results'!K41 -> BAF (Pa / Paair) | C139: ='Model Input & Results'!N41 -> 0.1567635209
B140: ='Model Input & Results'!K42 -> t90 (d) | C140: ='Model Input & Results'!N42 -> 0.3848157075
A141: ='Model Input & Results'!K44 -> Root: | B141: ='Model Input & Results'!K45 -> Concentration (pg / g ww) | C141: ='Model Input & Results'!N45 -> 1.825412352e-05
B142: ='Model Input & Results'!K46 -> Fugacity (pPa) | C142: ='Model Input & Results'!N46 -> 0.2346880957
B143: ='Model Input & Results'!K47 -> BAF (g OC / g ww) | C143: ='Model Input & Results'!N47 -> 0.01079843055
B144: ='Model Input & Results'!K48 -> BAF (Pa / Pasoil) | C144: ='Model Input & Results'!N48 -> 0.2346880957
B145: ='Model Input & Results'!K49 -> t90 (d) | C145: ='Model Input & Results'!N49 -> 0.3147626272
A146: ='Model Input & Results'!K50 -> Fruit / Tuber | B146: ='Model Input & Results'!K51 -> Concentration (pg / g ww) | C146: ='Model Input & Results'!N51 -> 8.749247042e-06
B147: ='Model Input & Results'!K52 -> Fugacity (pPa) | C147: ='Model Input & Results'!N52 -> 0.04376332151
B148: ='Model Input & Results'!K53 -> BAF (Lair / kg ww) | C148: ='Model Input & Results'!N53 -> 0
B149: ='Model Input & Results'!K54 -> BAF (g OC / g ww) | C149: ='Model Input & Results'!N54 -> 0.1556424747
B150: ='Model Input & Results'!K55 -> BAF (Pa / Pa) | C150: ='Model Input & Results'!N55 -> 0.04376332151
B151: ='Model Input & Results'!K56 -> t90 (d) | C151: ='Model Input & Results'!N56 -> 0.4150187181
A152: ='Model Input & Results'!K35 -> Grass and Cultivated Plants | B152: ='Model Input & Results'!K38 -> Concentration (pg / g ww) | C152: ='Model Input & Results'!O38 -> 1.208431825e-06
A153: ='Model Input & Results'!O36 -> Potato | B153: ='Model Input & Results'!K39 -> Fugacity (pPa) | C153: ='Model Input & Results'!O39 -> 0.02304957013
A154: ='Model Input & Results'!K37 -> Leaf: | B154: ='Model Input & Results'!K40 -> BAF (Lair / kg ww) | C154: ='Model Input & Results'!O40 -> 21.49708642
B155: ='Model Input & Results'!K41 -> BAF (Pa / Paair) | C155: ='Model Input & Results'!O41 -> 0.02304957013
B156: ='Model Input & Results'!K42 -> t90 (d) | C156: ='Model Input & Results'!O42 -> 0.4068924353
A157: ='Model Input & Results'!K44 -> Root: | B157: ='Model Input & Results'!K45 -> Concentration (pg / g ww) | C157: ='Model Input & Results'!O45 -> 4.279134536e-06
B158: ='Model Input & Results'!K46 -> Fugacity (pPa) | C158: ='Model Input & Results'!O46 -> 0.05501562067
B159: ='Model Input & Results'!K47 -> BAF (g OC / g ww) | C159: ='Model Input & Results'!O47 -> 0.002531369806
B160: ='Model Input & Results'!K48 -> BAF (Pa / Pasoil) | C160: ='Model Input & Results'!O48 -> 0.05501562067
B161: ='Model Input & Results'!K49 -> t90 (d) | C161: ='Model Input & Results'!O49 -> 0.3930348403
A162: ='Model Input & Results'!K50 -> Fruit / Tuber | B162: ='Model Input & Results'!K51 -> Concentration (pg / g ww) | C162: ='Model Input & Results'!O51 -> 3.794554902e-06
B163: ='Model Input & Results'!K52 -> Fugacity (pPa) | C163: ='Model Input & Results'!O52 -> 0.08538517958
B164: ='Model Input & Results'!K53 -> BAF (Lair / kg ww) | C164: ='Model Input & Results'!O53 -> -
B165: ='Model Input & Results'!K54 -> BAF (g OC / g ww) | C165: ='Model Input & Results'!O54 -> 0.002244711313
B166: ='Model Input & Results'!K55 -> BAF (Pa / Pa) | C166: ='Model Input & Results'!O55 -> 0.08538517958
B167: ='Model Input & Results'!K56 -> t90 (d) | C167: ='Model Input & Results'!O56 -> 0.3734039722
A168: ='Model Input & Results'!K35 -> Grass and Cultivated Plants | B168: ='Model Input & Results'!K38 -> Concentration (pg / g ww) | C168: ='Model Input & Results'!P38 -> 9.051108658e-06
A169: ='Model Input & Results'!P36 -> Lettuce | B169: ='Model Input & Results'!K39 -> Fugacity (pPa) | C169: ='Model Input & Results'!P39 -> 0.1726404084
A170: ='Model Input & Results'!K37 -> Leaf: | B170: ='Model Input & Results'!K40 -> BAF (Lair / kg ww) | C170: ='Model Input & Results'!P40 -> 161.0123641
B171: ='Model Input & Results'!K41 -> BAF (Pa / Paair) | C171: ='Model Input & Results'!P41 -> 0.1726404084
B172: ='Model Input & Results'!K42 -> t90 (d) | C172: ='Model Input & Results'!P42 -> 0.4004535116
A173: ='Model Input & Results'!K44 -> Root: | B173: ='Model Input & Results'!K45 -> Concentration (pg / g ww) | C173: ='Model Input & Results'!P45 -> 1.89167764e-05
B174: ='Model Input & Results'!K46 -> Fugacity (pPa) | C174: ='Model Input & Results'!P46 -> 0.243207636
B175: ='Model Input & Results'!K47 -> BAF (g OC / g ww) | C175: ='Model Input & Results'!P47 -> 0.01119043026
B176: ='Model Input & Results'!K48 -> BAF (Pa / Pasoil) | C176: ='Model Input & Results'!P48 -> 0.243207636
B177: ='Model Input & Results'!K49 -> t90 (d) | C177: ='Model Input & Results'!P49 -> 0.3147626272
A178: ='Model Input & Results'!K50 -> Fruit / Tuber | B178: ='Model Input & Results'!K51 -> Concentration (pg / g ww) | C178: ='Model Input & Results'!P51 -> -
B179: ='Model Input & Results'!K52 -> Fugacity (pPa) | C179: ='Model Input & Results'!P52 -> -
B180: ='Model Input & Results'!K53 -> BAF (Lair / kg ww) | C180: ='Model Input & Results'!P53 -> -
B181: ='Model Input & Results'!K54 -> BAF (g OC / g ww) | C181: ='Model Input & Results'!P54 -> -
B182: ='Model Input & Results'!K55 -> BAF (Pa / Pa) | C182: ='Model Input & Results'!P55 -> -
B183: ='Model Input & Results'!K56 -> t90 (d) | C183: ='Model Input & Results'!P56 -> -
A184: ='Model Input & Results'!K35 -> Grass and Cultivated Plants | B184: ='Model Input & Results'!K38 -> Concentration (pg / g ww) | C184: ='Model Input & Results'!Q38 -> 9.484721512e-07
A185: ='Model Input & Results'!Q36 -> Carrot | B185: ='Model Input & Results'!K39 -> Fugacity (pPa) | C185: ='Model Input & Results'!Q39 -> 0.0180911119
A186: ='Model Input & Results'!K37 -> Leaf: | B186: ='Model Input & Results'!K40 -> BAF (Lair / kg ww) | C186: ='Model Input & Results'!Q40 -> 16.87260082
B187: ='Model Input & Results'!K41 -> BAF (Pa / Paair) | C187: ='Model Input & Results'!Q41 -> 0.0180911119
B188: ='Model Input & Results'!K42 -> t90 (d) | C188: ='Model Input & Results'!Q42 -> 0.4084604097
A189: ='Model Input & Results'!K44 -> Root: | B189: ='Model Input & Results'!K45 -> Concentration (pg / g ww) | C189: ='Model Input & Results'!Q45 -> 1.32995332e-07
B190: ='Model Input & Results'!K46 -> Fugacity (pPa) | C190: ='Model Input & Results'!Q46 -> 0.001709883313
B191: ='Model Input & Results'!K47 -> BAF (g OC / g ww) | C191: ='Model Input & Results'!Q47 -> 7.867487339e-05
B192: ='Model Input & Results'!K48 -> BAF (Pa / Pasoil) | C192: ='Model Input & Results'!Q48 -> 0.001709883313
B193: ='Model Input & Results'!K49 -> t90 (d) | C193: ='Model Input & Results'!Q49 -> 0.4103872443
A194: ='Model Input & Results'!K50 -> Fruit / Tuber | B194: ='Model Input & Results'!K51 -> Concentration (pg / g ww) | C194: ='Model Input & Results'!Q51 -> -
B195: ='Model Input & Results'!K52 -> Fugacity (pPa) | C195: ='Model Input & Results'!Q52 -> -
B196: ='Model Input & Results'!K53 -> BAF (Lair / kg ww) | C196: ='Model Input & Results'!Q53 -> -
B197: ='Model Input & Results'!K54 -> BAF (g OC / g ww) | C197: ='Model Input & Results'!Q54 -> -
B198: ='Model Input & Results'!K55 -> BAF (Pa / Pa) | C198: ='Model Input & Results'!Q55 -> -
B199: ='Model Input & Results'!K56 -> t90 (d) | C199: ='Model Input & Results'!Q56 -> -

Sheet BatchOutput
A1: 2018-11-12T14:42:15 | B1: Output | C1: Chemical
C2: Hypothetical 1 | D2: a-HCH | E2: g-HCH (lindane) | F2: b-HCH | G2: HCB | H2: HCBz_popcycling | I2: PCB-8 | J2: PCB-28 | K2: PCB-52 | L2: PCB-101 | M2: PCB-118 | N2: PCB-138 | O2: PCB-153 | P2: PCB-180 | Q2: pp-DDT | R2: pp-DDD | S2: pp-DDE | T2: PBDE-47 | U2: PBDE-99 | V2: PBDE-100 | W2: PBDE-153 | X2: test chemical | Y2: test chemical | Z2: 101-80-4 | AA2: 102-09-0 | AB2: 10226-30-9
A3: =IF(ResultsSummary!A3="","",ResultsSummary!A3) -> Human | B3: =ResultsSummary!B3 -> Concentration (ng / g body weight) | C3: 1.108011405e-05 | D3: 0.000353460704 | E3: 0.0009390650869 | F3: 0.008860686044 | G3: 0.0003231777497 | H3: 9.876908927e-05 | I3: 0.0004644313933 | J3: 0.006411330825 | K3: 0.01309410273 | L3: 0.1808863312 | M3: 1.43131411 | N3: 1.6378308 | O3: 1.388840107 | P3: 5.502211188 | Q3: 1.727744612 | R3: 1.431568856 | S3: 0.2732712383 | T3: 12.38110415 | U3: 104.4778887 | V3: 74.74452914 | W3: 640.351813 | X3: 0.7017812235 | Y3: 5.666262156 | Z3: 0.7060459462 | AA3: 3.427793693e-06 | AB3: 5.646694145e-08
A4: =IF(ResultsSummary!A4="","",ResultsSummary!A4) -> 30 year-old | B4: =ResultsSummary!B4 -> Concentration (ng / g lipid) | C4: -- | D4: -- | E4: -- | F4: -- | G4: -- | H4: -- | I4: -- | J4: -- | K4: -- | L4: -- | M4: -- | N4: -- | O4: -- | P4: -- | Q4: -- | R4: -- | S4: -- | T4: -- | U4: -- | V4: -- | W4: -- | X4: -- | Y4: -- | Z4: -- | AA4: -- | AB4: --
A5: =IF(ResultsSummary!A5="","",ResultsSummary!A5) ->  | B5: =ResultsSummary!B5 -> Body burden (g) | C5: 1.396094371e-09 | D5: 4.45360487e-08 | E5: 1.183222009e-07 | F5: 1.116446442e-06 | G5: 4.072039646e-08 | H5: 1.244490525e-08 | I5: 5.851835556e-08 | J5: 8.07827684e-07 | K5: 1.649856944e-06 | L5: 2.279167773e-05 | M5: 0.0001803455778 | N5: 0.0002063666807 | O5: 0.0001749938535 | P5: 0.0006932786097 | Q5: 0.0002176958211 | R5: 0.0001803776759 | S5: 3.443217602e-05 | T5: 0.001560019123 | U5: 0.01316421398 | V5: 0.009417810671 | W5: 0.08068432844 | X5: 8.842443416e-05 | Y5: 0.0007139490317 | Z5: 8.896178922e-05 | AA5: 4.319020053e-10 | AB5: 7.114834622e-12
A6: =IF(ResultsSummary!A6="","",ResultsSummary!A6) ->  | B6: =ResultsSummary!B6 -> Daily intake(ng / kg. d) | C6: 0.004033701854 | D6: 0.001735271211 | E6: 0.005364934696 | F6: 0.03962625512 | G6: 0.002696405075 | H6: 0.001164890728 | I6: 0.002340577333 | J6: 0.03048125925 | K6: 0.06712151356 | L6: 0.5245220117 | M6: 3.977127661 | N6: 4.494288668 | O6: 3.777371702 | P6: 15.08353735 | Q6: 6.137007335 | R6: 3.857369896 | S6: 1.139679349 | T6: 37.59593982 | U6: 285.5937928 | V6: 214.9424877 | W6: 1724.335163 | X6: 2.766042938 | Y6: 82.55729344 | Z6: 12.60991658 | AA6: 2.875407021e-06 | AB6: 8.619679157e-07
A7: =IF(ResultsSummary!A7="","",ResultsSummary!A7) ->  | B7: =ResultsSummary!B7 -> Fugacity (pPa) | C7: 5.689700932e-05 | D7: 20.06640377 | E7: 20.61106595 | F7: 30.34287026 | G7: 25.80595416 | H7: 18.06756052 | I7: 43.41345457 | J7: 103.9993518 | K7: 183.1906103 | L7: 290.1629643 | M7: 574.4980574 | N7: 505.8906874 | O7: 553.3664553 | P7: 447.1873073 | Q7: 279.424264 | R7: 486.4448473 | S7: 239.3626074 | T7: 619.5336258 | U7: 620.8436732 | V7: 958.837 | W7: 874.3768416 | X7: 478.7378695 | Y7: 25.76923009 | Z7: 72.0120765 | AA7: 11.65950188 | AB7: 7.404588266
A8: =IF(ResultsSummary!A8="","",ResultsSummary!A8) ->  | B8: =ResultsSummary!B8 -> BAF (Lair / kg body weight) | C8: 265305.7966 | D8: 2909376.488 | E8: 7729554.81 | F8: 72933345.5 | G8: 2717089.696 | H8: 830392.7948 | I8: 4984533.348 | J8: 59617458.99 | K8: 107373077.3 | L8: 1326960845 | M8: 1.049995192e+10 | N8: 1.086637428e+10 | O8: 9214417277 | P8: 3.332828368e+10 | Q8: 1.166986456e+10 | R8: 1.074543661e+10 | S8: 2038409338 | T8: 6.102452032e+10 | U8: 4.430054897e+11 | V8: 3.169305691e+11 | W8: 2.382347533e+12 | X8: 1.680367419e+10 | Y8: 9.044986285e+10 | Z8: 8443185372 | AA8: 38315.7598 | AB8: 1004.504098
A9: =IF(ResultsSummary!A9="","",ResultsSummary!A9) ->  | B9: =ResultsSummary!B9 -> BAF (Lair / kg lipid) | C9: 0 | D9: 0 | E9: 0 | F9: 0 | G9: 0 | H9: 0 | I9: 0 | J9: 0 | K9: 0 | L9: 0 | M9: 0 | N9: 0 | O9: 0 | P9: 0 | Q9: 0 | R9: 0 | S9: 0 | T9: 0 | U9: 0 | V9: 0 | W9: 0 | X9: 0 | Y9: 0 | Z9: 0 | AA9: 0 | AB9: 0
A10: =IF(ResultsSummary!A10="","",ResultsSummary!A10) ->  | B10: =ResultsSummary!B10 -> BAF (Pa/Pa) | C10: 5.689700932e-05 | D10: 20.06640377 | E10: 20.61106595 | F10: 30.34287026 | G10: 25.80595416 | H10: 18.06756052 | I10: 43.41345457 | J10: 103.9993518 | K10: 183.1906103 | L10: 290.1629643 | M10: 574.4980574 | N10: 505.8906874 | O10: 553.3664553 | P10: 447.1873073 | Q10: 279.424264 | R10: 486.4448473 | S10: 239.3626074 | T10: 619.5336258 | U10: 620.8436732 | V10: 958.837 | W10: 874.3768416 | X10: 478.7378695 | Y10: 25.76923009 | Z10: 72.0120765 | AA10: 11.65950188 | AB10: 7.404588266
A11: =IF(ResultsSummary!A11="","",ResultsSummary!A11) ->  | B11: =ResultsSummary!B11 -> mmBAF (m2 / organism) | C11: - | D11: - | E11: - | F11: - | G11: - | H11: - | I11: - | J11: - | K11: - | L11: - | M11: - | N11: - | O11: - | P11: - | Q11: - | R11: - | S11: - | T11: - | U11: - | V11: - | W11: - | X11: - | Y11: - | Z11: - | AA11: - | AB11: -
A12: =IF(ResultsSummary!A12="","",ResultsSummary!A12) ->  | B12: =ResultsSummary!B12 -> BMF (kg dietary comp. / kg body weight) | C12: 0.007837982362 | D12: 0.3353448636 | E12: 0.2809826197 | F12: 0.2606434877 | G12: 1.246986145 | H12: 0.9167063032 | I12: 1.514240196 | J12: 3.621535206 | K12: 3.785553293 | L12: 7.727396702 | M12: 8.505603607 | N12: 8.596197932 | O12: 8.673995555 | P12: 8.706337801 | Q12: 6.49120899 | R12: 8.817939114 | S12: 5.27644317 | T12: 7.741716136 | U12: 8.734169616 | V12: 8.239135165 | W12: 8.904445925 | X12: 5.931939846 | Y12: 1.267101262 | Z12: 0.0009145242424 | AA12: 0.06798132618 | AB12: 0.001183627481
A13: =IF(ResultsSummary!A13="","",ResultsSummary!A13) ->  | B13: =ResultsSummary!B13 -> BMF (Pa / Pa) | C13: 0.1381186708 | D13: 19.38666051 | E13: 19.42212587 | F13: 30.04898627 | G13: 17.37185496 | H13: 12.72653908 | I13: 27.49450988 | J13: 56.09146486 | K13: 67.1552497 | L13: 123.996272 | M13: 160.4157542 | N13: 154.4201072 | O13: 159.2918419 | P13: 146.8310721 | Q13: 114.3406584 | R13: 149.1398025 | S13: 100.1507439 | T13: 175.6695817 | U13: 182.2946001 | V13: 231.9669619 | W13: 227.6225919 | X13: 131.3710658 | Y13: 25.20865426 | Z13: 72.0532943 | AA13: 12.49261323 | AB13: 7.421067006
A14: =IF(ResultsSummary!A14="","",ResultsSummary!A14) ->  | B14: =ResultsSummary!B14 -> t90 (d) | C14: 2410.667529 | D14: 37.54188822 | E14: 31.35793534 | F14: 27.4497133 | G14: 486.3762251 | H14: 349.984622 | I14: 296.5348566 | J14: 818.3767979 | K14: 871.5487595 | L14: 1822.66347 | M14: 2055.961904 | N14: 2082.514845 | O14: 2113.503887 | P14: 2310.606795 | Q14: 1516.034873 | R14: 2182.697262 | S14: 1213.664669 | T14: 1833.730965 | U14: 2128.287377 | V14: 1969.978079 | W14: 2266.230959 | X14: 2381.516891 | Y14: 2408.796781 | Z14: 0.07380412883 | AA14: 5.44181771 | AB14: 0.094877986
A15: =IF(ResultsSummary!A15="","",ResultsSummary!A15) -> Aquatic Food Chain | B15: =ResultsSummary!B15 -> Concentration (ng / g ww) | C15: 17.48396387 | D15: 0.0007645460696 | E15: 0.002467168392 | F15: 0.03095197431 | G15: 0.0005725288779 | H15: 0.0002499177522 | I15: 0.0007515399146 | J15: 0.004640833817 | K15: 0.008169063774 | L15: 0.05545404354 | M15: 0.3324277342 | N15: 0.3833379003 | O15: 0.3164168805 | P15: 1.217117129 | Q15: 0.654935193 | R15: 0.3055100536 | S15: 0.1449789091 | T15: 3.555052916 | U15: 23.61177137 | V15: 19.13084416 | W15: 136.7202144 | X15: 0.2736632302 | Y15: 41.04948167 | Z15: 3.472589932 | AA15: 1.395994329e-05 | AB15: 2.69952453e-07
A16: =IF(ResultsSummary!A16="","",ResultsSummary!A16) -> Zoo- plankton | B16: =ResultsSummary!B16 -> Concentration (ng / g lipid) | C16: 380.086171 | D16: 0.01662056673 | E16: 0.05363409547 | F16: 0.6728690068 | G16: 0.01244627995 | H16: 0.005432994613 | I16: 0.01633782423 | J16: 0.1008876917 | K16: 0.1775883429 | L16: 1.205522686 | M16: 7.226689873 | N16: 8.333432616 | O16: 6.878627838 | P16: 26.45906801 | Q16: 14.23772159 | R16: 6.641522904 | S16: 3.151715416 | T16: 77.28375905 | U16: 513.2993777 | V16: 415.8879164 | W16: 2972.178573 | X16: 5.949200658 | Y16: 892.3800364 | Z16: 75.49108549 | AA16: 0.000303477028 | AB16: 5.868531586e-06
A17: =IF(ResultsSummary!A17="","",ResultsSummary!A17) ->  | B17: =ResultsSummary!B17 -> Fugacity (pPa) | C17: 1 | D17: 1 | E17: 1 | F17: 1 | G17: 1 | H17: 1 | I17: 1 | J17: 1 | K17: 1 | L17: 1 | M17: 1 | N17: 1 | O17: 1 | P17: 1 | Q17: 1 | R17: 1 | S17: 1 | T17: 1 | U17: 1 | V17: 1 | W17: 1 | X17: 1 | Y17: 1 | Z17: 1 | AA17: 1 | AB17: 1
A18: =IF(ResultsSummary!A18="","",ResultsSummary!A18) ->  | B18: =ResultsSummary!B18 -> BAF (L / kg) | C18: 9.325995506e+10 | D18: 617.9118098 | E18: 624.3745911 | F18: 691.1000109 | G18: 25482.67996 | H18: 26076.23036 | I18: 11722.8166 | J18: 58802.8501 | K18: 94936.43006 | L18: 154904.7806 | M18: 479992.4227 | N18: 418490.4144 | O18: 481675.453 | P18: 1057523.134 | Q18: 154592.6783 | R18: 929218.961 | S18: 97937.78085 | T18: 238710.3754 | U18: 552745.2407 | V18: 321499.2226 | W18: 1163407.898 | X18: 9676799.918 | Y18: 96767992.43 | Z18: 2.886462143 | AA18: 178.4531809 | AB18: 3.632008132
A19: =IF(ResultsSummary!A19="","",ResultsSummary!A19) ->  | B19: =ResultsSummary!B19 -> BAF (L / kg lipid) | C19: 2.027390327e+12 | D19: 13432.86543 | E19: 13573.36068 | F19: 15023.91328 | G19: 553971.3035 | H19: 566874.573 | I19: 254843.8391 | J19: 1278322.828 | K19: 2063835.436 | L19: 3367495.23 | M19: 10434617.88 | N19: 9097617.704 | O19: 10471205.5 | P19: 22989633.36 | Q19: 3360710.398 | R19: 20200412.2 | S19: 2129082.192 | T19: 5189355.987 | U19: 12016200.89 | V19: 6989113.534 | W19: 25291476.04 | X19: 210365215.6 | Y19: 2103652009 | Z19: 62.74917703 | AA19: 3879.416977 | AB19: 78.95669851
A20: =IF(ResultsSummary!A20="","",ResultsSummary!A20) ->  | B20: =ResultsSummary!B20 -> BSAF (g OC / g lipid) | C20: - | D20: - | E20: - | F20: - | G20: - | H20: - | I20: - | J20: - | K20: - | L20: - | M20: - | N20: - | O20: - | P20: - | Q20: - | R20: - | S20: - | T20: - | U20: - | V20: - | W20: - | X20: - | Y20: - | Z20: - | AA20: - | AB20: -
A21: =IF(ResultsSummary!A21="","",ResultsSummary!A21) ->  | B21: =ResultsSummary!B21 -> BAF (Pa / Pa) | C21: 1 | D21: 1 | E21: 1 | F21: 1 | G21: 1 | H21: 1 | I21: 1 | J21: 1 | K21: 1 | L21: 1 | M21: 1 | N21: 1 | O21: 1 | P21: 1 | Q21: 1 | R21: 1 | S21: 1 | T21: 1 | U21: 1 | V21: 1 | W21: 1 | X21: 1 | Y21: 1 | Z21: 1 | AA21: 1 | AB21: 1
A22: =IF(ResultsSummary!A22="","",ResultsSummary!A22) ->  | B22: =ResultsSummary!B22 -> BMF (g / g ) | C22: - | D22: - | E22: - | F22: - | G22: - | H22: - | I22: - | J22: - | K22: - | L22: - | M22: - | N22: - | O22: - | P22: - | Q22: - | R22: - | S22: - | T22: - | U22: - | V22: - | W22: - | X22: - | Y22: - | Z22: - | AA22: - | AB22: -
A23: =IF(ResultsSummary!A23="","",ResultsSummary!A23) ->  | B23: =ResultsSummary!B23 -> BMF (Pa / Pa) | C23: - | D23: - | E23: - | F23: - | G23: - | H23: - | I23: - | J23: - | K23: - | L23: - | M23: - | N23: - | O23: - | P23: - | Q23: - | R23: - | S23: - | T23: - | U23: - | V23: - | W23: - | X23: - | Y23: - | Z23: - | AA23: - | AB23: -
A24: =IF(ResultsSummary!A24="","",ResultsSummary!A24) ->  | B24: =ResultsSummary!B24 -> t90 (d) | C24: - | D24: - | E24: - | F24: - | G24: - | H24: - | I24: - | J24: - | K24: - | L24: - | M24: - | N24: - | O24: - | P24: - | Q24: - | R24: - | S24: - | T24: - | U24: - | V24: - | W24: - | X24: - | Y24: - | Z24: - | AA24: - | AB24: -
A25: =IF(ResultsSummary!A25="","",ResultsSummary!A25) -> Aquatic Food Chain | B25: =ResultsSummary!B25 -> Concentration (ng / g ww) | C25: 17.48396387 | D25: 0.0007645460696 | E25: 0.002467168392 | F25: 0.03095197431 | G25: 0.0005725288779 | H25: 0.0002499177522 | I25: 0.0007515399146 | J25: 0.004640833817 | K25: 0.008169063774 | L25: 0.05545404354 | M25: 0.3324277342 | N25: 0.3833379003 | O25: 0.3164168805 | P25: 1.217117129 | Q25: 0.654935193 | R25: 0.3055100536 | S25: 0.1449789091 | T25: 3.555052916 | U25: 23.61177137 | V25: 19.13084416 | W25: 136.7202144 | X25: 0.2736632302 | Y25: 41.04948167 | Z25: 3.472589932 | AA25: 1.395994329e-05 | AB25: 2.69952453e-07
A26: =IF(ResultsSummary!A26="","",ResultsSummary!A26) -> Amphipod | B26: =ResultsSummary!B26 -> Concentration (ng / g lipid) | C26: 380.086171 | D26: 0.01662056673 | E26: 0.05363409547 | F26: 0.6728690068 | G26: 0.01244627995 | H26: 0.005432994613 | I26: 0.01633782423 | J26: 0.1008876917 | K26: 0.1775883429 | L26: 1.205522686 | M26: 7.226689873 | N26: 8.333432616 | O26: 6.878627838 | P26: 26.45906801 | Q26: 14.23772159 | R26: 6.641522904 | S26: 3.151715416 | T26: 77.28375905 | U26: 513.2993777 | V26: 415.8879164 | W26: 2972.178573 | X26: 5.949200658 | Y26: 892.3800364 | Z26: 75.49108549 | AA26: 0.000303477028 | AB26: 5.868531586e-06
A27: =IF(ResultsSummary!A27="","",ResultsSummary!A27) ->  | B27: =ResultsSummary!B27 -> Fugacity (pPa) | C27: 1 | D27: 1 | E27: 1 | F27: 1 | G27: 1 | H27: 1 | I27: 1 | J27: 1 | K27: 1 | L27: 1 | M27: 1 | N27: 1 | O27: 1 | P27: 1 | Q27: 1 | R27: 1 | S27: 1 | T27: 1 | U27: 1 | V27: 1 | W27: 1 | X27: 1 | Y27: 1 | Z27: 1 | AA27: 1 | AB27: 1
A28: =IF(ResultsSummary!A28="","",ResultsSummary!A28) ->  | B28: =ResultsSummary!B28 -> BAF (L / kg) | C28: 9.325995506e+10 | D28: 617.9118098 | E28: 624.3745911 | F28: 691.1000109 | G28: 25482.67996 | H28: 26076.23036 | I28: 11722.8166 | J28: 58802.8501 | K28: 94936.43006 | L28: 154904.7806 | M28: 479992.4227 | N28: 418490.4144 | O28: 481675.453 | P28: 1057523.134 | Q28: 154592.6783 | R28: 929218.961 | S28: 97937.78085 | T28: 238710.3754 | U28: 552745.2407 | V28: 321499.2226 | W28: 1163407.898 | X28: 9676799.918 | Y28: 96767992.43 | Z28: 2.886462143 | AA28: 178.4531809 | AB28: 3.632008132
A29: =IF(ResultsSummary!A29="","",ResultsSummary!A29) ->  | B29: =ResultsSummary!B29 -> BAF (L / kg lipid) | C29: 2.027390327e+12 | D29: 13432.86543 | E29: 13573.36068 | F29: 15023.91328 | G29: 553971.3035 | H29: 566874.573 | I29: 254843.8391 | J29: 1278322.828 | K29: 2063835.436 | L29: 3367495.23 | M29: 10434617.88 | N29: 9097617.704 | O29: 10471205.5 | P29: 22989633.36 | Q29: 3360710.398 | R29: 20200412.2 | S29: 2129082.192 | T29: 5189355.987 | U29: 12016200.89 | V29: 6989113.534 | W29: 25291476.04 | X29: 210365215.6 | Y29: 2103652009 | Z29: 62.74917703 | AA29: 3879.416977 | AB29: 78.95669851
A30: =IF(ResultsSummary!A30="","",ResultsSummary!A30) ->  | B30: =ResultsSummary!B30 -> BSAF (g OC / g lipid) | C30: - | D30: - | E30: - | F30: - | G30: - | H30: - | I30: - | J30: - | K30: - | L30: - | M30: - | N30: - | O30: - | P30: - | Q30: - | R30: - | S30: - | T30: - | U30: - | V30: - | W30: - | X30: - | Y30: - | Z30: - | AA30: - | AB30: -
A31: =IF(ResultsSummary!A31="","",ResultsSummary!A31) ->  | B31: =ResultsSummary!B31 -> BAF (Pa / Pa) | C31: 1 | D31: 1 | E31: 1 | F31: 1 | G31: 1 | H31: 1 | I31: 1 | J31: 1 | K31: 1 | L31: 1 | M31: 1 | N31: 1 | O31: 1 | P31: 1 | Q31: 1 | R31: 1 | S31: 1 | T31: 1 | U31: 1 | V31: 1 | W31: 1 | X31: 1 | Y31: 1 | Z31: 1 | AA31: 1 | AB31: 1
A32: =IF(ResultsSummary!A32="","",ResultsSummary!A32) ->  | B32: =ResultsSummary!B32 -> BMF (g / g ) | C32: - | D32: - | E32: - | F32: - | G32: - | H32: - | I32: - | J32: - | K32: - | L32: - | M32: - | N32: - | O32: - | P32: - | Q32: - | R32: - | S32: - | T32: - | U32: - | V32: - | W32: - | X32: - | Y32: - | Z32: - | AA32: - | AB32: -
A33: =IF(ResultsSummary!A33="","",ResultsSummary!A33) ->  | B33: =ResultsSummary!B33 -> BMF (Pa / Pa) | C33: - | D33: - | E33: - | F33: - | G33: - | H33: - | I33: - | J33: - | K33: - | L33: - | M33: - | N33: - | O33: - | P33: - | Q33: - | R33: - | S33: - | T33: - | U33: - | V33: - | W33: - | X33: - | Y33: - | Z33: - | AA33: - | AB33: -
A34: =IF(ResultsSummary!A34="","",ResultsSummary!A34) ->  | B34: =ResultsSummary!B34 -> t90 (d) | C34: - | D34: - | E34: - | F34: - | G34: - | H34: - | I34: - | J34: - | K34: - | L34: - | M34: - | N34: - | O34: - | P34: - | Q34: - | R34: - | S34: - | T34: - | U34: - | V34: - | W34: - | X34: - | Y34: - | Z34: - | AA34: - | AB34: -
A35: =IF(ResultsSummary!A35="","",ResultsSummary!A35) -> Aquatic Food Chain | B35: =ResultsSummary!B35 -> Concentration (ng / g ww) | C35: 3.988705762e-05 | D35: 0.0004784075035 | E35: 0.001543690777 | F35: 0.0193516918 | G35: 0.000305553993 | H35: 0.0001329682566 | I35: 0.0004336528847 | J35: 0.002133636058 | K35: 0.003317308792 | L35: 0.01922220764 | M35: 0.07385401602 | N35: 0.090055124 | O35: 0.07002110661 | P35: 0.188058077 | Q35: 0.2274567256 | R35: 0.05123805085 | S35: 0.05832958168 | T35: 1.050967329 | U35: 4.935222475 | V35: 5.020405715 | W35: 20.65565223 | X35: 0.01302859476 | Y35: 0.2279203724 | Z35: 2.416002654 | AA35: 6.043968219e-06 | AB35: 1.841517982e-07
A36: =IF(ResultsSummary!A36="","",ResultsSummary!A36) -> benthic Filter Feeder | B36: =ResultsSummary!B36 -> Concentration (ng / g lipid) | C36: 0.001445183247 | D36: 0.0173336052 | E36: 0.05593082527 | F36: 0.7011482535 | G36: 0.01107079685 | H36: 0.004817690457 | I36: 0.01571206104 | J36: 0.07730565429 | K36: 0.1201923475 | L36: 0.6964567986 | M36: 2.675870146 | N36: 3.262866812 | O36: 2.536996616 | P36: 6.81369844 | Q36: 8.241185709 | R36: 1.856451118 | S36: 2.113390641 | T36: 38.0785264 | U36: 178.8124085 | V36: 181.8987578 | W36: 748.3931968 | X36: 0.4720505349 | Y36: 8.257984507 | Z36: 87.53632805 | AA36: 0.0002189843558 | AB36: 6.6721666e-06
A37: =IF(ResultsSummary!A37="","",ResultsSummary!A37) ->  | B37: =ResultsSummary!B37 -> Fugacity (pPa) | C37: 3.617162845e-06 | D37: 0.991302184 | E37: 0.9912359074 | F37: 0.9905602121 | G37: 0.8461701328 | H37: 0.8435643064 | I37: 0.9148437889 | J37: 0.7289478465 | K37: 0.64385371 | L37: 0.5495972521 | M37: 0.3522511006 | N37: 0.3724792565 | O37: 0.3508688544 | P37: 0.2449826705 | Q37: 0.5506491326 | R37: 0.2659149856 | S37: 0.6379074823 | T37: 0.4687250495 | U37: 0.3314009273 | V37: 0.4160829712 | W37: 0.2395421536 | X37: 0.07548437524 | Y37: 0.008803420096 | Z37: 0.935152804 | AA37: 0.6844703331 | AB37: 0.9464936066
A38: =IF(ResultsSummary!A38="","",ResultsSummary!A38) ->  | B38: =ResultsSummary!B38 -> BAF (L / kg) | C38: 212758.6873 | D38: 386.6524962 | E38: 390.6670097 | F38: 432.0872807 | G38: 13599.89847 | H38: 13873.80792 | I38: 6764.289078 | J38: 27034.77139 | K38: 38551.96419 | L38: 53695.12603 | M38: 106637.8176 | N38: 98313.27956 | O38: 106591.8107 | P38: 163399.0372 | Q38: 53689.50207 | R38: 155842.2311 | S38: 39403.45407 | T38: 70569.07773 | U38: 115532.2357 | V38: 84369.3316 | W38: 175767.344 | X38: 460694.3528 | Y38: 537288.0721 | Z38: 2.008212987 | AA38: 77.26144238 | AB38: 2.477624563
A39: =IF(ResultsSummary!A39="","",ResultsSummary!A39) ->  | B39: =ResultsSummary!B39 -> BAF (L / kg lipid) | C39: 7708648.09 | D39: 14009.14841 | E39: 14154.6018 | F39: 15655.33626 | G39: 492749.9447 | H39: 502674.2 | I39: 245082.9376 | J39: 979520.7027 | K39: 1396810.297 | L39: 1945475.581 | M39: 3863689.043 | N39: 3562075.346 | O39: 3862022.128 | P39: 5920254.972 | Q39: 1945271.814 | R39: 5646457.649 | S39: 1427661.379 | T39: 2556850.642 | U39: 4185950.568 | V39: 3056859.841 | W39: 6368382.027 | X39: 16691824.38 | Y39: 19466959.13 | Z39: 72.7613401 | AA39: 2799.327622 | AB39: 89.76900591
A40: =IF(ResultsSummary!A40="","",ResultsSummary!A40) ->  | B40: =ResultsSummary!B40 -> BSAF (g OC / g lipid) | C40: 1.771456832e-09 | D40: 1.15537819e-05 | E40: 1.21330216e-05 | F40: 1.453145353e-05 | G40: 1.982423644e-05 | H40: 1.984983835e-05 | I40: 2.057749677e-05 | J40: 2.22630005e-05 | K40: 2.356290861e-05 | L40: 2.189932917e-05 | M40: 1.879171936e-05 | N40: 1.897866304e-05 | O40: 1.865836138e-05 | P40: 1.446849379e-05 | Q40: 2.215718045e-05 | R40: 1.496983056e-05 | S40: 2.461247038e-05 | T40: 2.364623993e-05 | U40: 1.846131755e-05 | V40: 2.41875956e-05 | W40: 1.653937319e-05 | X40: 7.794647022e-06 | Y40: 1.407963083e-06 | Z40: 6.875426843e-06 | AA40: 6.245709272e-06 | AB40: 3.946994638e-06
A41: =IF(ResultsSummary!A41="","",ResultsSummary!A41) ->  | B41: =ResultsSummary!B41 -> BAF (Pa / Pa) | C41: 3.617162845e-06 | D41: 0.991302184 | E41: 0.9912359074 | F41: 0.9905602121 | G41: 0.8461701328 | H41: 0.8435643064 | I41: 0.9148437889 | J41: 0.7289478465 | K41: 0.64385371 | L41: 0.5495972521 | M41: 0.3522511006 | N41: 0.3724792565 | O41: 0.3508688544 | P41: 0.2449826705 | Q41: 0.5506491326 | R41: 0.2659149856 | S41: 0.6379074823 | T41: 0.4687250495 | U41: 0.3314009273 | V41: 0.4160829712 | W41: 0.2395421536 | X41: 0.07548437524 | Y41: 0.008803420096 | Z41: 0.935152804 | AA41: 0.6844703331 | AB41: 0.9464936066
A42: =IF(ResultsSummary!A42="","",ResultsSummary!A42) ->  | B42: =ResultsSummary!B42 -> BMF (g / g ) | C42: 0.0002879128265 | D42: 2.207620495 | E42: 2.211799445 | F42: 2.252953066 | G42: 3.813417134 | H42: 3.818337606 | I42: 3.557587532 | J42: 3.850714569 | K42: 3.725250376 | L42: 3.489883174 | M42: 2.772929152 | N42: 2.856764048 | O42: 2.763885551 | P42: 2.240793144 | Q42: 3.495222933 | R42: 2.37321254 | S42: 3.71273628 | T42: 3.231220697 | U42: 2.679694098 | V42: 3.035264292 | W42: 2.231116845 | X42: 1.051470309 | Y42: 0.1899290187 | Z42: 1.128712884 | AA42: 1.209306877 | AB42: 1.092720798
A43: =IF(ResultsSummary!A43="","",ResultsSummary!A43) ->  | B43: =ResultsSummary!B43 -> BMF (Pa / Pa) | C43: 3.617162845e-06 | D43: 0.991302184 | E43: 0.9912359074 | F43: 0.9905602121 | G43: 0.8461701328 | H43: 0.8435643064 | I43: 0.9148437889 | J43: 0.7289478465 | K43: 0.64385371 | L43: 0.5495972521 | M43: 0.3522511006 | N43: 0.3724792565 | O43: 0.3508688544 | P43: 0.2449826705 | Q43: 0.5506491326 | R43: 0.2659149856 | S43: 0.6379074823 | T43: 0.4687250495 | U43: 0.3314009273 | V43: 0.4160829712 | W43: 0.2395421536 | X43: 0.07548437524 | Y43: 0.008803420096 | Z43: 0.935152804 | AA43: 0.6844703331 | AB43: 0.9464936066
A44: =IF(ResultsSummary!A44="","",ResultsSummary!A44) ->  | B44: =ResultsSummary!B44 -> t90 (d) | C44: 362.4379459 | D44: 1.713588606 | E44: 1.731237301 | F44: 1.913269447 | G44: 55.78737695 | H44: 56.83224293 | I44: 28.73831575 | J44: 103.5313467 | K44: 138.7821513 | L44: 177.8639803 | M44: 259.4130818 | N44: 251.0548513 | O44: 259.7834274 | P44: 300.0491512 | Q44: 177.5654528 | R44: 293.5192093 | S44: 141.2311855 | T44: 211.5990282 | U44: 267.7180466 | V44: 233.3267704 | W44: 303.0219184 | X44: 350.4189623 | Y44: 361.3894065 | Z44: 0.02122731923 | AA44: 0.3473187426 | AB44: 0.0222519126
A45: =IF(ResultsSummary!A45="","",ResultsSummary!A45) -> Aquatic Food Chain | B45: =ResultsSummary!B45 -> Concentration (ng / g ww) | C45: 0.005826481093 | D45: 0.0003715776047 | E45: 0.001199344518 | F45: 0.015082037 | G45: 0.00043452905 | H45: 0.0001907021413 | I45: 0.0004807298725 | J45: 0.004261230316 | K45: 0.008238349494 | L45: 0.06014348626 | M45: 0.4014034172 | N45: 0.4581730517 | O45: 0.3811667724 | P45: 1.479485072 | Q45: 0.7122494619 | R45: 0.3781039833 | S45: 0.1469013265 | T45: 4.067228426 | U45: 28.68368351 | V45: 22.47680859 | W45: 168.7097487 | X45: 0.2676114124 | Y45: 11.31752403 | Z45: 1.947483253 | AA45: 4.087436752e-06 | AB45: 1.468895595e-07
A46: =IF(ResultsSummary!A46="","",ResultsSummary!A46) -> benthic Predator | B46: =ResultsSummary!B46 -> Concentration (ng / g lipid) | C46: 0.3166565811 | D46: 0.02019443504 | E46: 0.06518176728 | F46: 0.8196759239 | G46: 0.02361570924 | H46: 0.01036424681 | I46: 0.0261266235 | J46: 0.2315886042 | K46: 0.4477363856 | L46: 3.268667732 | M46: 21.81540311 | N46: 24.90070933 | O46: 20.71558546 | P46: 80.40679741 | Q46: 38.70920989 | R46: 20.54912953 | S46: 7.983767744 | T46: 221.0450232 | U46: 1558.895843 | V46: 1221.565684 | W46: 9169.008082 | X46: 14.5440985 | Y46: 615.0828277 | Z46: 105.8414811 | AA46: 0.0002221433018 | AB46: 7.983128234e-06
A47: =IF(ResultsSummary!A47="","",ResultsSummary!A47) ->  | B47: =ResultsSummary!B47 -> Fugacity (pPa) | C47: 0.0007035217567 | D47: 1.024535955 | E47: 1.024785588 | F47: 1.027352844 | G47: 1.602201851 | H47: 1.61084822 | I47: 1.350289632 | J47: 1.938400264 | K47: 2.128996342 | L47: 2.289622885 | M47: 2.549142397 | N47: 2.523236411 | O47: 2.543113089 | P47: 2.566190758 | Q47: 2.295843998 | R47: 2.612741351 | S47: 2.139084817 | T47: 2.415249244 | U47: 2.564582884 | V47: 2.480335296 | W47: 2.605062844 | X47: 2.064425583 | Y47: 0.5820426844 | Z47: 0.9033292203 | AA47: 0.6150377385 | AB47: 0.9212774024
A48: =IF(ResultsSummary!A48="","",ResultsSummary!A48) ->  | B48: =ResultsSummary!B48 -> BAF (L / kg) | C48: 31078614.04 | D48: 300.3117789 | E48: 303.5221453 | F48: 336.7538313 | G48: 19340.44752 | H48: 19897.71804 | I48: 7498.614538 | J48: 53992.98864 | K48: 95741.63114 | L48: 168004.2238 | M48: 579586.415 | N48: 500188.0328 | O48: 580242.9928 | P48: 1285488.187 | Q48: 168121.2937 | R48: 1150015.806 | S48: 99236.4338 | T48: 273101.3145 | U48: 671477.3447 | V48: 377729.0969 | W48: 1435619.853 | X48: 9462806.132 | Y48: 26679364.39 | Z48: 1.618773536 | AA48: 52.25064853 | AB48: 1.976289042
A49: =IF(ResultsSummary!A49="","",ResultsSummary!A49) ->  | B49: =ResultsSummary!B49 -> BAF (L / kg lipid) | C49: 1689055111 | D49: 16321.29233 | E49: 16495.76877 | F49: 18301.83866 | G49: 1051111.278 | H49: 1081397.72 | I49: 407533.3988 | J49: 2934401.556 | K49: 5203349.518 | L49: 9130664.337 | M49: 31499261.69 | N49: 27184132.22 | O49: 31534945.26 | P49: 69863488.43 | Q49: 9137026.831 | R49: 62500859.03 | S49: 5393284.445 | T49: 14842462.74 | U49: 36493333.95 | V49: 20528755.27 | W49: 78022818.12 | X49: 514282941.9 | Y49: 1449965456 | Z49: 87.97682261 | AA49: 2839.709159 | AB49: 107.4070131
A50: =IF(ResultsSummary!A50="","",ResultsSummary!A50) ->  | B50: =ResultsSummary!B50 -> BSAF (g OC / g lipid) | C50: 3.881469461e-07 | D50: 1.346067915e-05 | E50: 1.41398198e-05 | F50: 1.698796587e-05 | G50: 4.22881397e-05 | H50: 4.270274848e-05 | I50: 3.421705843e-05 | J50: 6.669443856e-05 | K50: 8.777573409e-05 | L50: 0.0001027797141 | M50: 0.0001532021027 | N50: 0.0001448364886 | O50: 0.0001523529346 | P50: 0.0001707391748 | Q50: 0.0001040732461 | R50: 0.000165701636 | S50: 9.297866817e-05 | T50: 0.000137265912 | U50: 0.000160946723 | V50: 0.0001624350662 | W50: 0.0002026336518 | X50: 0.0002401567325 | Y50: 0.0001048698885 | Z50: 8.313181243e-06 | AA50: 6.335806385e-06 | AB50: 4.722508628e-06
A51: =IF(ResultsSummary!A51="","",ResultsSummary!A51) ->  | B51: =ResultsSummary!B51 -> BAF (Pa / Pa) | C51: 0.0007035217567 | D51: 1.024535955 | E51: 1.024785588 | F51: 1.027352844 | G51: 1.602201851 | H51: 1.61084822 | I51: 1.350289632 | J51: 1.938400264 | K51: 2.128996342 | L51: 2.289622885 | M51: 2.549142397 | N51: 2.523236411 | O51: 2.543113089 | P51: 2.566190758 | Q51: 2.295843998 | R51: 2.612741351 | S51: 2.139084817 | T51: 2.415249244 | U51: 2.564582884 | V51: 2.480335296 | W51: 2.605062844 | X51: 2.064425583 | Y51: 0.5820426844 | Z51: 0.9033292203 | AA51: 0.6150377385 | AB51: 0.9212774024
A52: =IF(ResultsSummary!A52="","",ResultsSummary!A52) ->  | B52: =ResultsSummary!B52 -> BMF (g / g ) | C52: 0.001097298696 | D52: 1.124310025 | E52: 1.125243616 | F52: 1.13449822 | G52: 2.077587193 | H52: 2.090428539 | I52: 1.70262437 | J52: 2.581273652 | K52: 2.874228069 | L52: 3.131396197 | M52: 3.578926532 | N52: 3.532224519 | O52: 3.570724596 | P52: 3.659374071 | Q52: 3.139743478 | R52: 3.716797716 | S52: 2.890317808 | T52: 3.33844283 | U52: 3.611191709 | V52: 3.452058506 | W52: 3.721282034 | X52: 3.045144234 | Y52: 0.8790406781 | Z52: 0.9543333619 | AA52: 0.6268761291 | AB52: 0.9201809137
A53: =IF(ResultsSummary!A53="","",ResultsSummary!A53) ->  | B53: =ResultsSummary!B53 -> BMF (Pa / Pa) | C53: 0.0007035217567 | D53: 1.024535955 | E53: 1.024785588 | F53: 1.027352844 | G53: 1.602201851 | H53: 1.61084822 | I53: 1.350289632 | J53: 1.938400264 | K53: 2.128996342 | L53: 2.289622885 | M53: 2.549142397 | N53: 2.523236411 | O53: 2.543113089 | P53: 2.566190758 | Q53: 2.295843998 | R53: 2.612741351 | S53: 2.139084817 | T53: 2.415249244 | U53: 2.564582884 | V53: 2.480335296 | W53: 2.605062844 | X53: 2.064425583 | Y53: 0.5820426844 | Z53: 0.9033292203 | AA53: 0.6150377385 | AB53: 0.9212774024
A54: =IF(ResultsSummary!A54="","",ResultsSummary!A54) ->  | B54: =ResultsSummary!B54 -> t90 (d) | C54: 534.8034213 | D54: 2.378969771 | E54: 2.403225565 | F54: 2.653136866 | G54: 60.87943019 | H54: 61.77661346 | I54: 34.99586645 | J54: 96.11044281 | K54: 116.5045867 | L54: 136.3448232 | M54: 171.024442 | N54: 167.9304829 | O54: 171.8030538 | P54: 196.1525594 | Q54: 135.7150653 | R54: 187.1935734 | S54: 117.8916002 | T54: 150.829929 | U54: 174.9679061 | V54: 160.0594928 | W54: 194.3307451 | X54: 291.4135421 | Y54: 469.7867109 | Z54: 0.03187402112 | AA54: 0.4320501387 | AB54: 0.03306190082
A55: =IF(ResultsSummary!A55="","",ResultsSummary!A55) -> Aquatic Food Chain | B55: =ResultsSummary!B55 -> Concentration (ng / g ww) | C55: 0.07495528357 | D55: 0.0006454557099 | E55: 0.002084566655 | F55: 0.02637162321 | G55: 0.001445537484 | H55: 0.0006372901396 | I55: 0.001342338049 | J55: 0.01615977523 | K55: 0.03264181676 | L55: 0.2449172761 | M55: 1.670398474 | N55: 1.906224296 | O55: 1.588249896 | P55: 6.265707106 | Q55: 2.897848499 | R55: 1.581113419 | S55: 0.5833708525 | T55: 16.7664246 | U55: 119.5674632 | V55: 93.15236487 | W55: 709.5299491 | X55: 1.31457887 | Y55: 98.36289947 | Z55: 2.52138686 | AA55: 5.74276503e-06 | AB55: 1.977728347e-07
A56: =IF(ResultsSummary!A56="","",ResultsSummary!A56) -> Fish 1 | B56: =ResultsSummary!B56 -> Concentration (ng / g lipid) | C56: 2.327803838 | D56: 0.02004520838 | E56: 0.06473809488 | F56: 0.8189945096 | G56: 0.04489246845 | H56: 0.01979161924 | I56: 0.04168751705 | J56: 0.5018563736 | K56: 1.013721017 | L56: 7.606126586 | M56: 51.875729 | N56: 59.19951229 | O56: 49.32453093 | P56: 194.5871772 | Q56: 89.99529499 | R56: 49.10290121 | S56: 18.11710722 | T56: 520.6964162 | U56: 3713.275255 | V56: 2892.930586 | W56: 22035.09159 | X56: 40.82543076 | Y56: 3054.748431 | Z56: 78.30393974 | AA56: 0.0001783467401 | AB56: 6.142013501e-06
A57: =IF(ResultsSummary!A57="","",ResultsSummary!A57) ->  | B57: =ResultsSummary!B57 -> Fugacity (pPa) | C57: 0.005519231836 | D57: 1.08660782 | E57: 1.087497163 | F57: 1.096654425 | G57: 3.250466316 | H57: 3.282871327 | I57: 2.299431807 | J57: 4.48285269 | K57: 5.144197454 | L57: 5.685937263 | M57: 6.469027302 | N57: 6.401892389 | O57: 6.46212479 | P57: 6.627564135 | Q57: 5.69630467 | R57: 6.662753305 | S57: 5.18030719 | T57: 6.071701347 | U57: 6.51929469 | V57: 6.268676129 | W57: 6.681196276 | X57: 6.184242023 | Y57: 3.084891753 | Z57: 0.8882407646 | AA57: 0.52915865 | AB57: 0.9054904146
A58: =IF(ResultsSummary!A58="","",ResultsSummary!A58) ->  | B58: =ResultsSummary!B58 -> BAF (L / kg) | C58: 399813590.9 | D58: 521.6620969 | E58: 527.5482847 | F58: 588.829291 | G58: 64339.40801 | H58: 66494.374 | I58: 20938.31939 | J58: 204756.4894 | K58: 379345.4966 | L58: 684149.5134 | M58: 2411888.443 | N58: 2081027.195 | O58: 2417762.879 | P58: 5444118.781 | Q58: 684016.0148 | R58: 4809008.906 | S58: 394085.2297 | T58: 1125811.515 | U58: 2799042.274 | V58: 1565451.72 | W58: 6037678.85 | X58: 46483835.97 | Y58: 231875773.4 | Z58: 2.095809716 | AA58: 73.41109241 | AB58: 2.660885412
A59: =IF(ResultsSummary!A59="","",ResultsSummary!A59) ->  | B59: =ResultsSummary!B59 -> BAF (L / kg lipid) | C59: 1.241657115e+10 | D59: 16200.68624 | E59: 16383.4871 | F59: 18286.62394 | G59: 1998118.261 | H59: 2065042.671 | I59: 650258.3661 | J59: 6358897.188 | K59: 11780916.04 | L59: 21246879.3 | M59: 74903367.8 | N59: 64628173.76 | O59: 75085803.69 | P59: 169072011.8 | Q59: 21242733.38 | R59: 149348102.7 | S59: 12238671.73 | T59: 34963090.54 | U59: 86926778.69 | V59: 48616513.04 | W59: 187505554.3 | X59: 1443597390 | Y59: 7201110975 | Z59: 65.08725826 | AA59: 2279.84759 | AB59: 82.63619291
A60: =IF(ResultsSummary!A60="","",ResultsSummary!A60) ->  | B60: =ResultsSummary!B60 -> BSAF (g OC / g lipid) | C60: 2.853343352e-06 | D60: 1.336121154e-05 | E60: 1.404357436e-05 | F60: 1.69738434e-05 | G60: 8.038797216e-05 | H60: 8.154538906e-05 | I60: 5.459657681e-05 | J60: 0.0001445279624 | K60: 0.0001987332487 | L60: 0.0002391664065 | M60: 0.0003643054736 | N60: 0.0003443375598 | O60: 0.000362757647 | P60: 0.0004131945946 | Q60: 0.0002419605698 | R60: 0.0003959501569 | S60: 0.0002109911704 | T60: 0.0003233452959 | U60: 0.0003833735824 | V60: 0.0003846812147 | W60: 0.0004869720953 | X60: 0.0006741223634 | Y60: 0.0005208259975 | Z60: 6.150280932e-06 | AA60: 5.086673357e-06 | AB60: 3.633376654e-06
A61: =IF(ResultsSummary!A61="","",ResultsSummary!A61) ->  | B61: =ResultsSummary!B61 -> BAF (Pa / Pa) | C61: 0.005519231836 | D61: 1.08660782 | E61: 1.087497163 | F61: 1.096654425 | G61: 3.250466316 | H61: 3.282871327 | I61: 2.299431807 | J61: 4.48285269 | K61: 5.144197454 | L61: 5.685937263 | M61: 6.469027302 | N61: 6.401892389 | O61: 6.46212479 | P61: 6.627564135 | Q61: 5.69630467 | R61: 6.662753305 | S61: 5.18030719 | T61: 6.071701347 | U61: 6.51929469 | V61: 6.268676129 | W61: 6.681196276 | X61: 6.184242023 | Y61: 3.084891753 | Z61: 0.8882407646 | AA61: 0.52915865 | AB61: 0.9054904146
A62: =IF(ResultsSummary!A62="","",ResultsSummary!A62) ->  | B62: =ResultsSummary!B62 -> BMF (g / g ) | C62: 0.004287087536 | D62: 0.8442338997 | E62: 0.8449227309 | F62: 0.8520174818 | G62: 2.524828947 | H62: 2.549999486 | I62: 1.786116776 | J62: 3.482084441 | K62: 3.995784298 | L62: 4.416581018 | M62: 5.024846913 | N62: 4.972699788 | O62: 5.019485349 | P62: 5.147990246 | Q62: 4.424633963 | R62: 5.175323694 | S62: 4.023832542 | T62: 4.716223639 | U62: 5.063892129 | V62: 4.869223967 | W62: 5.189649185 | X62: 4.80363719 | Y62: 2.396203203 | Z62: 0.7260825231 | AA62: 0.4113745243 | AB62: 0.7326209952
A63: =IF(ResultsSummary!A63="","",ResultsSummary!A63) ->  | B63: =ResultsSummary!B63 -> BMF (Pa / Pa) | C63: 0.005519231836 | D63: 1.08660782 | E63: 1.087497163 | F63: 1.096654425 | G63: 3.250466316 | H63: 3.282871327 | I63: 2.299431807 | J63: 4.48285269 | K63: 5.144197454 | L63: 5.685937263 | M63: 6.469027302 | N63: 6.401892389 | O63: 6.46212479 | P63: 6.627564135 | Q63: 5.69630467 | R63: 6.662753305 | S63: 5.18030719 | T63: 6.071701347 | U63: 6.51929469 | V63: 6.268676129 | W63: 6.681196276 | X63: 6.184242023 | Y63: 3.084891753 | Z63: 0.8882407646 | AA63: 0.52915865 | AB63: 0.9054904146
A64: =IF(ResultsSummary!A64="","",ResultsSummary!A64) ->  | B64: =ResultsSummary!B64 -> t90 (d) | C64: 1989.423236 | D64: 3.523568555 | E64: 3.559702562 | F64: 3.93214356 | G64: 91.81193811 | H64: 93.14068391 | I64: 52.92034739 | J64: 142.4144741 | K64: 169.719822 | L64: 194.9789688 | M64: 233.6712219 | N64: 230.8028073 | O64: 235.0422977 | P64: 265.547432 | Q64: 193.8465908 | R64: 251.0274183 | S64: 171.5760206 | T64: 211.6119508 | U64: 238.117356 | V64: 221.9445559 | W64: 260.443925 | X64: 438.1507937 | Y64: 1219.313741 | Z64: 0.03703865413 | AA64: 0.5370481309 | AB64: 0.03995262291
A65: =IF(ResultsSummary!A65="","",ResultsSummary!A65) -> Aquatic Food Chain | B65: =ResultsSummary!B65 -> Concentration (ng / g ww) | C65: 0.004584816562 | D65: 0.0007814978425 | E65: 0.002524372727 | F65: 0.03199491573 | G65: 0.003896843884 | H65: 0.00173452617 | I65: 0.002611766356 | J65: 0.05942482142 | K65: 0.1368787985 | L65: 1.127585401 | M65: 8.658628594 | N65: 9.784903726 | O65: 8.219251742 | P65: 32.91259843 | Q65: 13.37258975 | R65: 8.398154933 | S65: 2.462208388 | T65: 82.07307178 | U65: 623.7549257 | V65: 469.4327482 | W65: 3766.400311 | X65: 6.036502203 | Y65: 180.3328211 | Z65: 2.34892432 | AA65: 3.355289424e-06 | AB65: 1.909376144e-07
A66: =IF(ResultsSummary!A66="","",ResultsSummary!A66) -> Fish 2 | B66: =ResultsSummary!B66 -> Concentration (ng / g lipid) | C66: 0.1132612787 | D66: 0.01930577674 | E66: 0.06236098635 | F66: 0.7903882345 | G66: 0.09626590623 | H66: 0.04284896666 | I66: 0.06451991987 | J66: 1.468004482 | K66: 3.381393243 | L66: 27.85537057 | M66: 213.8989277 | N66: 241.72193 | O66: 203.0447565 | P66: 813.0582617 | Q66: 330.3505372 | R66: 207.4643017 | S66: 60.82530602 | T66: 2027.496833 | U66: 15408.96556 | V66: 11596.6588 | W66: 93043.48594 | X66: 149.1230781 | Y66: 4454.862182 | Z66: 58.02678657 | AA66: 8.288758459e-05 | AB66: 4.716838301e-06
A67: =IF(ResultsSummary!A67="","",ResultsSummary!A67) ->  | B67: =ResultsSummary!B67 -> Fugacity (pPa) | C67: 0.0002822337481 | D67: 1.100141668 | E67: 1.101232962 | F67: 1.112544415 | G67: 7.32558702 | H67: 7.469827509 | I67: 3.740322291 | J67: 13.78157086 | K67: 18.03394586 | L67: 21.88482584 | M67: 28.03359133 | N67: 27.47272083 | O67: 27.95757598 | P67: 29.10426757 | Q67: 21.97576807 | R67: 29.58593193 | S67: 18.27876473 | T67: 24.84743092 | U67: 28.4323198 | V67: 26.40986152 | W67: 29.6497219 | X67: 23.74082428 | Y67: 4.728179747 | Z67: 0.7271622482 | AA67: 0.2586812446 | AB67: 0.76054493
A68: =IF(ResultsSummary!A68="","",ResultsSummary!A68) ->  | B68: =ResultsSummary!B68 -> BAF (L / kg) | C68: 24455540.5 | D68: 631.6123585 | E68: 638.8514845 | F68: 714.3869528 | G68: 173444.5709 | H68: 180979.1565 | I68: 40739.36381 | J68: 752957.1202 | K68: 1590731.183 | L68: 3149785.983 | M68: 12502194.28 | N68: 10682190.34 | O68: 12512012 | P68: 28596947.2 | Q68: 3156502.333 | R68: 25543266.78 | S68: 1663298.661 | T68: 5510942.942 | U68: 14601935.67 | V68: 7888949.508 | W68: 32049831.76 | X68: 213452220 | Y68: 425107561.9 | Z68: 1.952456599 | AA68: 42.89144005 | AB68: 2.56892264
A69: =IF(ResultsSummary!A69="","",ResultsSummary!A69) ->  | B69: =ResultsSummary!B69 -> BAF (L / kg lipid) | C69: 604138846.4 | D69: 15603.0721 | E69: 15781.90426 | F69: 17647.89903 | G69: 4284697.898 | H69: 4470828.964 | I69: 1006407.209 | J69: 18600719.37 | K69: 39296718.94 | L69: 77810918.56 | M69: 308848672.9 | N69: 263888101.2 | O69: 309091205.5 | P69: 706446324 | Q69: 77976836.29 | R69: 631009554.8 | S69: 41089393.8 | T69: 136139894.8 | U69: 360719754.6 | V69: 194885116.3 | W69: 791744855.8 | X69: 5273029150 | Y69: 1.050166902e+10 | Z69: 48.23262349 | AA69: 1059.571147 | AB69: 63.46152767
A70: =IF(ResultsSummary!A70="","",ResultsSummary!A70) ->  | B70: =ResultsSummary!B70 -> BSAF (g OC / g lipid) | C70: 1.388318515e-07 | D70: 1.286834051e-05 | E70: 1.352791043e-05 | F70: 1.638097199e-05 | G70: 0.0001723812759 | H70: 0.0001765462247 | I70: 8.449931802e-05 | J70: 0.0004227657706 | K70: 0.0006628996073 | L70: 0.0008758819364 | M70: 0.001502138894 | N70: 0.001405990291 | O70: 0.001493294243 | P70: 0.001726482102 | Q70: 0.0008881775902 | R70: 0.001672926055 | S70: 0.0007083692971 | T70: 0.001259047581 | U70: 0.001590884036 | V70: 0.00154204073 | W70: 0.002056246561 | X70: 0.002462367206 | Y70: 0.0007595414458 | Z70: 4.557638353e-06 | AA70: 2.364058171e-06 | AB70: 2.790298354e-06
A71: =IF(ResultsSummary!A71="","",ResultsSummary!A71) ->  | B71: =ResultsSummary!B71 -> BAF (Pa / Pa) | C71: 0.0002822337481 | D71: 1.100141668 | E71: 1.101232962 | F71: 1.112544415 | G71: 7.32558702 | H71: 7.469827509 | I71: 3.740322291 | J71: 13.78157086 | K71: 18.03394586 | L71: 21.88482584 | M71: 28.03359133 | N71: 27.47272083 | O71: 27.95757598 | P71: 29.10426757 | Q71: 21.97576807 | R71: 29.58593193 | S71: 18.27876473 | T71: 24.84743092 | U71: 28.4323198 | V71: 26.40986152 | W71: 29.6497219 | X71: 23.74082428 | Y71: 4.728179747 | Z71: 0.7271622482 | AA71: 0.2586812446 | AB71: 0.76054493
A72: =IF(ResultsSummary!A72="","",ResultsSummary!A72) ->  | B72: =ResultsSummary!B72 -> BMF (g / g ) | C72: 0.00501616446 | D72: 1.464832634 | E72: 1.465473905 | F72: 1.472126431 | G72: 4.14344294 | H72: 4.188966166 | I72: 2.830506134 | J72: 5.870217861 | K72: 6.779344027 | L72: 7.504735862 | M72: 8.521645769 | N72: 8.434890844 | O72: 8.509303641 | P72: 8.672835497 | Q72: 7.521380049 | R72: 8.751398956 | S72: 6.827872094 | T72: 8.014631679 | U72: 8.58167087 | V72: 8.2683777 | W72: 8.75667427 | X72: 7.75233812 | Y72: 3.23337438 | Z72: 1.00634414 | AA72: 0.6093266607 | AB72: 1.058720877
A73: =IF(ResultsSummary!A73="","",ResultsSummary!A73) ->  | B73: =ResultsSummary!B73 -> BMF (Pa / Pa) | C73: 0.003559904479 | D73: 1.040191312 | E73: 1.040640271 | F73: 1.045304796 | G73: 2.940588226 | H73: 2.972894937 | I73: 2.008835226 | J73: 4.166040775 | K73: 4.811227969 | L73: 5.326022803 | M73: 6.047702074 | N73: 5.986133898 | O73: 6.038943009 | P73: 6.154996896 | Q73: 5.337835012 | R73: 6.210752644 | S73: 4.845667243 | T73: 5.687885124 | U73: 6.090300499 | V73: 5.867963211 | W73: 6.21449597 | X73: 5.50173035 | Y73: 2.294682336 | Z73: 0.805159487 | AA73: 0.4333229067 | AB73: 0.8274381042
A74: =IF(ResultsSummary!A74="","",ResultsSummary!A74) ->  | B74: =ResultsSummary!B74 -> t90 (d) | C74: 3622.776671 | D74: 10.96261164 | E74: 11.07477767 | F74: 12.23056526 | G74: 268.9897696 | H74: 272.6431378 | I74: 159.1435649 | J74: 403.7418359 | K74: 472.9150595 | L74: 535.2866405 | M74: 627.6906426 | N74: 621.0447977 | O74: 631.1534849 | P74: 704.9098822 | Q74: 532.3042098 | R74: 669.1082603 | S74: 477.5839125 | T74: 575.1608525 | U74: 638.3569747 | V74: 599.8413615 | W74: 692.0217006 | X74: 1109.370294 | Y74: 2579.729713 | Z74: 0.08998204432 | AA74: 0.8266325808 | AB74: 0.1005867591
A75: =IF(ResultsSummary!A75="","",ResultsSummary!A75) -> Cattle | B75: =ResultsSummary!B75 -> Concentration (ng / g ww) | C75: 2.757557599e-07 | D75: 0.0001357033481 | E75: 0.0004215831497 | F75: 0.002455799647 | G75: 9.127763689e-05 | H75: 3.624296885e-05 | I75: 0.0001177423823 | J75: 0.0003812638398 | K75: 0.0005102357774 | L75: 0.0007701900492 | M75: 0.001022057705 | N75: 0.001138259617 | O75: 0.001111301672 | P75: 0.001147587466 | Q75: 0.00125145694 | R75: 0.0009328395877 | S75: 0.001037161385 | T75: 0.002088365499 | U75: 0.005000663979 | V75: 0.004400451364 | W75: 0.01621463744 | X75: 0.0001121215472 | Y75: 7.983536748e-05 | Z75: 0.06113521294 | AA75: 8.998030491e-08 | AB75: 1.342498948e-08
A76: =IF(ResultsSummary!A76="","",ResultsSummary!A76) -> Beef Cattle | B76: =ResultsSummary!B76 -> Concentration (ng / g lipid) | C76: 1.253435272e-06 | D76: 0.0006168334005 | E76: 0.001916287044 | F76: 0.01116272567 | G76: 0.0004148983495 | H76: 0.0001647407675 | I76: 0.000535192647 | J76: 0.001733017454 | K76: 0.002319253534 | L76: 0.00350086386 | M76: 0.004645716839 | N76: 0.00517390735 | O76: 0.005051371235 | P76: 0.005216306664 | Q76: 0.005688440636 | R76: 0.004240179944 | S76: 0.00471436993 | T76: 0.009492570451 | U76: 0.02273029082 | V76: 0.02000205166 | W76: 0.07370289746 | X76: 0.0005096433964 | Y76: 0.000362888034 | Z76: 0.2778873316 | AA76: 4.09001386e-07 | AB76: 6.102267943e-08
A77: =IF(ResultsSummary!A77="","",ResultsSummary!A77) ->  | B77: =ResultsSummary!B77 -> Fugacity (pPa) | C77: 1.011111867e-07 | D77: 0.5499533212 | E77: 0.6604934582 | F77: 0.6002614402 | G77: 0.5204362006 | H77: 0.473398616 | I77: 0.785875439 | J77: 0.4416052084 | K77: 0.5097119786 | L77: 0.08821917092 | M77: 0.02929261285 | N77: 0.02510487653 | O77: 0.03161707542 | P77: 0.006659894266 | Q77: 0.01445202582 | R77: 0.0226338039 | S77: 0.06486885293 | T77: 0.007461751899 | U77: 0.002121850054 | V77: 0.004030802928 | W77: 0.001580944144 | X77: 0.00546153237 | Y77: 2.592564161e-05 | Z77: 0.3876878867 | AA77: 0.02181563118 | AB77: 0.1132424619
A78: =IF(ResultsSummary!A78="","",ResultsSummary!A78) ->  | B78: =ResultsSummary!B78 -> BAF (Lair / kg ww) | C78: 6602.784156 | D78: 1116990.166 | E78: 3470100.324 | F78: 20213974.77 | G78: 767409.0402 | H78: 304709.7064 | I78: 1263676.056 | J78: 3545282.868 | K78: 4183989.291 | L78: 5650023.59 | M78: 7497695.079 | N78: 7551912.584 | O78: 7373057.036 | P78: 6951227.3 | Q78: 8452830.87 | R78: 7001946.582 | S78: 7736487.254 | T78: 10293225.98 | U78: 21203736.24 | V78: 18658724.21 | W78: 60324497.76 | X78: 2684674.205 | Y78: 1274402.391 | Z78: 731079809.2 | AA78: 1005.796748 | AB78: 238.8203893
A79: =IF(ResultsSummary!A79="","",ResultsSummary!A79) ->  | B79: =ResultsSummary!B79 -> BAF (Lair / kg lipid) | C79: 30012.65525 | D79: 5077228.026 | E79: 15773183.29 | F79: 91881703.49 | G79: 3488222.91 | H79: 1385044.12 | I79: 5743982.072 | J79: 16114922.13 | K79: 19018133.14 | L79: 25681925.41 | M79: 34080432.18 | N79: 34326875.38 | O79: 33513895.62 | P79: 31596487.73 | Q79: 38421958.5 | R79: 31827029.92 | S79: 35165851.15 | T79: 46787390.8 | U79: 96380619.26 | V79: 84812382.77 | W79: 274202262.5 | X79: 12203064.57 | Y79: 5792738.14 | Z79: 3323090042 | AA79: 4571.803401 | AB79: 1085.547224
A80: =IF(ResultsSummary!A80="","",ResultsSummary!A80) ->  | B80: =ResultsSummary!B80 -> BAF (Pa/Pa) | C80: 1.011111867e-07 | D80: 0.5499533212 | E80: 0.6604934582 | F80: 0.6002614402 | G80: 0.5204362006 | H80: 0.473398616 | I80: 0.785875439 | J80: 0.4416052084 | K80: 0.5097119786 | L80: 0.08821917092 | M80: 0.02929261285 | N80: 0.02510487653 | O80: 0.03161707542 | P80: 0.006659894266 | Q80: 0.01445202582 | R80: 0.0226338039 | S80: 0.06486885293 | T80: 0.007461751899 | U80: 0.002121850054 | V80: 0.004030802928 | W80: 0.001580944144 | X80: 0.00546153237 | Y80: 2.592564161e-05 | Z80: 0.3876878867 | AA80: 0.02181563118 | AB80: 0.1132424619
A81: =IF(ResultsSummary!A81="","",ResultsSummary!A81) ->  | B81: =ResultsSummary!B81 -> mmBAF (m2 / organism) | C81: - | D81: - | E81: - | F81: - | G81: - | H81: - | I81: - | J81: - | K81: - | L81: - | M81: - | N81: - | O81: - | P81: - | Q81: - | R81: - | S81: - | T81: - | U81: - | V81: - | W81: - | X81: - | Y81: - | Z81: - | AA81: - | AB81: -
A82: =IF(ResultsSummary!A82="","",ResultsSummary!A82) ->  | B82: =ResultsSummary!B82 -> BMF (g ww / g ww) | C82: 0.000717151746 | D82: 3.828161746 | E82: 3.821863936 | F82: 3.819671942 | G82: 3.824013949 | H82: 3.84363362 | I82: 3.822594002 | J82: 2.97996878 | K82: 2.970308607 | L82: 2.912583741 | M82: 3.567863459 | N82: 3.576718954 | O82: 3.5353679 | P82: 3.023679764 | Q82: 3.755089761 | R82: 3.346848498 | S82: 3.783101917 | T82: 3.702781456 | U82: 3.512781541 | V82: 3.650878262 | W82: 3.161197299 | X82: 1.231489816 | Y82: 0.1678402569 | Z82: 0.1070340323 | AA82: 0.5560121593 | AB82: 0.3252229918
A83: =IF(ResultsSummary!A83="","",ResultsSummary!A83) ->  | B83: =ResultsSummary!B83 -> BMF (Pa / Pa) | C83: 0.002293411511 | D83: 0.6332032709 | E83: 0.9814068344 | F83: 3.028262312 | G83: 0.6123378009 | H83: 0.5173714859 | I83: 1.005690923 | J83: 1.184623261 | K83: 1.886952697 | L83: 2.154589619 | M83: 5.5403798 | N83: 5.030816413 | O83: 5.054591563 | P83: 4.520931346 | Q83: 5.365224993 | R83: 4.090770435 | S83: 4.737329531 | T83: 11.2745079 | U83: 12.44756292 | V83: 20.49878685 | W83: 20.38652875 | X83: 3.185842364 | Y83: 3.759141488e-05 | Z83: 1.01577715 | AA83: 0.0536119526 | AB83: 0.1896409109
A84: =IF(ResultsSummary!A84="","",ResultsSummary!A84) ->  | B84: =ResultsSummary!B84 -> t90 (d) | C84: 76.75274477 | D84: 67.49969498 | E84: 67.56742001 | F84: 67.59905739 | G84: 67.7822208 | H84: 67.5462089 | I84: 67.6322933 | J84: 53.36055627 | K84: 53.38895294 | L84: 54.32179107 | M84: 70.62902457 | N84: 70.80453183 | O84: 71.08929635 | P84: 73.63864104 | Q84: 68.75916944 | R84: 71.74311638 | S84: 68.36616808 | T84: 69.50802194 | U84: 71.06510252 | V84: 70.04964861 | W84: 72.69667457 | X84: 75.94789415 | Y84: 76.66542753 | Z84: 1.894276322 | AA84: 6.010067967 | AB84: 2.239573007
A85: =IF(ResultsSummary!A85="","",ResultsSummary!A85) -> Cattle | B85: =ResultsSummary!B85 -> Concentration (ng / g ww) | C85: 1.366132073e-06 | D85: 0.0003477842313 | E85: 0.001082297403 | F85: 0.006391516622 | G85: 0.0002336336397 | H85: 9.226371888e-05 | I85: 0.0002995516515 | J85: 0.0006809343881 | K85: 0.0009118893631 | L85: 0.001412737627 | M85: 0.002918463954 | N85: 0.003274379837 | O85: 0.003236052541 | P85: 0.003739452864 | Q85: 0.003319556341 | R85: 0.002793262406 | S85: 0.002710401432 | T85: 0.005697652963 | U85: 0.01434496389 | V85: 0.01222093924 | W85: 0.04944694366 | X85: 0.0004114481753 | Y85: 0.0002912479906 | Z85: 0.09593461661 | AA85: 1.019281816e-07 | AB85: 1.723154426e-08
A86: =IF(ResultsSummary!A86="","",ResultsSummary!A86) -> Milk Cow | B86: =ResultsSummary!B86 -> Concentration (ng / g lipid) | C86: 6.209691243e-06 | D86: 0.001580837415 | E86: 0.00491953365 | F86: 0.02905234828 | G86: 0.00106197109 | H86: 0.0004193805404 | I86: 0.001361598416 | J86: 0.00309515631 | K86: 0.00414495165 | L86: 0.006421534667 | M86: 0.01326574525 | N86: 0.01488354471 | O86: 0.01470932973 | P86: 0.01699751302 | Q86: 0.01508889246 | R86: 0.0126966473 | S86: 0.01232000651 | T86: 0.02589842256 | U86: 0.06520438131 | V86: 0.05554972382 | W86: 0.2247588348 | X86: 0.001870218979 | Y86: 0.001323854503 | Z86: 0.4360664391 | AA86: 4.633099163e-07 | AB86: 7.83252012e-08
A87: =IF(ResultsSummary!A87="","",ResultsSummary!A87) ->  | B87: =ResultsSummary!B87 -> Fugacity (pPa) | C87: 5.009187665e-07 | D87: 1.409435329 | E87: 1.695633127 | F87: 1.562253247 | G87: 1.33210508 | H87: 1.205130766 | I87: 1.99936744 | J87: 0.7887036245 | K87: 0.9109532339 | L87: 0.1618179075 | M87: 0.0836444306 | N87: 0.07221806016 | O87: 0.09206727557 | P87: 0.02170149241 | Q87: 0.03833476999 | R87: 0.06777387492 | S87: 0.1695209969 | T87: 0.02035777398 | U87: 0.006086764181 | V87: 0.01119435112 | W87: 0.004821128828 | X87: 0.02004197752 | Y87: 9.457952361e-05 | Z87: 0.6083676981 | AA87: 0.02471238144 | AB87: 0.1453515102
A88: =IF(ResultsSummary!A88="","",ResultsSummary!A88) ->  | B88: =ResultsSummary!B88 -> BAF (Lair / kg ww) | C88: 32711.10353 | D88: 2862652.776 | E88: 8908516.794 | F88: 52609322.55 | G88: 1964255.137 | H88: 775699.4414 | I88: 3214953.205 | J88: 6331848.888 | K88: 7477592.71 | L88: 10363677.02 | M88: 21409508.22 | N88: 21724244.56 | O88: 21469957.77 | P88: 22650811.03 | Q88: 22421585.13 | R88: 20966385.23 | S88: 20217669.54 | T88: 28082837.75 | U88: 60825288.77 | V88: 51819033.09 | W88: 183961069.3 | X88: 9851846.774 | Y88: 4649156.724 | Z88: 1147225271 | AA88: 1139.349702 | AB88: 306.5361144
A89: =IF(ResultsSummary!A89="","",ResultsSummary!A89) ->  | B89: =ResultsSummary!B89 -> BAF (Lair / kg lipid) | C89: 148686.8342 | D89: 13012058.07 | E89: 40493258.15 | F89: 239133284.3 | G89: 8928432.443 | H89: 3525906.552 | I89: 14613423.66 | J89: 28781131.31 | K89: 33989057.77 | L89: 47107622.84 | M89: 97315946.46 | N89: 98746566.17 | O89: 97590717.13 | P89: 102958232 | Q89: 101916296.1 | R89: 95301751.05 | S89: 91898497.89 | T89: 127649262.5 | U89: 276478585.3 | V89: 235541059.5 | W89: 836186678.6 | X89: 44781121.7 | Y89: 21132530.56 | Z89: 5214660321 | AA89: 5178.862283 | AB89: 1393.345974
A90: =IF(ResultsSummary!A90="","",ResultsSummary!A90) ->  | B90: =ResultsSummary!B90 -> BAF (Pa/Pa) | C90: 5.009187665e-07 | D90: 1.409435329 | E90: 1.695633127 | F90: 1.562253247 | G90: 1.33210508 | H90: 1.205130766 | I90: 1.99936744 | J90: 0.7887036245 | K90: 0.9109532339 | L90: 0.1618179075 | M90: 0.0836444306 | N90: 0.07221806016 | O90: 0.09206727557 | P90: 0.02170149241 | Q90: 0.03833476999 | R90: 0.06777387492 | S90: 0.1695209969 | T90: 0.02035777398 | U90: 0.006086764181 | V90: 0.01119435112 | W90: 0.004821128828 | X90: 0.02004197752 | Y90: 9.457952361e-05 | Z90: 0.6083676981 | AA90: 0.02471238144 | AB90: 0.1453515102
A91: =IF(ResultsSummary!A91="","",ResultsSummary!A91) ->  | B91: =ResultsSummary!B91 -> mmBAF (m2 / organism) | C91: - | D91: - | E91: - | F91: - | G91: - | H91: - | I91: - | J91: - | K91: - | L91: - | M91: - | N91: - | O91: - | P91: - | Q91: - | R91: - | S91: - | T91: - | U91: - | V91: - | W91: - | X91: - | Y91: - | Z91: - | AA91: - | AB91: -
A92: =IF(ResultsSummary!A92="","",ResultsSummary!A92) ->  | B92: =ResultsSummary!B92 -> BMF (g ww / g ww) | C92: 0.005006972528 | D92: 13.52645986 | E92: 13.52246583 | F92: 13.52326438 | G92: 13.67605395 | H92: 13.67132173 | I92: 13.58228649 | J92: 7.437450447 | K92: 7.418735469 | L92: 7.46629073 | M92: 14.25291211 | N92: 14.39402863 | O92: 14.40065227 | P92: 13.82065543 | Q92: 13.91133409 | R92: 14.02436334 | S92: 13.80465598 | T92: 14.12787397 | U92: 14.29169037 | V92: 14.23716367 | W92: 13.82219682 | X92: 6.331735609 | Y92: 0.8985949433 | Z92: 0.1277247235 | AA92: 0.7388218206 | AB92: 0.339951196
A93: =IF(ResultsSummary!A93="","",ResultsSummary!A93) ->  | B93: =ResultsSummary!B93 -> BMF (Pa / Pa) | C93: 0.01145651616 | D93: 1.619902538 | E93: 2.508042798 | F93: 7.712760098 | G93: 1.56726917 | H93: 1.317038455 | I93: 2.55819728 | J93: 2.115542937 | K93: 3.372141071 | L93: 3.95183573 | M93: 15.83577334 | N93: 14.48573487 | O93: 14.73119216 | P93: 14.7851261 | Q93: 14.2214482 | R93: 12.26466722 | S93: 12.36867731 | T93: 30.77887525 | U93: 36.23450255 | V93: 57.19531841 | W93: 63.77852906 | X93: 11.71982125 | Y93: 0.0001392672192 | Z93: 1.144634667 | AA93: 0.05494243362 | AB93: 0.2024896989
A94: =IF(ResultsSummary!A94="","",ResultsSummary!A94) ->  | B94: =ResultsSummary!B94 -> t90 (d) | C94: 350.0324675 | D94: 202.2365111 | E94: 202.9110659 | F94: 203.213324 | G94: 205.3936504 | H94: 202.8876554 | I94: 203.7873992 | J94: 113.0467319 | K94: 113.1956887 | L94: 118.2183611 | M94: 239.5326368 | N94: 241.9051962 | O94: 245.8303481 | P94: 285.7398422 | Q94: 216.2617725 | R94: 255.2138917 | S94: 211.7931533 | T94: 225.1640143 | U94: 245.4931587 | V94: 231.9420583 | W94: 269.9073044 | X94: 331.349395 | Y94: 347.9240948 | Z94: 1.91948795 | AA94: 6.378952664 | AB94: 2.253909116
A95: =IF(ResultsSummary!A95="","",ResultsSummary!A95) -> Cattle | B95: =ResultsSummary!B95 -> Concentration (ng / g ww) | C95: 2.757557599e-07 | D95: 0.0001357033481 | E95: 0.0004215831497 | F95: 0.002455799647 | G95: 9.127763689e-05 | H95: 3.624296885e-05 | I95: 0.0001177423823 | J95: 0.0003812638398 | K95: 0.0005102357774 | L95: 0.0007701900492 | M95: 0.001022057705 | N95: 0.001138259617 | O95: 0.001111301672 | P95: 0.001147587466 | Q95: 0.00125145694 | R95: 0.0009328395877 | S95: 0.001037161385 | T95: 0.002088365499 | U95: 0.005000663979 | V95: 0.004400451364 | W95: 0.01621463744 | X95: 0.0001121215472 | Y95: 7.983536748e-05 | Z95: 0.06113521294 | AA95: 8.998030491e-08 | AB95: 1.342498948e-08
A96: =IF(ResultsSummary!A96="","",ResultsSummary!A96) -> Beef | B96: =ResultsSummary!B96 -> Concentration (ng / g lipid) | C96: 1.253435272e-06 | D96: 0.0006168334005 | E96: 0.001916287044 | F96: 0.01116272567 | G96: 0.0004148983495 | H96: 0.0001647407675 | I96: 0.000535192647 | J96: 0.001733017454 | K96: 0.002319253534 | L96: 0.00350086386 | M96: 0.004645716839 | N96: 0.00517390735 | O96: 0.005051371235 | P96: 0.005216306664 | Q96: 0.005688440636 | R96: 0.004240179944 | S96: 0.00471436993 | T96: 0.009492570451 | U96: 0.02273029082 | V96: 0.02000205166 | W96: 0.07370289746 | X96: 0.0005096433964 | Y96: 0.000362888034 | Z96: 0.2778873316 | AA96: 4.09001386e-07 | AB96: 6.102267943e-08
A97: =IF(ResultsSummary!A97="","",ResultsSummary!A97) ->  | B97: =ResultsSummary!B97 -> Fugacity (pPa) | C97: 1.011111867e-07 | D97: 0.5499533212 | E97: 0.6604934582 | F97: 0.6002614402 | G97: 0.5204362006 | H97: 0.473398616 | I97: 0.785875439 | J97: 0.4416052084 | K97: 0.5097119786 | L97: 0.08821917092 | M97: 0.02929261285 | N97: 0.02510487653 | O97: 0.03161707542 | P97: 0.006659894266 | Q97: 0.01445202582 | R97: 0.0226338039 | S97: 0.06486885293 | T97: 0.007461751899 | U97: 0.002121850054 | V97: 0.004030802928 | W97: 0.001580944144 | X97: 0.00546153237 | Y97: 2.592564161e-05 | Z97: 0.3876878867 | AA97: 0.02181563118 | AB97: 0.1132424619
A98: =IF(ResultsSummary!A98="","",ResultsSummary!A98) -> Cattle | B98: =ResultsSummary!B98 -> Concentration (ng / g ww) | C98: 3.185545114e-07 | D98: 8.121335134e-05 | E98: 0.0002528125739 | F98: 0.001493378513 | G98: 5.448172257e-05 | H98: 2.151522323e-05 | I98: 6.98587056e-05 | J98: 0.0001587863385 | K98: 0.0002126416164 | L98: 0.0003294241888 | M98: 0.0006805296617 | N98: 0.000763522158 | O98: 0.0007545846365 | P98: 0.0008719660004 | Q98: 0.0007740642981 | R98: 0.0006513340606 | S98: 0.0006320252932 | T98: 0.001328587698 | U98: 0.003344967246 | V98: 0.002849691925 | W98: 0.01153004941 | X98: 9.594145276e-05 | Y98: 6.791317236e-05 | Z98: 0.03716432277 | AA98: 2.398424667e-08 | AB98: 6.056093413e-09
A99: =IF(ResultsSummary!A99="","",ResultsSummary!A99) -> Milk | B99: =ResultsSummary!B99 -> Concentration (ng / g lipid) | C99: 6.371090227e-06 | D99: 0.001624267027 | E99: 0.005056251479 | F99: 0.02986757025 | G99: 0.001089634451 | H99: 0.0004303044645 | I99: 0.001397174112 | J99: 0.00317572677 | K99: 0.004252832327 | L99: 0.006588483775 | M99: 0.01361059323 | N99: 0.01527044316 | O99: 0.01509169273 | P99: 0.01743932001 | Q99: 0.01548128596 | R99: 0.01302668121 | S99: 0.01264050586 | T99: 0.02657175396 | U99: 0.06689934493 | V99: 0.0569938385 | W99: 0.2306009882 | X99: 0.001918829055 | Y99: 0.001358263447 | Z99: 0.7432864555 | AA99: 4.796849333e-07 | AB99: 1.211218683e-07
A100: =IF(ResultsSummary!A100="","",ResultsSummary!A100) ->  | B100: =ResultsSummary!B100 -> Fugacity (pPa) | C100: 5.009187665e-07 | D100: 1.409435329 | E100: 1.695633127 | F100: 1.562253247 | G100: 1.33210508 | H100: 1.205130766 | I100: 1.99936744 | J100: 0.7887036245 | K100: 0.9109532339 | L100: 0.1618179075 | M100: 0.0836444306 | N100: 0.07221806016 | O100: 0.09206727557 | P100: 0.02170149241 | Q100: 0.03833476999 | R100: 0.06777387492 | S100: 0.1695209969 | T100: 0.02035777398 | U100: 0.006086764181 | V100: 0.01119435112 | W100: 0.004821128828 | X100: 0.02004197752 | Y100: 9.457952361e-05 | Z100: 0.6083676981 | AA100: 0.02471238144 | AB100: 0.1453515102
A101: =IF(ResultsSummary!A101="","",ResultsSummary!A101) -> Cattle | B101: =ResultsSummary!B101 -> Concentration (ng / g ww) | C101: 2.056026529e-06 | D101: 0.0005233281476 | E101: 0.001628528594 | F101: 0.00961700004 | G101: 0.0003516159829 | H101: 0.0001388558728 | I101: 0.0004508178773 | J101: 0.001024800597 | K101: 0.00137238655 | L101: 0.002126166183 | M101: 0.004392281547 | N101: 0.004927934311 | O101: 0.004870252066 | P101: 0.005627869807 | Q101: 0.004995919044 | R101: 0.004203854249 | S101: 0.004079139197 | T101: 0.00857495121 | U101: 0.02158913949 | V101: 0.01839248256 | W101: 0.07441755643 | X101: 0.0006192288161 | Y101: 0.000438327747 | Z101: 0.1334436924 | AA101: 1.532415752e-07 | AB101: 2.442667558e-08
A102: =IF(ResultsSummary!A102="","",ResultsSummary!A102) -> Dairy Products | B102: =ResultsSummary!B102 -> Concentration (ng / g lipid) | C102: -- | D102: -- | E102: -- | F102: -- | G102: -- | H102: -- | I102: -- | J102: -- | K102: -- | L102: -- | M102: -- | N102: -- | O102: -- | P102: -- | Q102: -- | R102: -- | S102: -- | T102: -- | U102: -- | V102: -- | W102: -- | X102: -- | Y102: -- | Z102: -- | AA102: -- | AB102: --
A103: =IF(ResultsSummary!A103="","",ResultsSummary!A103) ->  | B103: =ResultsSummary!B103 -> Fugacity (pPa) | C103: 5.009187665e-07 | D103: 1.409435329 | E103: 1.695633127 | F103: 1.562253247 | G103: 1.33210508 | H103: 1.205130766 | I103: 1.99936744 | J103: 0.7887036245 | K103: 0.9109532339 | L103: 0.1618179075 | M103: 0.0836444306 | N103: 0.07221806016 | O103: 0.09206727557 | P103: 0.02170149241 | Q103: 0.03833476999 | R103: 0.06777387492 | S103: 0.1695209969 | T103: 0.02035777398 | U103: 0.006086764181 | V103: 0.01119435112 | W103: 0.004821128828 | X103: 0.02004197752 | Y103: 9.457952361e-05 | Z103: 0.6083676981 | AA103: 0.02471238144 | AB103: 0.1453515102
A104: =IF(ResultsSummary!A104="","",ResultsSummary!A104) -> Grass and Cultivated Plants | B104: =ResultsSummary!B104 -> Concentration (pg / g ww) | C104: 0.4623518651 | D104: 0.04867920298 | E104: 0.1514239953 | F104: 0.8677176839 | G104: 0.03330043077 | H104: 0.01315241952 | I104: 0.04294664421 | J104: 0.1784725101 | K104: 0.2395934338 | L104: 0.3664897942 | M104: 0.3868963593 | N104: 0.428466145 | O104: 0.4264748752 | P104: 0.4864661841 | Q104: 0.4290855249 | R104: 0.3779853292 | S104: 0.3744341511 | T104: 0.6312442497 | U104: 1.072603832 | V104: 0.9569985193 | W104: 2.933164056 | X104: 0.1216705901 | Y104: 0.1245155893 | Z104: 84.2978528 | AA104: 0.000176624095 | AB104: 1.350003172e-05
A105: =IF(ResultsSummary!A105="","",ResultsSummary!A105) -> Grass | B105: =ResultsSummary!B105 -> Fugacity (pPa) | C105: 3.792543187e-05 | D105: 0.8664864901 | E105: 0.669010612 | F105: 0.1927028597 | G105: 0.8496689075 | H105: 0.9148414546 | I105: 0.7809978982 | J105: 0.3723015603 | K105: 0.2696965874 | L105: 0.04061098218 | M105: 0.005109461613 | N105: 0.004807407791 | O105: 0.006072438315 | P105: 0.001350973276 | Q105: 0.002481606684 | R105: 0.005368830217 | S105: 0.01338343758 | T105: 0.0005299941307 | U105: 9.189224426e-05 | V105: 0.0001117025912 | W105: 3.17267375e-05 | X105: 0.001639086485 | Y105: 0.2938802657 | Z105: 0.06118426543 | AA105: 0.3488351237 | AB105: 0.2574989516
A106: =IF(ResultsSummary!A106="","",ResultsSummary!A106) -> Leaf: | B106: =ResultsSummary!B106 -> BAF (Lair / kg ww) | C106: 11070701.01 | D106: 400684.226 | E106: 1246388.656 | F106: 7142285.972 | G106: 279970.5654 | H106: 110577.8588 | I106: 460927.0246 | J106: 1659573.939 | K106: 1964692.414 | L106: 2688526.014 | M106: 2838226.175 | N106: 2842707.255 | O106: 2829495.95 | P106: 2946648.617 | Q106: 2898211.88 | R106: 2837179.209 | S106: 2793012.814 | T106: 3111303.893 | U106: 4548037.789 | V106: 4057849.971 | W106: 10912464.07 | X106: 2913319.544 | Y106: 1987627.41 | Z106: 1008068103 | AA106: 1974.298048 | AB106: 240.155334
A107: =IF(ResultsSummary!A107="","",ResultsSummary!A107) ->  | B107: =ResultsSummary!B107 -> BAF (Pa / Paair) | C107: 3.792543187e-05 | D107: 0.8664864901 | E107: 0.669010612 | F107: 0.1927028597 | G107: 0.8496689075 | H107: 0.9148414546 | I107: 0.7809978982 | J107: 0.3723015603 | K107: 0.2696965874 | L107: 0.04061098218 | M107: 0.005109461613 | N107: 0.004807407791 | O107: 0.006072438315 | P107: 0.001350973276 | Q107: 0.002481606684 | R107: 0.005368830217 | S107: 0.01338343758 | T107: 0.0005299941307 | U107: 9.189224426e-05 | V107: 0.0001117025912 | W107: 3.17267375e-05 | X107: 0.001639086485 | Y107: 0.2938802657 | Z107: 0.06118426543 | AA107: 0.3488351237 | AB107: 0.2574989516
A108: =IF(ResultsSummary!A108="","",ResultsSummary!A108) ->  | B108: =ResultsSummary!B108 -> t90 (d) | C108: 65.78745859 | D108: 12.22775729 | E108: 28.12509516 | F108: 61.19861865 | G108: 9.903322617 | H108: 5.611140483 | I108: 14.4594649 | J108: 41.31018266 | K108: 48.05684246 | L108: 63.12471682 | M108: 65.45707347 | N108: 65.4770146 | O108: 65.39391543 | P108: 65.7034338 | Q108: 65.63016429 | R108: 65.44021633 | S108: 64.91566246 | T108: 65.7566404 | U108: 65.78440645 | V108: 65.7830515 | W108: 65.78760744 | X108: 65.6841537 | Y108: 46.46156301 | Z108: 0.3272347757 | AA108: 0.7352321371 | AB108: 0.4016630574
A109: =IF(ResultsSummary!A109="","",ResultsSummary!A109) -> Root: | B109: =ResultsSummary!B109 -> Concentration (pg / g ww) | C109: 4.411958535e-06 | D109: 0.01453684064 | E109: 0.04546467396 | F109: 0.4681898094 | G109: 0.0005703560243 | H109: 0.0002435761053 | I109: 0.001412302894 | J109: 0.002040642088 | K109: 0.002218588676 | L109: 0.007398565712 | M109: 0.01505678069 | N109: 0.01937388822 | O109: 0.01369558131 | P109: 0.02329581414 | Q109: 0.1003563223 | R109: 0.00792844315 | S109: 0.03358027964 | T109: 0.29515787 | U109: 0.9009361815 | V109: 1.076788011 | W109: 2.315898392 | X109: 0.0005589991234 | Y109: 0.008390097994 | Z109: 510.9160789 | AA109: 0.0003347998831 | AB109: 6.284928e-05
A110: =IF(ResultsSummary!A110="","",ResultsSummary!A110) ->  | B110: =ResultsSummary!B110 -> Fugacity (pPa) | C110: 6.209227326e-07 | D110: 0.5171080474 | E110: 0.5251192114 | F110: 0.5177463542 | G110: 0.06407019552 | H110: 0.06301653641 | I110: 0.1122684022 | J110: 0.03795781923 | K110: 0.02853209767 | L110: 0.01575409922 | M110: 0.00744905741 | N110: 0.007913554606 | O110: 0.007113014607 | P110: 0.003619023201 | Q110: 0.01813544042 | R110: 0.004618101407 | S110: 0.02579452509 | T110: 0.01256187573 | U110: 0.006594797053 | V110: 0.009935401739 | W110: 0.003738073823 | X110: 0.0007338074433 | Y110: 0.0001246958878 | Z110: 0.7777500795 | AA110: 0.4652771343 | AB110: 0.7991558811
A111: =IF(ResultsSummary!A111="","",ResultsSummary!A111) ->  | B111: =ResultsSummary!B111 -> BAF (g OC / g ww) | C111: 5.408029815e-09 | D111: 0.009689587619 | E111: 0.009862609192 | F111: 0.009703337951 | G111: 0.001021324195 | H111: 0.00100358177 | I111: 0.001849640105 | J111: 0.000587677787 | K111: 0.0004349395223 | L111: 0.0002326398798 | M111: 0.0001057386128 | N111: 0.0001126893978 | O111: 0.0001007242595 | P111: 4.946731135e-05 | Q111: 0.0002698171381 | R111: 6.393244049e-05 | S111: 0.0003910747129 | T111: 0.0001832889681 | U111: 9.301630169e-05 | V111: 0.0001431835669 | W111: 5.118099409e-05 | X111: 9.230369485e-06 | Y111: 1.43048806e-06 | Z111: 0.04012923779 | AA111: 0.009548913788 | AB111: 0.03717919321
A112: =IF(ResultsSummary!A112="","",ResultsSummary!A112) ->  | B112: =ResultsSummary!B112 -> BAF (Pa / Pasoil) | C112: 6.209227326e-07 | D112: 0.5171080474 | E112: 0.5251192114 | F112: 0.5177463542 | G112: 0.06407019552 | H112: 0.06301653641 | I112: 0.1122684022 | J112: 0.03795781923 | K112: 0.02853209767 | L112: 0.01575409922 | M112: 0.00744905741 | N112: 0.007913554606 | O112: 0.007113014607 | P112: 0.003619023201 | Q112: 0.01813544042 | R112: 0.004618101407 | S112: 0.02579452509 | T112: 0.01256187573 | U112: 0.006594797053 | V112: 0.009935401739 | W112: 0.003738073823 | X112: 0.0007338074433 | Y112: 0.0001246958878 | Z112: 0.7777500795 | AA112: 0.4652771343 | AB112: 0.7991558811
A113: =IF(ResultsSummary!A113="","",ResultsSummary!A113) ->  | B113: =ResultsSummary!B113 -> t90 (d) | C113: 65.78810466 | D113: 31.76856605 | E113: 31.24152642 | F113: 31.72657302 | G113: 61.57308617 | H113: 61.64240445 | I113: 58.40221554 | J113: 63.29097098 | K113: 63.91107172 | L113: 64.75171254 | M113: 65.29808584 | N113: 65.26752743 | O113: 65.32019347 | P113: 65.55005669 | Q113: 64.59504852 | R113: 65.48432919 | S113: 64.09117154 | T113: 64.96172301 | U113: 65.35428605 | V113: 65.13451386 | W113: 65.54222457 | X113: 65.73986968 | Y113: 65.779942 | Z113: 1.566282646 | AA113: 10.13616754 | AB113: 1.750317293
A114: =IF(ResultsSummary!A114="","",ResultsSummary!A114) -> Fruit / Tuber | B114: =ResultsSummary!B114 -> Concentration (pg / g ww) | C114: - | D114: - | E114: - | F114: - | G114: - | H114: - | I114: - | J114: - | K114: - | L114: - | M114: - | N114: - | O114: - | P114: - | Q114: - | R114: - | S114: - | T114: - | U114: - | V114: - | W114: - | X114: - | Y114: - | Z114: - | AA114: - | AB114: -
A115: =IF(ResultsSummary!A115="","",ResultsSummary!A115) ->  | B115: =ResultsSummary!B115 -> Fugacity (pPa) | C115: - | D115: - | E115: - | F115: - | G115: - | H115: - | I115: - | J115: - | K115: - | L115: - | M115: - | N115: - | O115: - | P115: - | Q115: - | R115: - | S115: - | T115: - | U115: - | V115: - | W115: - | X115: - | Y115: - | Z115: - | AA115: - | AB115: -
A116: =IF(ResultsSummary!A116="","",ResultsSummary!A116) ->  | B116: =ResultsSummary!B116 -> BAF (Lair / kg ww) | C116: - | D116: - | E116: - | F116: - | G116: - | H116: - | I116: - | J116: - | K116: - | L116: - | M116: - | N116: - | O116: - | P116: - | Q116: - | R116: - | S116: - | T116: - | U116: - | V116: - | W116: - | X116: - | Y116: - | Z116: - | AA116: - | AB116: -
A117: =IF(ResultsSummary!A117="","",ResultsSummary!A117) ->  | B117: =ResultsSummary!B117 -> BAF (g OC / g ww) | C117: - | D117: - | E117: - | F117: - | G117: - | H117: - | I117: - | J117: - | K117: - | L117: - | M117: - | N117: - | O117: - | P117: - | Q117: - | R117: - | S117: - | T117: - | U117: - | V117: - | W117: - | X117: - | Y117: - | Z117: - | AA117: - | AB117: -
A118: =IF(ResultsSummary!A118="","",ResultsSummary!A118) ->  | B118: =ResultsSummary!B118 -> BAF (Pa / Pa) | C118: - | D118: - | E118: - | F118: - | G118: - | H118: - | I118: - | J118: - | K118: - | L118: - | M118: - | N118: - | O118: - | P118: - | Q118: - | R118: - | S118: - | T118: - | U118: - | V118: - | W118: - | X118: - | Y118: - | Z118: - | AA118: - | AB118: -
A119: =IF(ResultsSummary!A119="","",ResultsSummary!A119) ->  | B119: =ResultsSummary!B119 -> t90 (d) | C119: - | D119: - | E119: - | F119: - | G119: - | H119: - | I119: - | J119: - | K119: - | L119: - | M119: - | N119: - | O119: - | P119: - | Q119: - | R119: - | S119: - | T119: - | U119: - | V119: - | W119: - | X119: - | Y119: - | Z119: - | AA119: - | AB119: -
A120: =IF(ResultsSummary!A120="","",ResultsSummary!A120) -> Grass and Cultivated Plants | B120: =ResultsSummary!B120 -> Concentration (pg / g ww) | C120: 2.141659458 | D120: 0.04504882249 | E120: 0.1562651844 | F120: 1.13597588 | G120: 0.03255693734 | H120: 0.01239612529 | I120: 0.04410731899 | J120: 0.279500499 | K120: 0.4416181569 | L120: 1.180855294 | M120: 1.553857166 | N120: 1.720345541 | O120: 1.689881659 | P120: 2.049089704 | Q120: 1.78591053 | R120: 1.490548732 | S120: 1.414923297 | T120: 2.816249186 | U120: 4.991675465 | V120: 4.461083719 | W120: 14.19270583 | X120: 0.5115998436 | Y120: 0.0001282655093 | Z120: 0.5412315947 | AA120: 0.0001457236512 | AB120: 2.297604172e-06
A121: =IF(ResultsSummary!A121="","",ResultsSummary!A121) -> Apple | B121: =ResultsSummary!B121 -> Fugacity (pPa) | C121: 0.0001756743424 | D121: 0.8018659652 | E121: 0.6903996058 | F121: 0.2522776759 | G121: 0.8306984847 | H121: 0.8622359772 | I121: 0.8021051251 | J121: 0.5830504196 | K121: 0.4971042317 | L121: 0.1308513745 | M121: 0.02052067266 | N121: 0.01930234781 | O121: 0.02406168038 | P121: 0.005690560865 | Q121: 0.01032877422 | R121: 0.02117146474 | S121: 0.05057374596 | T121: 0.002364529324 | U121: 0.0004276474196 | V121: 0.0005207057282 | W121: 0.0001535162178 | X121: 0.006892022044 | Y121: 0.0003027307841 | Z121: 0.0003928315663 | AA121: 0.2878063035 | AB121: 0.04382439076
A122: =IF(ResultsSummary!A122="","",ResultsSummary!A122) -> Leaf: | B122: =ResultsSummary!B122 -> BAF (Lair / kg ww) | C122: 51280579.38 | D122: 370802.1386 | E122: 1286237.051 | F122: 9350350.632 | G122: 273719.7071 | H122: 104219.3788 | I122: 473384.0252 | J122: 2599009.471 | K122: 3621317.283 | L122: 8662615.511 | M122: 11398913.36 | N122: 11413827.69 | O122: 11211711.61 | P122: 12411854.18 | Q122: 12062739.98 | R122: 11188142.89 | S122: 10554322.81 | T122: 13880850.5 | U122: 21165623.28 | V122: 18915816.56 | W122: 52802158.16 | X122: 12249910.37 | Y122: 2047.486934 | Z122: 6472268.141 | AA122: 1628.893952 | AB122: 40.8726371
A123: =IF(ResultsSummary!A123="","",ResultsSummary!A123) ->  | B123: =ResultsSummary!B123 -> BAF (Pa / Paair) | C123: 0.0001756743424 | D123: 0.8018659652 | E123: 0.6903996058 | F123: 0.2522776759 | G123: 0.8306984847 | H123: 0.8622359772 | I123: 0.8021051251 | J123: 0.5830504196 | K123: 0.4971042317 | L123: 0.1308513745 | M123: 0.02052067266 | N123: 0.01930234781 | O123: 0.02406168038 | P123: 0.005690560865 | Q123: 0.01032877422 | R123: 0.02117146474 | S123: 0.05057374596 | T123: 0.002364529324 | U123: 0.0004276474196 | V123: 0.0005207057282 | W123: 0.0001535162178 | X123: 0.006892022044 | Y123: 0.0003027307841 | Z123: 0.0003928315663 | AA123: 0.2878063035 | AB123: 0.04382439076
A124: =IF(ResultsSummary!A124="","",ResultsSummary!A124) ->  | B124: =ResultsSummary!B124 -> t90 (d) | C124: 56.14111904 | D124: 5.740930788 | E124: 10.33415996 | F124: 34.86966712 | G124: 5.185363352 | H124: 3.828923048 | I124: 6.706233529 | J124: 16.27894744 | K124: 20.77784159 | L124: 39.8415612 | M124: 49.91409309 | N124: 49.89419597 | O124: 49.24632822 | P124: 52.27649143 | Q124: 51.89707765 | R124: 48.98414552 | S124: 47.08887974 | T124: 55.67912543 | U124: 58.03122208 | V124: 58.47103348 | W124: 60.17352632 | X124: 52.1546869 | Y124: 0.009019577458 | Z124: 0.3114752396 | AA124: 0.7229697053 | AB124: 0.3356895609
A125: =IF(ResultsSummary!A125="","",ResultsSummary!A125) -> Root: | B125: =ResultsSummary!B125 -> Concentration (pg / g ww) | C125: 2.884613367e-08 | D125: 0.0001954395002 | E125: 0.000621415639 | F125: 0.006302761953 | G125: 3.982558659e-06 | H125: 1.698891445e-06 | I125: 1.039295755e-05 | J125: 1.386485666e-05 | K125: 1.492862962e-05 | L125: 4.914212024e-05 | M125: 9.917762262e-05 | N125: 0.0001276733619 | O125: 9.018119934e-05 | P125: 0.0001528614445 | Q125: 0.0006681839642 | R125: 5.207637904e-05 | S125: 0.000225327217 | T125: 0.0019541769 | U125: 0.005929314145 | V125: 0.007110396044 | W125: 0.01519816367 | X125: 3.657495039e-06 | Y125: 5.486264668e-05 | Z125: 1.969767731 | AA125: 6.525282806e-07 | AB125: 2.747714162e-07
A126: =IF(ResultsSummary!A126="","",ResultsSummary!A126) ->  | B126: =ResultsSummary!B126 -> Fugacity (pPa) | C126: 4.104805963e-09 | D126: 0.007029468564 | E126: 0.007257129751 | F126: 0.007047334414 | G126: 0.0004523463396 | H126: 0.0004444105493 | I126: 0.0008353485612 | J126: 0.000260764628 | K126: 0.0001941224376 | L126: 0.0001058032027 | M126: 4.961143319e-05 | N126: 5.272954103e-05 | O126: 4.735742929e-05 | P126: 2.40110038e-05 | Q126: 0.000122089496 | R126: 3.067010134e-05 | S126: 0.0001750071384 | T126: 8.409358811e-05 | U126: 4.388445914e-05 | V126: 6.633578841e-05 | W126: 2.480380868e-05 | X126: 4.85460182e-06 | Y126: 8.244431925e-07 | Z126: 0.003031826852 | AA126: 0.0009169056186 | AB126: 0.003532658269
A127: =IF(ResultsSummary!A127="","",ResultsSummary!A127) ->  | B127: =ResultsSummary!B127 -> BAF (g OC / g ww) | C127: 3.535861674e-11 | D127: 0.0001302709583 | E127: 0.0001348031133 | F127: 0.0001306261436 | G127: 7.131481643e-06 | H127: 6.99976905e-06 | I127: 1.361126652e-05 | J127: 3.992894355e-06 | K127: 2.926658332e-06 | L127: 1.545220708e-06 | M127: 6.964904683e-07 | N127: 7.426198662e-07 | O127: 6.632383331e-07 | P127: 3.245924191e-07 | Q127: 1.796473613e-06 | R127: 4.199273351e-07 | S127: 2.624152557e-06 | T127: 1.213516914e-06 | U127: 6.121664161e-07 | V127: 9.454896016e-07 | W127: 3.358770522e-07 | X127: 6.039370936e-08 | Y127: 9.353926627e-09 | Z127: 0.0001547128402 | AA127: 1.861092734e-05 | AB127: 0.0001625440987
A128: =IF(ResultsSummary!A128="","",ResultsSummary!A128) ->  | B128: =ResultsSummary!B128 -> BAF (Pa / Pasoil) | C128: 4.104805963e-09 | D128: 0.007029468564 | E128: 0.007257129751 | F128: 0.007047334414 | G128: 0.0004523463396 | H128: 0.0004444105493 | I128: 0.0008353485612 | J128: 0.000260764628 | K128: 0.0001941224376 | L128: 0.0001058032027 | M128: 4.961143319e-05 | N128: 5.272954103e-05 | O128: 4.735742929e-05 | P128: 2.40110038e-05 | Q128: 0.000122089496 | R128: 3.067010134e-05 | S128: 0.0001750071384 | T128: 8.409358811e-05 | U128: 4.388445914e-05 | V128: 6.633578841e-05 | W128: 2.480380868e-05 | X128: 4.85460182e-06 | Y128: 8.244431925e-07 | Z128: 0.003031826852 | AA128: 0.0009169056186 | AB128: 0.003532658269
A129: =IF(ResultsSummary!A129="","",ResultsSummary!A129) ->  | B129: =ResultsSummary!B129 -> t90 (d) | C129: 23.02585084 | D129: 22.86399143 | E129: 22.85874934 | F129: 22.86358006 | G129: 23.01543527 | H129: 23.015618 | I129: 23.00661632 | J129: 23.0198466 | K129: 23.0213811 | L129: 23.02341472 | M129: 23.02470858 | N129: 23.02463679 | O129: 23.02476048 | P129: 23.02529806 | Q129: 23.02303972 | R129: 23.02514472 | S129: 23.02182124 | T129: 23.0239146 | U129: 23.02484045 | V129: 23.02432349 | W129: 23.0252798 | X129: 23.02573915 | Y129: 23.02583195 | Z129: 0.3232568277 | AA129: 1.057547649 | AB129: 0.4096379194
A130: =IF(ResultsSummary!A130="","",ResultsSummary!A130) -> Fruit / Tuber | B130: =ResultsSummary!B130 -> Concentration (pg / g ww) | C130: 0.07655114392 | D130: 0.01182293589 | E130: 0.03262246621 | F130: 0.1544926317 | G130: 0.007716743412 | H130: 0.003493631678 | I130: 0.008903504393 | J130: 0.04225664441 | K130: 0.0600445292 | L130: 0.1517472578 | M130: 0.178803128 | N130: 0.1988156194 | O130: 0.1971651534 | P130: 0.2221136098 | Q130: 0.1986781973 | R130: 0.1765156915 | S130: 0.1678674466 | T130: 0.2726697344 | U130: 0.3397834718 | V130: 0.3360764575 | W130: 0.4641933463 | X130: 0.05563848972 | Y130: 0.1415807033 | Z130: 2.8004937 | AA130: 5.092953188e-06 | AB130: 4.651484711e-07
A131: =IF(ResultsSummary!A131="","",ResultsSummary!A131) ->  | B131: =ResultsSummary!B131 -> Fugacity (pPa) | C131: 0.0002983463295 | D131: 0.3379322925 | E131: 0.3051066684 | F131: 0.1373610008 | G131: 0.3627063702 | H131: 0.3766192384 | I131: 0.3421227881 | J131: 0.2890004532 | K131: 0.2649455254 | L131: 0.09617600504 | M131: 0.02205362056 | N131: 0.02053683281 | O131: 0.02525313502 | P131: 0.007259590334 | Q131: 0.01105070081 | R131: 0.0229056311 | S131: 0.04318055692 | T131: 0.003273359234 | U131: 0.0006025379699 | V131: 0.0008274559942 | W131: 0.000158836339 | X131: 0.0105742101 | Y131: 0.000201273305 | Z131: 0.005605205762 | AA131: 0.007297546556 | AB131: 0.007946366121
A132: =IF(ResultsSummary!A132="","",ResultsSummary!A132) ->  | B132: =ResultsSummary!B132 -> BAF (Lair / kg ww) | C132: 0 | D132: 0 | E132: 0 | F132: 0 | G132: 0 | H132: 0 | I132: 0 | J132: 0 | K132: 0 | L132: 0 | M132: 0 | N132: 0 | O132: 0 | P132: 0 | Q132: 0 | R132: 0 | S132: 0 | T132: 0 | U132: 0 | V132: 0 | W132: 0 | X132: 0 | Y132: 0 | Z132: 0 | AA132: 0 | AB132: 0
A133: =IF(ResultsSummary!A133="","",ResultsSummary!A133) ->  | B133: =ResultsSummary!B133 -> BAF (g OC / g ww) | C133: 1832.965086 | D133: 97.31597126 | E133: 268.5193435 | F133: 1271.646961 | G133: 64.87786995 | H133: 29.37241393 | I133: 95.55730986 | J133: 392.9346081 | K133: 492.3717197 | L133: 1113.200031 | M133: 1311.678711 | N133: 1319.064786 | O133: 1308.114582 | P133: 1345.398267 | Q133: 1341.950447 | R133: 1324.936741 | S133: 1252.171918 | T133: 1343.946351 | U133: 1440.744498 | V133: 1425.026074 | W133: 1726.972347 | X133: 1332.225802 | Y133: 2260.035777 | Z133: 33489.44579 | AA133: 0.05692885527 | AB133: 0.008274638811
A134: =IF(ResultsSummary!A134="","",ResultsSummary!A134) ->  | B134: =ResultsSummary!B134 -> BAF (Pa / Pa) | C134: 0.0002983463295 | D134: 0.3379322925 | E134: 0.3051066684 | F134: 0.1373610008 | G134: 0.3627063702 | H134: 0.3766192384 | I134: 0.3421227881 | J134: 0.2890004532 | K134: 0.2649455254 | L134: 0.09617600504 | M134: 0.02205362056 | N134: 0.02053683281 | O134: 0.02525313502 | P134: 0.007259590334 | Q134: 0.01105070081 | R134: 0.0229056311 | S134: 0.04318055692 | T134: 0.003273359234 | U134: 0.0006025379699 | V134: 0.0008274559942 | W134: 0.000158836339 | X134: 0.0105742101 | Y134: 0.000201273305 | Z134: 0.005605205762 | AA134: 0.007297546556 | AB134: 0.007946366121
A135: =IF(ResultsSummary!A135="","",ResultsSummary!A135) ->  | B135: =ResultsSummary!B135 -> t90 (d) | C135: 65.7756472 | D135: 51.06382421 | E135: 52.63589699 | F135: 60.49028899 | G135: 48.40024947 | H135: 47.63464273 | I135: 49.31734799 | J135: 51.94486174 | K135: 53.00338152 | L135: 60.97188451 | M135: 64.61322263 | N135: 64.69557825 | O135: 64.4505434 | P135: 65.39517555 | Q135: 65.19566889 | R135: 64.58046788 | S135: 63.53364334 | T135: 65.60898719 | U135: 65.75714608 | V135: 65.74513238 | W135: 65.78131982 | X135: 65.21395318 | Y135: 65.78153571 | Z135: 0.3272347474 | AA135: 1.085915517 | AB135: 0.4156211637
A136: =IF(ResultsSummary!A136="","",ResultsSummary!A136) -> Grass and Cultivated Plants | B136: =ResultsSummary!B136 -> Concentration (pg / g ww) | C136: 0.5362445663 | D136: 0.05041957957 | E136: 0.1691463954 | F136: 1.396074358 | G136: 0.03266257251 | H136: 0.01292032031 | I136: 0.04231398102 | J136: 0.1798178964 | K136: 0.2454314254 | L136: 0.3926256647 | M136: 0.4287198699 | N136: 0.4746440733 | O136: 0.4711901524 | P136: 0.5438546661 | Q136: 0.4825497214 | R136: 0.4166205467 | S136: 0.4127222102 | T136: 0.723880366 | U136: 1.241823036 | V136: 1.120571651 | W136: 3.411422241 | X136: 0.136033658 | Y136: 0.0001255811115 | Z136: 43.0406981 | AA136: 0.000168279278 | AB136: 8.218722803e-06
A137: =IF(ResultsSummary!A137="","",ResultsSummary!A137) -> Grain | B137: =ResultsSummary!B137 -> Fugacity (pPa) | C137: 4.398664372e-05 | D137: 0.8974650747 | E137: 0.7473104462 | F137: 0.3100403808 | G137: 0.8333937928 | H137: 0.8986973547 | I137: 0.769492724 | J137: 0.3751080958 | K137: 0.2762680798 | L137: 0.04350711569 | M137: 0.0056617946 | N137: 0.005325526048 | O137: 0.006709124738 | P137: 0.001510347777 | Q137: 0.002790815687 | R137: 0.005917597343 | S137: 0.01475197154 | T137: 0.000607771628 | U137: 0.0001063896122 | V137: 0.0001307951418 | W137: 3.689984463e-05 | X137: 0.001832578687 | Y137: 0.0002963950989 | Z137: 0.03123938997 | AA137: 0.3323539904 | AB137: 0.1567635209
A138: =IF(ResultsSummary!A138="","",ResultsSummary!A138) -> Leaf: | B138: =ResultsSummary!B138 -> BAF (Lair / kg ww) | C138: 12840.01149 | D138: 415.0094697 | E138: 1392.263808 | F138: 11491.25169 | G138: 274.6078259 | H138: 108.6265042 | I138: 454.136935 | J138: 1672.08437 | K138: 2012.564585 | L138: 2880.255685 | M138: 3145.038528 | N138: 3149.079961 | O138: 3126.164531 | P138: 3294.265156 | Q138: 3259.330027 | R138: 3127.177332 | S138: 3078.61454 | T138: 3567.89278 | U138: 5265.558378 | V138: 4751.430174 | W138: 12691.76286 | X138: 3257.233437 | Y138: 2.004636212 | Z138: 514698.2212 | AA138: 1.881019972 | AB138: 0.1462048505
A139: =IF(ResultsSummary!A139="","",ResultsSummary!A139) ->  | B139: =ResultsSummary!B139 -> BAF (Pa / Paair) | C139: 4.398664372e-05 | D139: 0.8974650747 | E139: 0.7473104462 | F139: 0.3100403808 | G139: 0.8333937928 | H139: 0.8986973547 | I139: 0.769492724 | J139: 0.3751080958 | K139: 0.2762680798 | L139: 0.04350711569 | M139: 0.0056617946 | N139: 0.005325526048 | O139: 0.006709124738 | P139: 0.001510347777 | Q139: 0.002790815687 | R139: 0.005917597343 | S139: 0.01475197154 | T139: 0.000607771628 | U139: 0.0001063896122 | V139: 0.0001307951418 | W139: 3.689984463e-05 | X139: 0.001832578687 | Y139: 0.0002963950989 | Z139: 0.03123938997 | AA139: 0.3323539904 | AB139: 0.1567635209
A140: =IF(ResultsSummary!A140="","",ResultsSummary!A140) ->  | B140: =ResultsSummary!B140 -> t90 (d) | C140: 63.31423843 | D140: 10.58237457 | E140: 23.72463568 | F140: 54.58999654 | G140: 8.712820748 | H140: 5.097633736 | I140: 12.59076051 | J140: 35.5858131 | K140: 41.96979059 | L140: 57.2617395 | M140: 61.3561202 | N140: 61.34915718 | O140: 61.12492989 | P140: 62.13790088 | Q140: 62.01654753 | R140: 61.03249893 | S140: 60.34408408 | T140: 63.18045856 | U140: 63.84758731 | V140: 63.96799582 | W140: 64.42131515 | X140: 62.09902005 | Y140: 0.03964718011 | Z140: 0.3235129133 | AA140: 0.7237564372 | AB140: 0.3848157075
A141: =IF(ResultsSummary!A141="","",ResultsSummary!A141) -> Root: | B141: =ResultsSummary!B141 -> Concentration (pg / g ww) | C141: 7.125667211e-06 | D141: 0.01728881544 | E141: 0.0538516733 | F141: 0.5566418629 | G141: 0.0008820468369 | H141: 0.000376949998 | I141: 0.00211648153 | J141: 0.003211411168 | K141: 0.003513792443 | L141: 0.01182036174 | M141: 0.02419315491 | N141: 0.03111990422 | O141: 0.02201108151 | P141: 0.03753059406 | Q141: 0.160073811 | R141: 0.01276426842 | S141: 0.05328335 | T141: 0.4725938601 | U141: 1.448471699 | V141: 1.727219399 | W141: 3.730708732 | X141: 0.0009023704242 | Y141: 0.01354951791 | Z141: 135.216118 | AA141: 5.365936538e-05 | AB141: 1.825412352e-05
A142: =IF(ResultsSummary!A142="","",ResultsSummary!A142) ->  | B142: =ResultsSummary!B142 -> Fugacity (pPa) | C142: 1.013982726e-06 | D142: 0.6218353225 | E142: 0.6289004587 | F142: 0.6224003677 | G142: 0.1001845025 | H142: 0.09860580332 | I142: 0.1701151758 | J142: 0.0603989251 | K142: 0.04569112985 | L142: 0.02544929121 | M142: 0.01210209578 | N142: 0.01285262832 | O142: 0.01155881984 | P142: 0.005895189855 | Q142: 0.0292484285 | R142: 0.00751744674 | S142: 0.04138411121 | T142: 0.02033700911 | U142: 0.01072053116 | V142: 0.01611393512 | W142: 0.006088616207 | X142: 0.001197718399 | Y142: 0.0002036140886 | Z142: 0.2081219277 | AA142: 0.07539990996 | AB142: 0.2346880957
A143: =IF(ResultsSummary!A143="","",ResultsSummary!A143) ->  | B143: =ResultsSummary!B143 -> BAF (g OC / g ww) | C143: 8.734402289e-09 | D143: 0.01152392711 | E143: 0.01168199311 | F143: 0.01153652644 | G143: 0.001579462191 | H143: 0.00155310861 | I143: 0.002771876441 | J143: 0.0009248437142 | K143: 0.000688855588 | L143: 0.0003716784634 | M143: 0.0001699002391 | N143: 0.0001810108136 | O143: 0.0001618806705 | P143: 7.969404161e-05 | Q143: 0.0004303730603 | R143: 0.0001029269953 | S143: 0.0006205359522 | T143: 0.0002934742717 | U143: 0.0001495460869 | V143: 0.0002296732799 | W143: 8.244808246e-05 | X143: 1.490022449e-05 | Y143: 2.310154614e-06 | Z143: 0.01062037382 | AA143: 0.001530432595 | AB143: 0.01079843055
A144: =IF(ResultsSummary!A144="","",ResultsSummary!A144) ->  | B144: =ResultsSummary!B144 -> BAF (Pa / Pasoil) | C144: 1.013982726e-06 | D144: 0.6218353225 | E144: 0.6289004587 | F144: 0.6224003677 | G144: 0.1001845025 | H144: 0.09860580332 | I144: 0.1701151758 | J144: 0.0603989251 | K144: 0.04569112985 | L144: 0.02544929121 | M144: 0.01210209578 | N144: 0.01285262832 | O144: 0.01155881984 | P144: 0.005895189855 | Q144: 0.0292484285 | R144: 0.00751744674 | S144: 0.04138411121 | T144: 0.02033700911 | U144: 0.01072053116 | V144: 0.01611393512 | W144: 0.006088616207 | X144: 0.001197718399 | Y144: 0.0002036140886 | Z144: 0.2081219277 | AA144: 0.07539990996 | AB144: 0.2346880957
A145: =IF(ResultsSummary!A145="","",ResultsSummary!A145) ->  | B145: =ResultsSummary!B145 -> t90 (d) | C145: 65.78807638 | D145: 23.39367869 | E145: 22.91200345 | F145: 23.35515597 | G145: 58.95793112 | H145: 59.06556108 | I145: 54.19031259 | J145: 61.67036685 | K145: 62.67309074 | L145: 64.05310556 | M145: 64.96306871 | N145: 64.91190014 | O145: 65.00010729 | P145: 65.38623295 | Q145: 63.79409422 | R145: 65.27563338 | S145: 62.96672758 | T145: 64.40164232 | U145: 65.05725876 | V145: 64.68955612 | W145: 65.37304584 | X145: 65.70648944 | Y145: 65.77426385 | Z145: 0.2566579543 | AA145: 1.005865041 | AB145: 0.3147626272
A146: =IF(ResultsSummary!A146="","",ResultsSummary!A146) -> Fruit / Tuber | B146: =ResultsSummary!B146 -> Concentration (pg / g ww) | C146: 0.9485761405 | D146: 0.1665724424 | E146: 0.4648074485 | F146: 2.576173698 | G146: 0.1101111623 | H146: 0.04967664565 | I146: 0.124843496 | J146: 0.5721427225 | K146: 0.8067417112 | L146: 2.120292765 | M146: 2.662956164 | N146: 2.960836379 | O146: 2.922112906 | P146: 3.363245762 | Q146: 3.005822127 | R146: 2.612433078 | S146: 2.44576344 | T146: 4.240062185 | U146: 5.22738108 | V146: 5.264771909 | W146: 6.682040129 | X146: 0.8425390929 | Y146: 2.46361643 | Z146: 47.79720669 | AA146: 8.705693324e-05 | AB146: 8.749247042e-06
A147: =IF(ResultsSummary!A147="","",ResultsSummary!A147) ->  | B147: =ResultsSummary!B147 -> Fugacity (pPa) | C147: 0.0001773368463 | D147: 0.6147343924 | E147: 0.5627694269 | F147: 0.2958020268 | G147: 0.5488805485 | H147: 0.5672585087 | I147: 0.5305130475 | J147: 0.3997505189 | K147: 0.3564601242 | L147: 0.1291461848 | M147: 0.02998665947 | N147: 0.02803821939 | O147: 0.03406222351 | P147: 0.00955403222 | Q147: 0.01622384831 | R147: 0.02995748002 | S147: 0.06255748028 | T147: 0.004816305159 | U147: 0.000839296722 | V147: 0.001206962133 | W147: 0.0001991628012 | X147: 0.01248486606 | Y147: 0.0002419739159 | Z147: 0.02952561946 | AA147: 0.0177930388 | AB147: 0.04376332151
A148: =IF(ResultsSummary!A148="","",ResultsSummary!A148) ->  | B148: =ResultsSummary!B148 -> BAF (Lair / kg ww) | C148: 0 | D148: 0 | E148: 0 | F148: 0 | G148: 0 | H148: 0 | I148: 0 | J148: 0 | K148: 0 | L148: 0 | M148: 0 | N148: 0 | O148: 0 | P148: 0 | Q148: 0 | R148: 0 | S148: 0 | T148: 0 | U148: 0 | V148: 0 | W148: 0 | X148: 0 | Y148: 0 | Z148: 0 | AA148: 0 | AB148: 0
A149: =IF(ResultsSummary!A149="","",ResultsSummary!A149) ->  | B149: =ResultsSummary!B149 -> BAF (g OC / g ww) | C149: 22713.01065 | D149: 1371.077299 | E149: 3825.884595 | F149: 21204.78769 | G149: 925.7503177 | H149: 417.652212 | I149: 1339.889116 | J149: 5320.22075 | K149: 6615.370442 | L149: 15554.21827 | M149: 19535.13313 | N149: 19644.00491 | O149: 19387.08963 | P149: 20372.02954 | Q149: 20302.50123 | R149: 19609.07009 | S149: 18243.65809 | T149: 20898.60143 | U149: 22165.0585 | V149: 22323.6025 | W149: 24859.68103 | X149: 20174.02565 | Y149: 39326.41344 | Z149: 571578.4908 | AA149: 0.9731194004 | AB149: 0.1556424747
A150: =IF(ResultsSummary!A150="","",ResultsSummary!A150) ->  | B150: =ResultsSummary!B150 -> BAF (Pa / Pa) | C150: 0.0001773368463 | D150: 0.6147343924 | E150: 0.5627694269 | F150: 0.2958020268 | G150: 0.5488805485 | H150: 0.5672585087 | I150: 0.5305130475 | J150: 0.3997505189 | K150: 0.3564601242 | L150: 0.1291461848 | M150: 0.02998665947 | N150: 0.02803821939 | O150: 0.03406222351 | P150: 0.00955403222 | Q150: 0.01622384831 | R150: 0.02995748002 | S150: 0.06255748028 | T150: 0.004816305159 | U150: 0.000839296722 | V150: 0.001206962133 | W150: 0.0001991628012 | X150: 0.01248486606 | Y150: 0.0002419739159 | Z150: 0.02952561946 | AA150: 0.0177930388 | AB150: 0.04376332151
A151: =IF(ResultsSummary!A151="","",ResultsSummary!A151) ->  | B151: =ResultsSummary!B151 -> t90 (d) | C151: 65.77800069 | D151: 40.00019686 | E151: 42.1567916 | F151: 54.98028042 | G151: 39.71802104 | H151: 39.14026724 | I151: 40.14448539 | J151: 44.69250018 | K151: 46.36382015 | L151: 58.11678573 | M151: 63.94081003 | N151: 64.06208476 | O151: 63.69452444 | P151: 65.19547503 | Q151: 64.79363342 | R151: 63.94906371 | S151: 61.98297056 | T151: 65.49358812 | U151: 65.73930155 | V151: 65.7184577 | W151: 65.77779649 | X151: 65.01156287 | Y151: 65.78019654 | Z151: 0.3272334087 | AA151: 1.078787449 | AB151: 0.4150187181
A152: =IF(ResultsSummary!A152="","",ResultsSummary!A152) -> Grass and Cultivated Plants | B152: =ResultsSummary!B152 -> Concentration (pg / g ww) | C152: 1.197834531 | D152: 0.0464017994 | E152: 0.1570420037 | F152: 0.9513607075 | G152: 0.03279701801 | H152: 0.01259980409 | I152: 0.04363566492 | J152: 0.2567398664 | K152: 0.3866090711 | L152: 0.8639583656 | M152: 0.9905151229 | N152: 1.097946759 | O152: 1.089132099 | P152: 1.25929127 | Q152: 1.102608326 | R152: 0.9675145299 | S152: 0.9364176963 | T152: 1.628835841 | U152: 2.773038393 | V152: 2.46004782 | W152: 7.604014981 | X152: 0.3145993208 | Y152: 0.2202205606 | Z152: 1.715621473 | AA152: 8.684082031e-05 | AB152: 1.208431825e-06
A153: =IF(ResultsSummary!A153="","",ResultsSummary!A153) -> Potato | B153: =ResultsSummary!B153 -> Fugacity (pPa) | C153: 9.825502029e-05 | D153: 0.8259488619 | E153: 0.6938316927 | F153: 0.2112783136 | G153: 0.8368242039 | H153: 0.876403242 | I153: 0.7935279512 | J153: 0.535570732 | K153: 0.4351836588 | L153: 0.09573581133 | M153: 0.01308101996 | N153: 0.01231900784 | O153: 0.01550780098 | P153: 0.003497198588 | Q153: 0.006376910971 | R153: 0.01374238851 | S153: 0.03347047205 | T153: 0.001367574336 | U153: 0.000237572078 | V153: 0.0002871412132 | W153: 8.224926484e-05 | X153: 0.004238127672 | Y153: 0.5197620414 | Z153: 0.001245216053 | AA153: 0.1715118671 | AB153: 0.02304957013
A154: =IF(ResultsSummary!A154="","",ResultsSummary!A154) -> Leaf: | B154: =ResultsSummary!B154 -> BAF (Lair / kg ww) | C154: 28681333.31 | D154: 381938.6502 | E154: 1292631.141 | F154: 7830761.504 | G154: 275738.1651 | H154: 105931.7911 | I154: 468321.9741 | J154: 2387363.696 | K154: 3170236.751 | L154: 6337896.928 | M154: 7266302.41 | N154: 7284452.35 | O154: 7225970.49 | P154: 7627845.471 | Q154: 7447448.966 | R154: 7262218.655 | S154: 6985010.895 | T154: 8028276.372 | U154: 11758193.49 | V154: 10431055.82 | W154: 28289771.29 | X154: 7532866.81 | Y154: 3515354.383 | Z154: 20516101.26 | AA154: 970.7036976 | AB154: 21.49708642
A155: =IF(ResultsSummary!A155="","",ResultsSummary!A155) ->  | B155: =ResultsSummary!B155 -> BAF (Pa / Paair) | C155: 9.825502029e-05 | D155: 0.8259488619 | E155: 0.6938316927 | F155: 0.2112783136 | G155: 0.8368242039 | H155: 0.876403242 | I155: 0.7935279512 | J155: 0.535570732 | K155: 0.4351836588 | L155: 0.09573581133 | M155: 0.01308101996 | N155: 0.01231900784 | O155: 0.01550780098 | P155: 0.003497198588 | Q155: 0.006376910971 | R155: 0.01374238851 | S155: 0.03347047205 | T155: 0.001367574336 | U155: 0.000237572078 | V155: 0.0002871412132 | W155: 8.224926484e-05 | X155: 0.004238127672 | Y155: 0.5197620414 | Z155: 0.001245216053 | AA155: 0.1715118671 | AB155: 0.02304957013
A156: =IF(ResultsSummary!A156="","",ResultsSummary!A156) ->  | B156: =ResultsSummary!B156 -> t90 (d) | C156: 65.78638254 | D156: 11.9966829 | E156: 20.91106619 | F156: 55.61088981 | G156: 10.74547209 | H156: 8.140571656 | I156: 13.59816351 | J156: 30.5698854 | K156: 37.17448141 | L156: 59.50819947 | M156: 64.94039817 | N156: 64.99067519 | O156: 64.78124261 | P156: 65.56884151 | Q156: 65.38050686 | R156: 64.89757556 | S156: 63.60139168 | T156: 65.70638111 | U156: 65.7784253 | V156: 65.77490408 | W156: 65.78674615 | X156: 65.51928651 | Y156: 31.60640062 | Z156: 0.3268018323 | AA156: 0.9043049015 | AB156: 0.4068924353
A157: =IF(ResultsSummary!A157="","",ResultsSummary!A157) -> Root: | B157: =ResultsSummary!B157 -> Concentration (pg / g ww) | C157: 1.337743893e-06 | D157: 0.006871714139 | E157: 0.02167937524 | F157: 0.2214709663 | G157: 0.0001809771966 | H157: 7.722902827e-05 | I157: 0.0004643734503 | J157: 0.0006354659986 | K157: 0.0006862727059 | L157: 0.002268085113 | M157: 0.004589047856 | N157: 0.005906740397 | O157: 0.004173200206 | P157: 0.007081259304 | Q157: 0.03081642229 | R157: 0.00241169429 | S157: 0.01036726017 | T157: 0.09028078187 | U157: 0.2744264525 | V157: 0.3287562181 | W157: 0.7040249491 | X157: 0.0001695795728 | Y157: 0.002544168991 | Z157: 30.82956379 | AA157: 1.07623794e-05 | AB157: 4.279134536e-06
A158: =IF(ResultsSummary!A158="","",ResultsSummary!A158) ->  | B158: =ResultsSummary!B158 -> Fugacity (pPa) | C158: 1.903610089e-07 | D158: 0.24715832 | E158: 0.2531800444 | F158: 0.247634287 | G158: 0.02055572295 | H158: 0.02020222951 | I158: 0.03732466834 | J158: 0.01195158802 | K158: 0.008923855299 | L158: 0.0048831973 | M158: 0.002295570665 | N158: 0.002439504259 | O158: 0.002191499283 | P158: 0.001112302351 | Q158: 0.005630726967 | R158: 0.001420354288 | S158: 0.008052043423 | T158: 0.003885029489 | U158: 0.002031104466 | V158: 0.003067101015 | W158: 0.001148987504 | X158: 0.0002250833682 | Y158: 3.823225695e-05 | Z158: 0.04745224418 | AA158: 0.01512284821 | AB158: 0.05501562067
A159: =IF(ResultsSummary!A159="","",ResultsSummary!A159) ->  | B159: =ResultsSummary!B159 -> BAF (g OC / g ww) | C159: 1.639761299e-09 | D159: 0.004580367763 | E159: 0.004702886592 | F159: 0.004590035044 | G159: 0.0003240719511 | H159: 0.0003181988841 | I159: 0.0006081724828 | J159: 0.0001830057578 | K159: 0.0001345391898 | L159: 7.131747811e-05 | M159: 3.222731102e-05 | N159: 3.435691437e-05 | O159: 3.069183343e-05 | P159: 1.503664378e-05 | Q159: 8.285276579e-05 | R159: 1.944713467e-05 | S159: 0.0001207367341 | T159: 5.606312089e-05 | U159: 2.833289885e-05 | V159: 4.371565012e-05 | W159: 1.555884183e-05 | X159: 2.800151285e-06 | Y159: 4.33773642e-07 | Z159: 0.002421467923 | AA159: 0.0003069565978 | AB159: 0.002531369806
A160: =IF(ResultsSummary!A160="","",ResultsSummary!A160) ->  | B160: =ResultsSummary!B160 -> BAF (Pa / Pasoil) | C160: 1.903610089e-07 | D160: 0.24715832 | E160: 0.2531800444 | F160: 0.247634287 | G160: 0.02055572295 | H160: 0.02020222951 | I160: 0.03732466834 | J160: 0.01195158802 | K160: 0.008923855299 | L160: 0.0048831973 | M160: 0.002295570665 | N160: 0.002439504259 | O160: 0.002191499283 | P160: 0.001112302351 | Q160: 0.005630726967 | R160: 0.001420354288 | S160: 0.008052043423 | T160: 0.003885029489 | U160: 0.002031104466 | V160: 0.003067101015 | W160: 0.001148987504 | X160: 0.0002250833682 | Y160: 3.823225695e-05 | Z160: 0.04745224418 | AA160: 0.01512284821 | AB160: 0.05501562067
A161: =IF(ResultsSummary!A161="","",ResultsSummary!A161) ->  | B161: =ResultsSummary!B161 -> t90 (d) | C161: 65.78813299 | D161: 49.52805799 | E161: 49.13189991 | F161: 49.49674501 | G161: 64.43582262 | H161: 64.4590783 | I161: 63.3326248 | J161: 65.0018727 | K161: 65.20106162 | L161: 65.46688902 | M161: 65.63712418 | N161: 65.62765505 | O161: 65.64397084 | P161: 65.71496921 | Q161: 65.41771043 | R161: 65.69470304 | S161: 65.25841651 | T161: 65.53255663 | U161: 65.65452292 | V161: 65.58636663 | W161: 65.71255576 | X161: 65.7733377 | Y161: 65.78563028 | Z161: 0.3117070159 | AA161: 1.074621221 | AB161: 0.3930348403
A162: =IF(ResultsSummary!A162="","",ResultsSummary!A162) -> Fruit / Tuber | B162: =ResultsSummary!B162 -> Concentration (pg / g ww) | C162: 3.646049335e-07 | D162: 0.0007719985393 | E162: 0.002430049036 | F162: 0.02487040924 | G162: 2.758346729e-05 | H162: 1.178199886e-05 | I162: 7.541504219e-05 | J162: 0.0001040154574 | K162: 0.000106692216 | L162: 0.0003376518997 | M162: 0.0006879528153 | N162: 0.0008421483915 | O162: 0.0005953674724 | P162: 0.0009681210266 | Q162: 0.004396820814 | R162: 0.0003665660089 | S162: 0.001542860059 | T162: 0.01107468496 | U162: 0.03135670924 | V162: 0.03749313072 | W162: 0.07549042593 | X162: 4.615900541e-05 | Y162: 0.0005662062924 | Z162: 23.0002665 | AA162: 6.903419433e-06 | AB162: 3.794554902e-06
A163: =IF(ResultsSummary!A163="","",ResultsSummary!A163) ->  | B163: =ResultsSummary!B163 -> Fugacity (pPa) | C163: 1.297082056e-06 | D163: 0.4710763873 | E163: 0.4764668122 | F163: 0.4713943578 | G163: 0.07602305028 | H163: 0.07482556925 | I163: 0.1435131929 | J163: 0.04806827727 | K163: 0.03423922419 | L163: 0.01804640523 | M163: 0.008574872641 | N163: 0.008664688908 | O163: 0.007791542506 | P163: 0.003795639536 | Q163: 0.01992176865 | R163: 0.005386125269 | S163: 0.02961097878 | T163: 0.0118476942 | U163: 0.005785003113 | V163: 0.008706080437 | W163: 0.003074957267 | X163: 0.001531176665 | Y163: 0.0002127035456 | Z163: 0.05729428788 | AA163: 0.1038357408 | AB163: 0.08538517958
A164: =IF(ResultsSummary!A164="","",ResultsSummary!A164) ->  | B164: =ResultsSummary!B164 -> BAF (Lair / kg ww) | C164: - | D164: - | E164: - | F164: - | G164: - | H164: - | I164: - | J164: - | K164: - | L164: - | M164: - | N164: - | O164: - | P164: - | Q164: - | R164: - | S164: - | T164: - | U164: - | V164: - | W164: - | X164: - | Y164: - | Z164: - | AA164: - | AB164: -
A165: =IF(ResultsSummary!A165="","",ResultsSummary!A165) ->  | B165: =ResultsSummary!B165 -> BAF (g OC / g ww) | C165: 4.469204177e-10 | D165: 0.0005145786263 | E165: 0.0005271482642 | F165: 0.000515444764 | G165: 4.939311821e-05 | H165: 4.854416757e-05 | I165: 9.876825089e-05 | J165: 2.995506864e-05 | K165: 2.091629781e-05 | L165: 1.061709802e-05 | M165: 4.831256949e-06 | N165: 4.898407283e-06 | O165: 4.378634715e-06 | P165: 2.055748898e-06 | Q165: 1.182125432e-05 | R165: 2.955871551e-06 | S165: 1.796809202e-05 | T165: 6.877226681e-06 | U165: 3.23739371e-06 | V165: 4.985568316e-06 | W165: 1.668326666e-06 | X165: 7.621920269e-07 | Y165: 9.653657698e-08 | Z165: 0.001806525967 | AA165: 0.0001968942056 | AB165: 0.002244711313
A166: =IF(ResultsSummary!A166="","",ResultsSummary!A166) ->  | B166: =ResultsSummary!B166 -> BAF (Pa / Pa) | C166: 1.297082056e-06 | D166: 0.4710763873 | E166: 0.4764668122 | F166: 0.4713943578 | G166: 0.07602305028 | H166: 0.07482556925 | I166: 0.1435131929 | J166: 0.04806827727 | K166: 0.03423922419 | L166: 0.01804640523 | M166: 0.008574872641 | N166: 0.008664688908 | O166: 0.007791542506 | P166: 0.003795639536 | Q166: 0.01992176865 | R166: 0.005386125269 | S166: 0.02961097878 | T166: 0.0118476942 | U166: 0.005785003113 | V166: 0.008706080437 | W166: 0.003074957267 | X166: 0.001531176665 | Y166: 0.0002127035456 | Z166: 0.05729428788 | AA166: 0.1038357408 | AB166: 0.08538517958
A167: =IF(ResultsSummary!A167="","",ResultsSummary!A167) ->  | B167: =ResultsSummary!B167 -> t90 (d) | C167: 16.56533889 | D167: 8.76450864 | E167: 8.675006901 | F167: 8.757352447 | G167: 15.30644933 | H167: 15.32629984 | I167: 14.18871356 | J167: 15.7692955 | K167: 15.99832016 | L167: 16.26642734 | M167: 16.42331553 | N167: 16.42182761 | O167: 16.43629173 | P167: 16.50248435 | Q167: 16.23535029 | R167: 16.47613798 | S167: 16.07485266 | T167: 16.36909923 | U167: 16.46952974 | V167: 16.42114105 | W167: 16.51442261 | X167: 16.53999592 | Y167: 16.56183768 | Z167: 0.3039939372 | AA167: 0.9319131879 | AB167: 0.3734039722
A168: =IF(ResultsSummary!A168="","",ResultsSummary!A168) -> Grass and Cultivated Plants | B168: =ResultsSummary!B168 -> Concentration (pg / g ww) | C168: 0.5580019391 | D168: 0.05335110127 | E168: 0.1873061389 | F168: 1.626170237 | G168: 0.03383573104 | H168: 0.01324035377 | I168: 0.04413263255 | J168: 0.1964030785 | K168: 0.2685529771 | L168: 0.4297175602 | M168: 0.4569852635 | N168: 0.5061832312 | O168: 0.5035753767 | P168: 0.5749484105 | Q168: 0.5108765673 | R168: 0.4462909361 | S168: 0.4431290431 | T168: 0.7542112436 | U168: 1.280888932 | V168: 1.154889536 | W168: 3.485819147 | X168: 0.1438538866 | Y168: 0.1397012369 | Z168: 46.75394486 | AA168: 0.0001704998924 | AB168: 9.051108658e-06
A169: =IF(ResultsSummary!A169="","",ResultsSummary!A169) -> Lettuce | B169: =ResultsSummary!B169 -> Fugacity (pPa) | C169: 4.577134023e-05 | D169: 0.9496459608 | E169: 0.8275425194 | F169: 0.3611401044 | G169: 0.8633272294 | H169: 0.9209578881 | I169: 0.80256546 | J169: 0.4097055202 | K169: 0.3022946844 | L169: 0.04761729373 | M169: 0.006035075299 | N169: 0.005679396698 | O169: 0.007170247509 | P169: 0.001596698728 | Q169: 0.002954643377 | R169: 0.006339029793 | S169: 0.01583880603 | T169: 0.0006332375029 | U169: 0.0001097364703 | V169: 0.0001348007872 | W169: 3.770456304e-05 | X169: 0.001937928969 | Y169: 0.3297212571 | Z169: 0.0339345034 | AA169: 0.3367397357 | AB169: 0.1726404084
A170: =IF(ResultsSummary!A170="","",ResultsSummary!A170) -> Leaf: | B170: =ResultsSummary!B170 -> BAF (Lair / kg ww) | C170: 13360976.99 | D170: 439139.1685 | E170: 1541738.785 | F170: 13385197.84 | G170: 284471.0574 | H170: 111317.1586 | I170: 473655.7043 | J170: 1826306.082 | K170: 2202163.842 | L170: 3152357.467 | M170: 3352390.13 | N170: 3358330.082 | O170: 3341027.975 | P170: 3482607.823 | Q170: 3450660.651 | R170: 3349884.949 | S170: 3305427.915 | T170: 3717388.918 | U170: 5431204.97 | V170: 4896944.329 | W170: 12968547.1 | X170: 3444483.493 | Y170: 2230034.081 | Z170: 559102740.4 | AA170: 1905.841923 | AB170: 161.0123641
A171: =IF(ResultsSummary!A171="","",ResultsSummary!A171) ->  | B171: =ResultsSummary!B171 -> BAF (Pa / Paair) | C171: 4.577134023e-05 | D171: 0.9496459608 | E171: 0.8275425194 | F171: 0.3611401044 | G171: 0.8633272294 | H171: 0.9209578881 | I171: 0.80256546 | J171: 0.4097055202 | K171: 0.3022946844 | L171: 0.04761729373 | M171: 0.006035075299 | N171: 0.005679396698 | O171: 0.007170247509 | P171: 0.001596698728 | Q171: 0.002954643377 | R171: 0.006339029793 | S171: 0.01583880603 | T171: 0.0006332375029 | U171: 0.0001097364703 | V171: 0.0001348007872 | W171: 3.770456304e-05 | X171: 0.001937928969 | Y171: 0.3297212571 | Z171: 0.0339345034 | AA171: 0.3367397357 | AB171: 0.1726404084
A172: =IF(ResultsSummary!A172="","",ResultsSummary!A172) ->  | B172: =ResultsSummary!B172 -> t90 (d) | C172: 65.78727117 | D172: 11.10159909 | E172: 25.79211786 | F172: 60.44276542 | G172: 9.024588623 | H172: 5.222076503 | I172: 13.129168 | J172: 38.8651569 | K172: 45.9210749 | L172: 62.66703011 | M172: 65.39731197 | N172: 65.42082891 | O172: 65.32284558 | P172: 65.68805873 | Q172: 65.60154423 | R172: 65.37741805 | S172: 64.76003731 | T172: 65.75091668 | U172: 65.78372669 | V172: 65.78212545 | W172: 65.78750961 | X172: 65.66519121 | Y172: 44.10477843 | Z172: 0.3272347251 | AA172: 0.7319742302 | AB172: 0.4004535116
A173: =IF(ResultsSummary!A173="","",ResultsSummary!A173) -> Root: | B173: =ResultsSummary!B173 -> Concentration (pg / g ww) | C173: 7.384339936e-06 | D173: 0.01791642614 | E173: 0.05580657221 | F173: 0.5768488223 | G173: 0.0009140664994 | H173: 0.0003906338651 | I173: 0.002193313078 | J173: 0.003327990354 | K173: 0.003641348536 | L173: 0.01224945913 | M173: 0.0250714038 | N173: 0.03224960481 | O173: 0.02281011776 | P173: 0.03889301259 | Q173: 0.1658847375 | R173: 0.01322763107 | S173: 0.0552176179 | T173: 0.4897497471 | U173: 1.501053458 | V173: 1.78992013 | W173: 3.866139221 | X173: 0.0009351278643 | Y173: 0.01404138634 | Z173: 140.1246719 | AA173: 5.560728322e-05 | AB173: 1.89167764e-05
A174: =IF(ResultsSummary!A174="","",ResultsSummary!A174) ->  | B174: =ResultsSummary!B174 -> Fugacity (pPa) | C174: 1.050791865e-06 | D174: 0.6444089051 | E174: 0.6517305166 | F174: 0.6449944623 | G174: 0.1038213547 | H174: 0.1021853463 | I174: 0.1762906194 | J174: 0.06259149936 | K174: 0.04734978843 | L174: 0.02637313979 | M174: 0.01254142055 | N174: 0.01331919857 | O174: 0.01197842285 | P174: 0.006109194352 | Q174: 0.03031019163 | R174: 0.007790341667 | S174: 0.04288641837 | T174: 0.02107527395 | U174: 0.011109703 | V174: 0.01669889586 | W174: 0.006309642379 | X174: 0.001241197427 | Y174: 0.0002110055945 | Z174: 0.2156770751 | AA174: 0.07813704315 | AB174: 0.243207636
A175: =IF(ResultsSummary!A175="","",ResultsSummary!A175) ->  | B175: =ResultsSummary!B175 -> BAF (g OC / g ww) | C175: 9.051474582e-09 | D175: 0.01194226347 | E175: 0.0121060675 | F175: 0.01195532016 | G175: 0.001636799108 | H175: 0.001609488851 | I175: 0.002872499837 | J175: 0.0009584169694 | K175: 0.0007138621097 | L175: 0.0003851709657 | M175: 0.0001760678801 | N175: 0.0001875817857 | O175: 0.0001677571888 | P175: 8.25870584e-05 | Q175: 0.0004459962671 | R175: 0.0001066634042 | S175: 0.0006430623656 | T175: 0.000304127841 | U175: 0.0001549748408 | V175: 0.0002380107747 | W175: 8.544107519e-05 | X175: 1.544112565e-05 | Y175: 2.394016795e-06 | Z175: 0.0110059098 | AA175: 0.001585989662 | AB175: 0.01119043026
A176: =IF(ResultsSummary!A176="","",ResultsSummary!A176) ->  | B176: =ResultsSummary!B176 -> BAF (Pa / Pasoil) | C176: 1.050791865e-06 | D176: 0.6444089051 | E176: 0.6517305166 | F176: 0.6449944623 | G176: 0.1038213547 | H176: 0.1021853463 | I176: 0.1762906194 | J176: 0.06259149936 | K176: 0.04734978843 | L176: 0.02637313979 | M176: 0.01254142055 | N176: 0.01331919857 | O176: 0.01197842285 | P176: 0.006109194352 | Q176: 0.03031019163 | R176: 0.007790341667 | S176: 0.04288641837 | T176: 0.02107527395 | U176: 0.011109703 | V176: 0.01669889586 | W176: 0.006309642379 | X176: 0.001241197427 | Y176: 0.0002110055945 | Z176: 0.2156770751 | AA176: 0.07813704315 | AB176: 0.243207636
A177: =IF(ResultsSummary!A177="","",ResultsSummary!A177) ->  | B177: =ResultsSummary!B177 -> t90 (d) | C177: 65.78807638 | D177: 23.39367869 | E177: 22.91200345 | F177: 23.35515597 | G177: 58.95793112 | H177: 59.06556108 | I177: 54.19031259 | J177: 61.67036685 | K177: 62.67309074 | L177: 64.05310556 | M177: 64.96306871 | N177: 64.91190014 | O177: 65.00010729 | P177: 65.38623295 | Q177: 63.79409422 | R177: 65.27563338 | S177: 62.96672758 | T177: 64.40164232 | U177: 65.05725876 | V177: 64.68955612 | W177: 65.37304584 | X177: 65.70648944 | Y177: 65.77426385 | Z177: 0.2566579543 | AA177: 1.005865041 | AB177: 0.3147626272
A178: =IF(ResultsSummary!A178="","",ResultsSummary!A178) -> Fruit / Tuber | B178: =ResultsSummary!B178 -> Concentration (pg / g ww) | C178: - | D178: - | E178: - | F178: - | G178: - | H178: - | I178: - | J178: - | K178: - | L178: - | M178: - | N178: - | O178: - | P178: - | Q178: - | R178: - | S178: - | T178: - | U178: - | V178: - | W178: - | X178: - | Y178: - | Z178: - | AA178: - | AB178: -
A179: =IF(ResultsSummary!A179="","",ResultsSummary!A179) ->  | B179: =ResultsSummary!B179 -> Fugacity (pPa) | C179: - | D179: - | E179: - | F179: - | G179: - | H179: - | I179: - | J179: - | K179: - | L179: - | M179: - | N179: - | O179: - | P179: - | Q179: - | R179: - | S179: - | T179: - | U179: - | V179: - | W179: - | X179: - | Y179: - | Z179: - | AA179: - | AB179: -
A180: =IF(ResultsSummary!A180="","",ResultsSummary!A180) ->  | B180: =ResultsSummary!B180 -> BAF (Lair / kg ww) | C180: - | D180: - | E180: - | F180: - | G180: - | H180: - | I180: - | J180: - | K180: - | L180: - | M180: - | N180: - | O180: - | P180: - | Q180: - | R180: - | S180: - | T180: - | U180: - | V180: - | W180: - | X180: - | Y180: - | Z180: - | AA180: - | AB180: -
A181: =IF(ResultsSummary!A181="","",ResultsSummary!A181) ->  | B181: =ResultsSummary!B181 -> BAF (g OC / g ww) | C181: - | D181: - | E181: - | F181: - | G181: - | H181: - | I181: - | J181: - | K181: - | L181: - | M181: - | N181: - | O181: - | P181: - | Q181: - | R181: - | S181: - | T181: - | U181: - | V181: - | W181: - | X181: - | Y181: - | Z181: - | AA181: - | AB181: -
A182: =IF(ResultsSummary!A182="","",ResultsSummary!A182) ->  | B182: =ResultsSummary!B182 -> BAF (Pa / Pa) | C182: - | D182: - | E182: - | F182: - | G182: - | H182: - | I182: - | J182: - | K182: - | L182: - | M182: - | N182: - | O182: - | P182: - | Q182: - | R182: - | S182: - | T182: - | U182: - | V182: - | W182: - | X182: - | Y182: - | Z182: - | AA182: - | AB182: -
A183: =IF(ResultsSummary!A183="","",ResultsSummary!A183) ->  | B183: =ResultsSummary!B183 -> t90 (d) | C183: - | D183: - | E183: - | F183: - | G183: - | H183: - | I183: - | J183: - | K183: - | L183: - | M183: - | N183: - | O183: - | P183: - | Q183: - | R183: - | S183: - | T183: - | U183: - | V183: - | W183: - | X183: - | Y183: - | Z183: - | AA183: - | AB183: -
A184: =IF(ResultsSummary!A184="","",ResultsSummary!A184) -> Grass and Cultivated Plants | B184: =ResultsSummary!B184 -> Concentration (pg / g ww) | C184: 1.197834531 | D184: 0.04594988011 | E184: 0.1544754063 | F184: 0.8835678077 | G184: 0.03279635084 | H184: 0.01259959257 | I184: 0.04363161251 | J184: 0.2567360587 | K184: 0.3866053832 | L184: 0.8639473793 | M184: 0.9905036611 | N184: 1.097931053 | O184: 1.08912218 | P184: 1.259282607 | Q184: 1.102416941 | R184: 0.9675108224 | S184: 0.9363281253 | T184: 1.628447487 | U184: 2.772421587 | V184: 2.458930894 | W184: 7.603120475 | X184: 0.3145992795 | Y184: 0.220221173 | Z184: 0.05652615928 | AA184: 8.669483706e-05 | AB184: 9.484721512e-07
A185: =IF(ResultsSummary!A185="","",ResultsSummary!A185) -> Carrot | B185: =ResultsSummary!B185 -> Fugacity (pPa) | C185: 9.825502029e-05 | D185: 0.8179047295 | E185: 0.6824921367 | F185: 0.1962228573 | G185: 0.8368071807 | H185: 0.876388529 | I185: 0.7934542568 | J185: 0.535562789 | K185: 0.4351795075 | L185: 0.09573459393 | M185: 0.01308086859 | N185: 0.01231883163 | O185: 0.01550765975 | P185: 0.003497174529 | Q185: 0.0063758041 | R185: 0.01374233585 | S185: 0.03346727051 | T185: 0.001367248273 | U185: 0.000237519235 | V185: 0.0002870108437 | W185: 8.223958936e-05 | X185: 0.004238127116 | Y185: 0.5197634868 | Z185: 4.102727909e-05 | AA185: 0.171223548 | AB185: 0.0180911119
A186: =IF(ResultsSummary!A186="","",ResultsSummary!A186) -> Leaf: | B186: =ResultsSummary!B186 -> BAF (Lair / kg ww) | C186: 28681333.31 | D186: 378218.8496 | E186: 1271505.177 | F186: 7272750.199 | G186: 275732.5559 | H186: 105930.0128 | I186: 468278.4814 | J186: 2387328.29 | K186: 3170206.51 | L186: 6337816.334 | M186: 7266218.328 | N186: 7284348.152 | O186: 7225904.685 | P186: 7627792.996 | Q186: 7446156.277 | R186: 7262190.826 | S186: 6984342.759 | T186: 8026362.235 | U186: 11755578.12 | V186: 10426319.85 | W186: 28286443.39 | X186: 7532865.82 | Y186: 3515364.158 | Z186: 675962.8658 | AA186: 969.0719019 | AB186: 16.87260082
A187: =IF(ResultsSummary!A187="","",ResultsSummary!A187) ->  | B187: =ResultsSummary!B187 -> BAF (Pa / Paair) | C187: 9.825502029e-05 | D187: 0.8179047295 | E187: 0.6824921367 | F187: 0.1962228573 | G187: 0.8368071807 | H187: 0.876388529 | I187: 0.7934542568 | J187: 0.535562789 | K187: 0.4351795075 | L187: 0.09573459393 | M187: 0.01308086859 | N187: 0.01231883163 | O187: 0.01550765975 | P187: 0.003497174529 | Q187: 0.0063758041 | R187: 0.01374233585 | S187: 0.03346727051 | T187: 0.001367248273 | U187: 0.000237519235 | V187: 0.0002870108437 | W187: 8.223958936e-05 | X187: 0.004238127116 | Y187: 0.5197634868 | Z187: 4.102727909e-05 | AA187: 0.171223548 | AB187: 0.0180911119
A188: =IF(ResultsSummary!A188="","",ResultsSummary!A188) ->  | B188: =ResultsSummary!B188 -> t90 (d) | C188: 65.78638254 | D188: 11.9969348 | E188: 20.91172258 | F188: 55.61344168 | G188: 10.74547797 | H188: 8.140575588 | I188: 13.59818122 | J188: 30.56990176 | K188: 37.17449764 | L188: 59.5082087 | M188: 64.94040153 | N188: 64.99067858 | O188: 64.78124565 | P188: 65.56884245 | Q188: 65.38051695 | R188: 64.8975776 | S188: 63.60141155 | T188: 65.70638523 | U188: 65.77842661 | V188: 65.77490616 | W188: 65.78674659 | X188: 65.51928665 | Y188: 31.60649592 | Z188: 0.3272343315 | AA188: 0.9043301731 | AB188: 0.4084604097
A189: =IF(ResultsSummary!A189="","",ResultsSummary!A189) -> Root: | B189: =ResultsSummary!B189 -> Concentration (pg / g ww) | C189: 1.393666166e-08 | D189: 9.476855703e-05 | E189: 0.0003013598536 | F189: 0.00305623577 | G189: 1.924575157e-06 | H189: 8.209874944e-07 | I189: 5.023401015e-06 | J189: 6.699541256e-06 | K189: 7.213311118e-06 | L189: 2.374372123e-05 | M189: 4.79177011e-05 | N189: 6.168552637e-05 | O189: 4.357102546e-05 | P189: 7.38540801e-05 | Q189: 0.0003228453973 | R189: 2.516047339e-05 | S189: 0.0001088739758 | T189: 0.0009441780423 | U189: 0.002864741606 | V189: 0.003435419893 | W189: 0.007342903639 | X189: 1.767079056e-06 | Y189: 2.650623745e-05 | Z189: 0.9531631669 | AA189: 3.154106474e-07 | AB189: 1.32995332e-07
A190: =IF(ResultsSummary!A190="","",ResultsSummary!A190) ->  | B190: =ResultsSummary!B190 -> Fugacity (pPa) | C190: 1.983187505e-09 | D190: 0.003408587271 | E190: 0.00351939575 | F190: 0.003417282087 | G190: 0.0002185967872 | H190: 0.0002147609281 | I190: 0.0004037629125 | J190: 0.0001260022679 | K190: 9.379732589e-05 | L190: 5.112033703e-05 | M190: 2.396978032e-05 | N190: 2.547633621e-05 | O190: 2.288073093e-05 | P190: 1.160077091e-05 | Q190: 5.898979017e-05 | R190: 1.481812451e-05 | S190: 8.456023737e-05 | T190: 4.063056901e-05 | U190: 2.120272815e-05 | V190: 3.205043512e-05 | W190: 1.198381469e-05 | X190: 2.345448213e-06 | Y190: 3.983199562e-07 | Z190: 0.001467089565 | AA190: 0.0004432019321 | AB190: 0.001709883313
A191: =IF(ResultsSummary!A191="","",ResultsSummary!A191) ->  | B191: =ResultsSummary!B191 -> BAF (g OC / g ww) | C191: 1.708308933e-11 | D191: 6.316834996e-05 | E191: 6.537371112e-05 | F191: 6.334116622e-05 | G191: 3.446295103e-06 | H191: 3.382630993e-06 | I191: 6.578959812e-06 | J191: 1.929378798e-06 | K191: 1.414121566e-06 | L191: 7.465955792e-07 | M191: 3.365095996e-07 | N191: 3.587976117e-07 | O191: 3.204434462e-07 | P191: 1.568248593e-07 | Q191: 8.679993362e-07 | R191: 2.028860443e-07 | S191: 1.267942355e-06 | T191: 5.863215474e-07 | U191: 2.957675305e-07 | V191: 4.56817562e-07 | W191: 1.622770278e-07 | X191: 2.91785656e-08 | Y191: 4.519238776e-09 | Z191: 7.486495915e-05 | AA191: 8.995908397e-06 | AB191: 7.867487339e-05
A192: =IF(ResultsSummary!A192="","",ResultsSummary!A192) ->  | B192: =ResultsSummary!B192 -> BAF (Pa / Pasoil) | C192: 1.983187505e-09 | D192: 0.003408587271 | E192: 0.00351939575 | F192: 0.003417282087 | G192: 0.0002185967872 | H192: 0.0002147609281 | I192: 0.0004037629125 | J192: 0.0001260022679 | K192: 9.379732589e-05 | L192: 5.112033703e-05 | M192: 2.396978032e-05 | N192: 2.547633621e-05 | O192: 2.288073093e-05 | P192: 1.160077091e-05 | Q192: 5.898979017e-05 | R192: 1.481812451e-05 | S192: 8.456023737e-05 | T192: 4.063056901e-05 | U192: 2.120272815e-05 | V192: 3.205043512e-05 | W192: 1.198381469e-05 | X192: 2.345448213e-06 | Y192: 3.983199562e-07 | Z192: 0.001467089565 | AA192: 0.0004432019321 | AB192: 0.001709883313
A193: =IF(ResultsSummary!A193="","",ResultsSummary!A193) ->  | B193: =ResultsSummary!B193 -> t90 (d) | C193: 23.02585088 | D193: 22.94736531 | E193: 22.94481385 | F193: 22.9471651 | G193: 23.02081755 | H193: 23.02090588 | I193: 23.01655395 | J193: 23.02294962 | K193: 23.02369117 | L193: 23.02467384 | M193: 23.02529901 | N193: 23.02526432 | O193: 23.02532408 | P193: 23.02558381 | Q193: 23.02449264 | R193: 23.02550973 | S193: 23.02390386 | T193: 23.02491538 | U193: 23.02536272 | V193: 23.02511294 | W193: 23.02557499 | X193: 23.02579692 | Y193: 23.02584176 | Z193: 0.3237641779 | AA193: 1.058049073 | AB193: 0.4103872443
A194: =IF(ResultsSummary!A194="","",ResultsSummary!A194) -> Fruit / Tuber | B194: =ResultsSummary!B194 -> Concentration (pg / g ww) | C194: - | D194: - | E194: - | F194: - | G194: - | H194: - | I194: - | J194: - | K194: - | L194: - | M194: - | N194: - | O194: - | P194: - | Q194: - | R194: - | S194: - | T194: - | U194: - | V194: - | W194: - | X194: - | Y194: - | Z194: - | AA194: - | AB194: -
A195: =IF(ResultsSummary!A195="","",ResultsSummary!A195) ->  | B195: =ResultsSummary!B195 -> Fugacity (pPa) | C195: - | D195: - | E195: - | F195: - | G195: - | H195: - | I195: - | J195: - | K195: - | L195: - | M195: - | N195: - | O195: - | P195: - | Q195: - | R195: - | S195: - | T195: - | U195: - | V195: - | W195: - | X195: - | Y195: - | Z195: - | AA195: - | AB195: -
A196: =IF(ResultsSummary!A196="","",ResultsSummary!A196) ->  | B196: =ResultsSummary!B196 -> BAF (Lair / kg ww) | C196: - | D196: - | E196: - | F196: - | G196: - | H196: - | I196: - | J196: - | K196: - | L196: - | M196: - | N196: - | O196: - | P196: - | Q196: - | R196: - | S196: - | T196: - | U196: - | V196: - | W196: - | X196: - | Y196: - | Z196: - | AA196: - | AB196: -
A197: =IF(ResultsSummary!A197="","",ResultsSummary!A197) ->  | B197: =ResultsSummary!B197 -> BAF (g OC / g ww) | C197: - | D197: - | E197: - | F197: - | G197: - | H197: - | I197: - | J197: - | K197: - | L197: - | M197: - | N197: - | O197: - | P197: - | Q197: - | R197: - | S197: - | T197: - | U197: - | V197: - | W197: - | X197: - | Y197: - | Z197: - | AA197: - | AB197: -
A198: =IF(ResultsSummary!A198="","",ResultsSummary!A198) ->  | B198: =ResultsSummary!B198 -> BAF (Pa / Pa) | C198: - | D198: - | E198: - | F198: - | G198: - | H198: - | I198: - | J198: - | K198: - | L198: - | M198: - | N198: - | O198: - | P198: - | Q198: - | R198: - | S198: - | T198: - | U198: - | V198: - | W198: - | X198: - | Y198: - | Z198: - | AA198: - | AB198: -
A199: =IF(ResultsSummary!A199="","",ResultsSummary!A199) ->  | B199: =ResultsSummary!B199 -> t90 (d) | C199: - | D199: - | E199: - | F199: - | G199: - | H199: - | I199: - | J199: - | K199: - | L199: - | M199: - | N199: - | O199: - | P199: - | Q199: - | R199: - | S199: - | T199: - | U199: - | V199: - | W199: - | X199: - | Y199: - | Z199: - | AA199: - | AB199: -
A200: ChemProp | B200: logKow | C200: 12 | D200: 3.98 | E200: 3.93 | F200: 3.91 | G200: 5.47 | H200: 5.48 | I200: 5.11 | J200: 5.71 | K200: 5.82 | L200: 6.34 | M200: 6.68 | N200: 6.68 | O200: 6.74 | P200: 7.18 | Q200: 6.15 | R200: 6.93 | S200: 5.94 | T200: 6.39 | U200: 6.76 | V200: 6.53 | W200: 7.08 | X200: 8 | Y200: 9 | Z200: 1.36 | AA200: 3.28 | AB200: 1.49
... 1 more rows

Sheet D values
B1: Human bioaccumulation model for neutral organic contaminants | K1: =B1 -> Human bioaccumulation model for neutral organic contaminants
B2: G.Czub, E. Arbaban, E. Undeman, J. Armitage, M.S. McLachlan | K2: =B2 -> G.Czub, E. Arbaban, E. Undeman, J. Armitage, M.S. McLachlan
B3: Dept. of Appl. Environ. Sci. (ITM), Stockholm University, SE-106 91 Stockholm | K3: =B3 -> Dept. of Appl. Environ. Sci. (ITM), Stockholm University, SE-106 91 Stockholm
B5: b-HCH | K5: b-HCH
B6: Default Scenario | K6: Default Scenario
B8: Human | K8: Grass and Cultivated Plants
B9: D value (mol Pa-1 d-1) | C9: 30yr old woman (annual mean) | K9: D value (mol Pa-1 d-1) | L9: Grass | M9: Apple | N9: Grain | O9: Potato | P9: Lettuce | Q9: Carrot
B10: Ingestion | K10: Gaseous deposition (leaf) | L10: 0.0001492189282 | M10: 4.164314611e-05 | N10: 0.000136716539 | O10: 2.952303954e-05 | P10: 0.0001373903009 | Q10: 2.952303954e-05
B11: water | C11: 0.3184530095 | K11: Gaseous deposition (fruit) | L11: - | M11: 8.324193351e-06 | N11: 4.969121087e-06 | O11: - | P11: - | Q11: -
B12: dairy | C12: 0.0004376604861 | K12: Particle bound deposition | L12: 2.811152039e-09 | M12: 2.811152039e-09 | N12: 2.811152039e-09 | O12: 2.811152039e-09 | P12: 2.811152039e-09 | Q12: 2.811152039e-09
B13: fish1 | C13: 2.339930626e-05 | K13: Transp. stream into fuits | L13: - | M13: 7.827289139e-05 | N13: 7.210039232e-05 | O13: - | P13: - | Q13: -
B14: fish2 | C14: 2.689594557e-05 | K14: Transp. stream into leaves | L14: 0.001216240167 | M14: 0.0003916168194 | N14: 0.001986152199 | O14: 0.0001559282266 | P14: 0.002058252591 | Q14: 0.0001559282266
B15: beef | C15: 6.612776668e-05 | K15: Phloem stream into fruit/tuber | L15: - | M15: 0.0001477501772 | N15: 0.0001508443103 | O15: 6.346007806e-06 | P15: - | Q15: -
B16: aerial fruit (apple) | C16: 7.999339871e-05 | K16: Phloem stream into root | L16: 0 | M16: 0 | N16: 0 | O16: 0 | P16: 0 | Q16: 0
B17: grain | C17: 0.0001364251701 | K17: Leaf growth | L17: 2.658379136e-05 | M17: 5.010022218e-06 | N17: 2.24939773e-05 | O17: 1.022453514e-05 | P17: 2.24939773e-05 | Q17: 1.022453514e-05
B18: tuber (potato) | C18: 3.654285168e-05 | K18: Fruit/tuber growth | L18: - | M18: 7.399479437e-05 | N18: 1.451810563e-05 | O18: 9.177836521e-05 | P18: - | Q18: -
B19: leavy veg. (lettuce) | C19: 1.508616565e-05 | K19: Root growth | L19: 4.04908582e-05 | M19: 0.002366348856 | N19: 4.04908582e-05 | O19: 1.69325407e-05 | P19: 4.04908582e-05 | Q19: 0.001625310834
B20: root fruit (carrot) | C20: 1.195482909e-05 | K20: Leaf metabolism | L20: 0.004178340143 | M20: 0.0007874564115 | N20: 0.003535518582 | O20: 0.001607053901 | P20: 0.003535518582 | Q20: 0.001607053901
B21: in- and exhalation | C21: 0.004071997413 | K21: Fruit/tuber metabolism | L21: - | M21: 0.01163022292 | N21: 0.00228190113 | O21: 0.003632289316 | P21: - | Q21: -
B22: absorption efficiency | C22: 1 | K22: Root metabolism | L22: 0.0002651750208 | M22: 0.1301768284 | N22: 0.006364200498 | O22: 0.002661392936 | P22: 0.006364200498 | Q22: 0.08941108113
B23: egestion | C23: 3.099839117e-12 | K23: Soil water-tuber exchange | L23: - | M23: - | N23: - | O23: 0.0003475057564 | P23: - | Q23: -
B24: water excretion (urination, perspiration,...) | C24: 0.08254876036
B25: metabolism | C25: 3.426573665e-09 | L25: Grass | M25: Apple | N25: Grain | O25: Potato | P25: Lettuce | Q25: Carrot
B26: growth | C26: 8.8698725e-07 | K26: Gaseous deposition (leaf) | L26: 0.07864929852 | M26: 0.07051926457 | N26: 0.07853637015 | O26: 0.0702149616 | P26: 0.07855119632 | Q26: 0.0702149616
B27: percutaneous excretion | C27: 2.518777694e-06 | K27: Gaseous deposition (fruit) | L27: 0.07864929852 | M27: 0.07051926457 | N27: 0.07853637015 | O27: 0.0702149616 | P27: 0.07855119632 | Q27: 0.0702149616
K30: Cattle
K31: D value (mol Pa-1 d-1) | L31: Beef Cattle | M31: Milk Cow
K32: ingestion | L32: 0.06057209737 | M32: 0.06245575088
K33: Grass | L33: 0.03286457723 | M33: 0.023735528
K34: Soil | L34: 9.758348058e-05 | M34: 6.631155437e-05
B35: Aquatic Food Chain | K35: Water | L35: 0.02760993666 | M35: 0.03865391133
B36: D value (mol Pa-1 d-1) | C36: benthic Filter Feeder | D36: benthic Predator | E36: Fish 1 | F36: Fish 2 | K36: Transfer across intestinal wall | L36: 0.002231538164 | M36: 0.002231538164
B37: Ingestion (E0*DU) | C37: 1.457422998e-08 | D37: 4.048107254e-07 | E37: 5.142955314e-07 | F37: 4.770035654e-06 | K37: Respiration | L37: 0.04071997413 | M37: 0.04071997413
B38: Egestion (E0*DE) | C38: 5.680762175e-08 | D38: 2.152262523e-07 | E38: 6.428694143e-08 | F38: 5.962544567e-07 | K38: Urination | L38: 0.007156993269 | M38: 0.007156993269
B39: Gill ventilation | C39: 0.0001415580386 | D39: 0.0005316198684 | E39: 0.0004228965473 | F39: 0.003242907316 | K39: Lactation | L39: - | M39: 0.005239534865
B40: Growth | C40: 9.18321154e-09 | D40: 3.569564643e-08 | E40: 9.384153306e-09 | F40: 1.184957915e-07 | K40: Growth | L40: 0.01849604556 | M40: 0
B41: Metabolism | C41: 7.951849196e-06 | D41: 4.561507632e-05 | E41: 4.463367446e-05 | F41: 0.001026068778 | K41: Metabolism | L41: 0.5652769766 | M41: 0.4845231228

Sheet Charts
B1: Human bioaccumulation model for neutral organic contaminants | K1: =B1 -> Human bioaccumulation model for neutral organic contaminants
B2: G.Czub, E. Arbaban, E. Undeman, J. Armitage, M.S. McLachlan | K2: =B2 -> G.Czub, E. Arbaban, E. Undeman, J. Armitage, M.S. McLachlan
B3: Dept. of Appl. Environ. Sci. (ITM), Stockholm University, SE-106 91 Stockholm | K3: =B3 -> Dept. of Appl. Environ. Sci. (ITM), Stockholm University, SE-106 91 Stockholm
B5: b-HCH | K5: b-HCH
B6: Default Scenario | K6: Default Scenario
B9: Organism | C9: fugacity pPa | D9: conc ng/g ww
B10: Zooplankton | C10: ='Model Input & Results'!C39 -> 1 | D10: ='Model Input & Results'!C37 -> 2.69952453e-07
B11: Amphipod | C11: ='Model Input & Results'!D39 -> 1 | D11: ='Model Input & Results'!D37 -> 2.69952453e-07
B12: Benthic filter feeder | C12: ='Model Input & Results'!E39 -> 0.9464936066 | D12: ='Model Input & Results'!E37 -> 1.841517982e-07
B13: Benthic predator | C13: ='Model Input & Results'!F39 -> 0.9212774024 | D13: ='Model Input & Results'!F37 -> 1.468895595e-07
B14: ='Model Input & Results'!G36 -> Fish 1 | C14: ='Model Input & Results'!G39 -> 0.9054904146 | D14: ='Model Input & Results'!G37 -> 1.977728347e-07
B15: ='Model Input & Results'!H36 -> Fish 2 | C15: ='Model Input & Results'!H39 -> 0.76054493 | D15: ='Model Input & Results'!H37 -> 1.909376144e-07
B16: ='Model Input & Results'!L20 -> Beef Cattle | C16: ='Model Input & Results'!L23 -> 0.1132424619 | D16: ='Model Input & Results'!L21 -> 1.342498948e-08
B17: ='Model Input & Results'!M20 -> Milk Cow | C17: ='Model Input & Results'!M23 -> 0.1453515102 | D17: ='Model Input & Results'!M21 -> 1.723154426e-08
B18: ='Model Input & Results'!N20 -> Beef | C18: ='Model Input & Results'!N23 -> 0.1132424619 | D18: ='Model Input & Results'!N21 -> 1.342498948e-08
B19: ='Model Input & Results'!O20 -> Milk | C19: ='Model Input & Results'!O23 -> 0.1453515102 | D19: ='Model Input & Results'!O21 -> 6.056093413e-09
B20: ='Model Input & Results'!P20 -> Dairy Products | C20: ='Model Input & Results'!P23 -> 0.1453515102 | D20: ='Model Input & Results'!P21 -> 2.442667558e-08
B21: Grass (leaf) | C21: ='Model Input & Results'!L39 -> 0.2574989516 | D21: ='Model Input & Results'!L38/1000 -> 1.350003172e-08
B22: Apple (fruit) | C22: ='Model Input & Results'!M52 -> 0.007946366121 | D22: ='Model Input & Results'!M51/1000 -> 4.651484711e-10 | E22: obs converted from pg/g ww
B23: Grain (fruit) | C23: ='Model Input & Results'!N52 -> 0.04376332151 | D23: ='Model Input & Results'!N51/1000 -> 8.749247042e-09
B24: Potato (tuber) | C24: ='Model Input & Results'!O52 -> 0.08538517958 | D24: ='Model Input & Results'!O51/1000 -> 3.794554902e-09
B25: Lettuce (leaf) | C25: ='Model Input & Results'!P39 -> 0.1726404084 | D25: ='Model Input & Results'!P38/1000 -> 9.051108658e-09
B26: Carrot (root) | C26: ='Model Input & Results'!Q46 -> 0.001709883313 | D26: ='Model Input & Results'!Q45/1000 -> 1.32995332e-10
B27: ='Model Input & Results'!B19 -> Human | C27: ='Model Input & Results'!D25 -> 7.404588266 | D27: ='Model Input & Results'!D22 -> --
B29: Environmental compartment | C29: fugacity | D29: conc
B30: Air | C30: 1 | D30: 4.176355812e-05
B31: Aerosol | C31: 1 | D31: 55.5519101
B32: Water | C32: 1 | D32: 0.005928498283
B33: Susp matter | C33: 1 | D33: 5.206280078
B34: Sediment | C34: 1 | D34: 5.206256364
B35: Soil | C35: 1 | D35: 2.299303494
B68: b-HCH | K68: b-HCH
K69: Default Scenario

Sheet chemical database
N1: heats of phase transfer | R1: metabolism rate constants
B2: MW | C2: log KAW | D2: log KOA | E2: log KOW | F2: KNLOM : Koct | G2: log KE_OC | H2: log Kss_oc | I2: log KS_OC | J2: log KQ | K2: log KPA | L2: log KProt | M2: log KCHO | N2: DUAW | O2: DUOA | P2: DUOW | Q2: DUOC | R2: kM (plant leaf) | S2: kM (plant root) | T2: kM (plantfruit) | U2: kM (cattle) | V2: kM (human) | W2: kM (seal) | X2: kM (benthos) | Y2: kM (fish) | Z2: KFB (human) | AA2: KFB (seal) | AB2: E0 (human) | AC2: E0 (cattle) | AD2: E0(benthos) | AE2: E0 (fish) | AF2: E0 (seal) | AG2: E0 (human) | AH2: E0 (cattle) | AI2: E0(benthos) | AJ2: E0 (fish) | AK2: E0 (seal) | AL2: S | AM2: A | AN2: B | AO2: L | AP2: V | AQ2: E
A3: Chemical Name | B3: [g mol-1] | F3: b | G3: [L kg-1] | H3: [L kg-1] | I3: [L kg-1] | J3: [m3 m-3] | K3: [m3 m-3] | L3: [m3 m-3] | M3: [m3 m-3] | N3: [J mol-1] | O3: [J mol-1] | P3: [J mol-1] | Q3: [J mol-1] | R3: [h-1] | S3: [h-1] | T3: [h-1] | U3: [h-1] | V3: [h-1] | W3: [h-1] | X3: [h-1] | Y3: [h-1] | AB3: sp | AC3: sp | AD3: sp | AE3: sp | AF3: sp | AG3: pp | AH3: pp | AI3: pp | AJ3: pp | AK3: pp
A4: Hypothetical 1 | B4: 100 | C4: 0 | D4: 12 | E4: 12 | F4: 0.035 | N4: 60000 | O4: -80000 | P4: -20000 | R4: 0 | S4: 0 | T4: 0 | U4: 0 | V4: 0 | W4: 0 | X4: 0 | Y4: 0 | Z4: 2e-08 | AA4: 2e-08 | AL4: 1.48 | AM4: 0 | AN4: 0.15 | AO4: 8.144 | AP4: 1.8138 | AQ4: 1.9
A5: a-HCH | B5: 290.9 | C5: -3.39 | D5: 7.37 | E5: 3.98 | F5: 0.035 | G5: 0 | H5: 0 | I5: 0 | J5: 0 | K5: 0 | L5: 0 | M5: 0 | N5: 56800 | O5: -61900 | P5: -5100 | Q5: -5100 | R5: 0 | S5: 0 | T5: 0 | U5: 0 | V5: 0 | W5: 0 | X5: 0 | Y5: 0 | Z5: 2e-08 | AA5: 2e-08 | AB5: 0 | AC5: 0 | AD5: 0 | AE5: 0 | AF5: 0 | AG5: 0 | AH5: 0.7720171093 | AI5: 0.6573972686 | AJ5: 0.6573972686 | AK5: 0 | AL5: 1.2 | AM5: 0 | AN5: 0.47 | AO5: 7.34 | AP5: 1.58 | AQ5: 1.45
A6: g-HCH (lindane) | B6: 290.9 | C6: =E6-D6 -> -3.89 | D6: 7.82 | E6: 3.93 | F6: 0.035 | N6: =P6-O6 -> 57200 | O6: -67400 | P6: -10200 | R6: 0 | S6: 0 | T6: 0 | U6: 0 | V6: 0 | W6: 0 | X6: 0 | Y6: 0 | Z6: 2e-08 | AA6: 2e-08 | AL6: 1.18 | AM6: 0.12 | AN6: 0.58 | AO6: 7.63 | AP6: 1.58 | AQ6: 1.45
A7: b-HCH | B7: 290.9 | C7: -4.83 | D7: 8.74 | E7: 3.91 | F7: 0.035 | G7: 0 | H7: 0 | I7: 0 | J7: 10 | K7: 0 | L7: 0 | M7: 0 | N7: 67900 | O7: -84100 | P7: -16200 | Q7: -16200 | R7: 0 | S7: 0 | T7: 0 | U7: 0 | V7: 0 | W7: 0 | X7: 0 | Y7: 0 | Z7: 2e-08 | AA7: 2e-08 | AB7: 0 | AC7: 0 | AD7: 0 | AE7: 0 | AF7: 0 | AG7: 0 | AH7: 0.7720444442 | AI7: 0.657406933 | AJ7: 0.657406933 | AK7: 0 | AL7: 1.18 | AM7: 0.12 | AN7: 0.58 | AO7: 7.63 | AP7: 1.58 | AQ7: 1.45
A8: HCB | B8: 284.8 | C8: -1.77 | D8: 7.24 | E8: 5.47 | F8: 0.035 | N8: 46350 | O8: -63220 | P8: -16870 | R8: 0 | S8: 0 | T8: 0 | U8: 0 | V8: 0 | W8: 0 | X8: 0 | Y8: 0 | Z8: 8e-08 | AA8: 8e-08 | AL8: 0.99 | AM8: 0 | AN8: 0 | AO8: 7.624 | AP8: 1.451 | AQ8: 1.49
A9: HCBz_popcycling | B9: 284.8 | C9: -1.4 | D9: 6.88 | E9: 5.48 | F9: 0.035 | N9: 46350 | O9: -63220 | P9: -16870 | R9: 0 | S9: 0 | T9: 0 | U9: 0 | V9: 0 | W9: 0 | X9: 0 | Y9: 0 | Z9: 8e-08 | AA9: 8e-08 | AL9: 1.2 | AM9: 0 | AN9: 0.18 | AO9: 7.197 | AP9: 1.569 | AQ9: 1.62
A10: PCB-8 | B10: 223.1 | C10: -2.24 | D10: 7.35 | E10: 5.11 | F10: 0.035 | N10: 54900 | O10: -73900 | P10: -19000 | R10: 0 | S10: 0 | T10: 0 | U10: 0 | V10: 0 | W10: 0 | X10: 0 | Y10: 0 | Z10: 2e-08 | AA10: 2e-08 | AL10: 1.2 | AM10: 0 | AN10: 0.18 | AO10: 7.197 | AP10: 1.569 | AQ10: 1.62
A11: PCB-28 | B11: 257.5 | C11: -2.35 | D11: 8.06 | E11: 5.71 | F11: 0.035 | N11: 47230 | O11: -75620 | P11: -28390 | R11: 0 | S11: 0 | T11: 0 | U11: 0.00932 | V11: 5e-05 | W11: 5e-05 | X11: 0 | Y11: 0 | Z11: 2e-08 | AA11: 2e-08 | AL11: 1.33 | AM11: 0 | AN11: 0.15 | AO11: 7.904 | AP11: 1.6914 | AQ11: 1.76
A12: PCB-52 | B12: 292 | C12: -2.32 | D12: 8.14 | E12: 5.82 | F12: 0.035 | N12: 48440 | O12: -86000 | P12: -37560 | R12: 0 | S12: 0 | T12: 0 | U12: 0.00932 | V12: 5e-05 | W12: 5e-05 | X12: 0 | Y12: 0 | Z12: 2e-08 | AA12: 2e-08 | AL12: 1.48 | AM12: 0 | AN12: 0.15 | AO12: 8.144 | AP12: 1.8138 | AQ12: 1.9
A13: PCB-101 | B13: 326.4 | C13: -2.65 | D13: 8.99 | E13: 6.34 | F13: 0.035 | N13: 70960 | O13: -79770 | P13: -8810 | R13: 0 | S13: 0 | T13: 0 | U13: 0.00932 | V13: 5e-05 | W13: 5e-05 | X13: 0 | Y13: 0 | Z13: 2e-08 | AA13: 2e-08 | AL13: 1.61 | AM13: 0 | AN13: 0.13 | AO13: 8.868 | AP13: 1.9362 | AQ13: 2.04
A14: PCB-118 | B14: 326.4 | C14: -2.98 | D14: 9.66 | E14: 6.68 | F14: 0.035 | N14: 66900 | O14: -89850 | P14: -22950 | R14: 0 | S14: 0 | T14: 0 | U14: 0 | V14: 0 | W14: 0 | X14: 0 | Y14: 0 | Z14: 2e-08 | AA14: 2e-08 | AL14: 1.59 | AM14: 0 | AN14: 0.11 | AO14: 9.396 | AP14: 1.9362 | AQ14: 2.06
A15: PCB-138 | B15: 360.9 | C15: -3.03 | D15: 9.71 | E15: 6.68 | F15: 0.035 | N15: 69500 | O15: -86880 | P15: -17380 | R15: 0 | S15: 0 | T15: 0 | U15: 0 | V15: 0 | W15: 0 | X15: 0 | Y15: 0 | Z15: 2e-08 | AA15: 2e-08 | AL15: 1.74 | AM15: 0 | AN15: 0.11 | AO15: 9.772 | AP15: 2.0586 | AQ15: 2.18
A16: PCB-153 | B16: 360.9 | C16: -2.87 | D16: 9.61 | E16: 6.74 | F16: 0.035 | N16: 70960 | O16: -88440 | P16: -17480 | R16: 0 | S16: 0 | T16: 0 | U16: 0 | V16: 0 | W16: 0 | X16: 0 | Y16: 0 | Z16: 2e-08 | AA16: 2e-08 | AL16: 1.74 | AM16: 0 | AN16: 0.11 | AO16: 9.587 | AP16: 2.0586 | AQ16: 2.18
A17: PCB-180 | B17: 395.3 | C17: -3.04 | D17: 10.22 | E17: 7.18 | F17: 0.035 | N17: 74140 | O17: -82410 | P17: -8270 | R17: 0 | S17: 0 | T17: 0 | U17: 0 | V17: 0 | W17: 0 | X17: 0 | Y17: 0 | Z17: 2e-08 | AA17: 2e-08 | AL17: 1.87 | AM17: 0 | AN17: 0.09 | AO17: 10.415 | AP17: 2.181 | AQ17: 2.29
A18: pp-DDT | B18: 354.5 | C18: -3.83 | D18: 9.98 | E18: 6.15 | F18: 0.035 | N18: 57610 | O18: -84110 | P18: -26500 | R18: 0 | S18: 0 | T18: 0 | U18: 0 | V18: 0 | W18: 0 | X18: 0 | Y18: 0 | Z18: 2e-08 | AA18: 2e-08
A19: pp-DDD | B19: 319 | C19: -2.77 | D19: 9.7 | E19: 6.93 | F19: 0.035 | N19: 57210 | O19: -83610 | P19: -26400 | R19: 0 | S19: 0 | T19: 0 | U19: 0 | V19: 0 | W19: 0 | X19: 0 | Y19: 0 | Z19: 2e-08 | AA19: 2e-08
A20: pp-DDE | B20: 321 | C20: -3.38 | D20: 9.32 | E20: 5.94 | F20: 0.035 | N20: 61020 | O20: -88620 | P20: -27600 | R20: 0 | S20: 0 | T20: 0 | U20: 0 | V20: 0 | W20: 0 | X20: 0 | Y20: 0 | Z20: 2e-08 | AA20: 2e-08
A21: PBDE-47 | B21: 485.8 | C21: -4.05 | D21: 10.44 | E21: 6.39 | F21: 0.035 | N21: 75300 | O21: -97000 | P21: -21700 | R21: 0 | S21: 0 | T21: 0 | U21: 0 | V21: 0 | W21: 0 | X21: 0 | Y21: 0 | Z21: 2e-08 | AA21: 2e-08
A22: PBDE-99 | B22: 564.7 | C22: -4.5 | D22: 11.26 | E22: 6.76 | F22: 0.035 | N22: 69900 | O22: -91100 | P22: -21200 | R22: 0 | S22: 0 | T22: 0 | U22: 0 | V22: 0 | W22: 0 | X22: 0 | Y22: 0 | Z22: 2e-08 | AA22: 2e-08
A23: PBDE-100 | B23: 564.7 | C23: -4.49 | D23: 11.02 | E23: 6.53 | F23: 0.035 | N23: 84300 | O23: -105000 | P23: -20700 | R23: 0 | S23: 0 | T23: 0 | U23: 0 | V23: 0 | W23: 0 | X23: 0 | Y23: 0 | Z23: 2e-08 | AA23: 2e-08
A24: PBDE-153 | B24: 643.6 | C24: -4.81 | D24: 11.89 | E24: 7.08 | F24: 0.035 | N24: 76700 | O24: -98200 | P24: -21500 | R24: 0 | S24: 0 | T24: 0 | U24: 0 | V24: 0 | W24: 0 | X24: 0 | Y24: 0 | Z24: 2e-08 | AA24: 2e-08
A25: test chemical | B25: 100 | C25: -2 | D25: 10 | E25: 8 | F25: 0.035 | N25: =P25-O25 -> 76700 | O25: -98200 | P25: -21500 | R25: 0 | S25: 0 | T25: 0 | U25: 0 | V25: 0 | W25: 0 | X25: 0 | Y25: 0 | Z25: 2e-08 | AA25: 2e-08
A26: test chemical | B26: 150 | C26: -3 | D26: 8 | E26: 9 | F26: 0.035 | N26: =P26-O26 -> 76700 | O26: -98200 | P26: -21500 | R26: 0 | S26: 0 | T26: 0 | U26: 0 | V26: 0 | W26: 0 | X26: 0 | Y26: 0 | Z26: 2e-08 | AA26: 2e-08
A27: 101-80-4 | B27: 200.23 | C27: -9.221 | D27: 10.581 | E27: 1.36 | F27: 0.035 | N27: 86640.476 | O27: -106640.476 | P27: -20000 | R27: 0.2917286113 | S27: 0.2917286113 | T27: 0.2917286113 | U27: =4*0.291728611346778 -> 1.166914445 | V27: 0.2917286113 | W27: 0.2917286113 | X27: 0.2917286113 | Y27: 0.2917286113 | Z27: 2e-08
A28: 102-09-0 | B28: 214.21 | C28: -2.46 | D28: 5.74 | E28: 3.28 | F28: 0.035 | N28: 44059.04 | O28: -64059.04 | P28: -20000 | R28: 0.08647045666 | S28: 0.08647045666 | T28: 0.08647045666 | U28: =4*0.0864704566566798 -> 0.3458818266 | V28: 0.08647045666 | W28: 0.08647045666 | X28: 0.08647045666 | Y28: 0.08647045666 | Z28: 2e-08
A29: 10226-30-9 | B29: 134.6 | C29: -2.778 | D29: 4.268 | E29: 1.49 | F29: 0.035 | N29: 31111.328 | O29: -51111.328 | P29: -20000 | R29: 0.2292153375 | S29: 0.2292153375 | T29: 0.2292153375 | U29: =4*0.229215337486754 -> 0.9168613499 | V29: 0.2292153375 | W29: 0.2292153375 | X29: 0.2292153375 | Y29: 0.2292153375 | Z29: 2e-08
C105: 5 | D105: AETS2 | E105: 30000 | N105: 30000 | O105: 30000 | P105: 30000 | R105: 30000 | U105: 30000
C106: 5 | D106: AECS1 | E106: 30000 | N106: 30000 | O106: 30000 | P106: 30000 | R106: 30000 | U106: 30000
C107: 5 | D107: AECS2 | E107: 30000 | N107: 30000 | O107: 30000 | P107: 30000 | R107: 30000 | U107: 30000
C108: 5 | D108: AEDS1 | E108: 30000 | N108: 30000 | O108: 30000 | P108: 30000 | R108: 30000 | U108: 30000
C109: 5 | D109: AEDS2 | E109: 30000 | N109: 30000 | O109: 30000 | P109: 30000 | R109: 30000 | U109: 30000

Sheet scenario database
E2: Scenario: | F2: Scenario:
A3: ScenID | B3: Parameter | C3: Description | D3: Unit | E3: Default Scenario | F3: Scenario No.1
A4: 1 | B4: dUaw_s | C4: pp-LFER phase descriptor | D4: kJ/mol | E4: -2.836 | F4: -2.836
A5: 2 | B5: dUaw_a | C5: pp-LFER phase descriptor | D5: kJ/mol | E5: 32.01 | F5: 32.01
A6: 3 | B6: dUaw_b | C6: pp-LFER phase descriptor | D6: kJ/mol | E6: 41.816 | F6: 41.816
A7: 4 | B7: dUaw_l | C7: pp-LFER phase descriptor | D7: kJ/mol | E7: 6.354 | F7: 6.354
A8: 5 | B8: dUaw_v | C8: pp-LFER phase descriptor | D8: kJ/mol
A9: 6 | B9: dUaw_e | C9: pp-LFER phase descriptor | D9: kJ/mol | E9: -9.91 | F9: -9.91
A10: 7 | B10: dUaw_c | C10: pp-LFER phase descriptor | D10: kJ/mol | E10: 13.31 | F10: 13.31
A11: 8 | B11: dUoa_s | C11: pp-LFER phase descriptor | D11: kJ/mol | E11: 5.89 | F11: 5.89
A12: 9 | B12: dUoa_a | C12: pp-LFER phase descriptor | D12: kJ/mol | E12: -53.99 | F12: -53.99
A13: 10 | B13: dUoa_b | C13: pp-LFER phase descriptor | D13: kJ/mol | E13: -8.99 | F13: -8.99
A14: 11 | B14: dUoa_l | C14: pp-LFER phase descriptor | D14: kJ/mol | E14: -9.18 | F14: -9.18
A15: 12 | B15: dUoa_v | C15: pp-LFER phase descriptor | D15: kJ/mol
A16: 13 | B16: dUoa_e | C16: pp-LFER phase descriptor | D16: kJ/mol | E16: -1.04 | F16: -1.04
A17: 14 | B17: dUoa_c | C17: pp-LFER phase descriptor | D17: kJ/mol | E17: -6.49 | F17: -6.49
A18: 15 | B18: dUow_s | C18: pp-LFER phase descriptor | D18: kJ/mol
A19: 16 | B19: dUow_a | C19: pp-LFER phase descriptor | D19: kJ/mol | F19: 0
A20: 17 | B20: dUow_b | C20: pp-LFER phase descriptor | D20: kJ/mol | F20: 0
A21: 18 | B21: dUow_l | C21: pp-LFER phase descriptor | D21: kJ/mol | F21: 0
A22: 19 | B22: dUow_v | C22: pp-LFER phase descriptor | D22: kJ/mol | F22: 0
A23: 20 | B23: dUow_e | C23: pp-LFER phase descriptor | D23: kJ/mol
A24: 21 | B24: dUow_c | C24: pp-LFER phase descriptor | D24: kJ/mol
A25: 22 | B25: dUhaa_s | C25: pp-LFER phase descriptor | D25: kJ/mol
A26: 23 | B26: dUhaa_a | C26: pp-LFER phase descriptor | D26: kJ/mol | E26: -29.8 | F26: -29.8
A27: 24 | B27: dUhaa_b | C27: pp-LFER phase descriptor | D27: kJ/mol | E27: -24.9 | F27: -24.9
A28: 25 | B28: dUhaa_l | C28: pp-LFER phase descriptor | D28: kJ/mol | E28: -9.49 | F28: -9.49
A29: 26 | B29: dUhaa_v | C29: pp-LFER phase descriptor | D29: kJ/mol
A30: 27 | B30: dUhaa_e | C30: pp-LFER phase descriptor | D30: kJ/mol
A31: 28 | B31: dUhaa_c | C31: pp-LFER phase descriptor | D31: kJ/mol | E31: -5 | F31: -5
A32: 29 | B32: dUhaw_s | C32: pp-LFER phase descriptor | D32: kJ/mol
A33: 30 | B33: dUhaw_a | C33: pp-LFER phase descriptor | D33: kJ/mol | E33: 6.42 | F33: 6.42
A34: 31 | B34: dUhaw_b | C34: pp-LFER phase descriptor | D34: kJ/mol | E34: 10.5 | F34: 10.5
A35: 32 | B35: dUhaw_l | C35: pp-LFER phase descriptor | D35: kJ/mol | E35: -11.2 | F35: -11.2
A36: 33 | B36: dUhaw_v | C36: pp-LFER phase descriptor | D36: kJ/mol | E36: 30.9 | F36: 30.9
A37: 34 | B37: dUhaw_e | C37: pp-LFER phase descriptor | D37: kJ/mol
A38: 35 | B38: dUhaw_c | C38: pp-LFER phase descriptor | D38: kJ/mol | E38: 4.2 | F38: 4.2
A39: 36 | B39: dUq_s | C39: pp-LFER phase descriptor
A40: 37 | B40: dUq_a | C40: pp-LFER phase descriptor | E40: -29.8 | F40: -29.8
A41: 38 | B41: dUq_b | C41: pp-LFER phase descriptor | E41: -24.9 | F41: -24.9
A42: 39 | B42: dUq_l | C42: pp-LFER phase descriptor | E42: -9.49 | F42: -9.49
A43: 40 | B43: dUq_v | C43: pp-LFER phase descriptor
A44: 41 | B44: dUq_e | C44: pp-LFER phase descriptor
A45: 42 | B45: dUq_c | C45: pp-LFER phase descriptor | E45: -5 | F45: -5
A46: 43 | B46: dUoc_s | C46: pp-LFER phase descriptor
A47: 44 | B47: dUoc_a | C47: pp-LFER phase descriptor | E47: 6.42 | F47: 6.42
A48: 45 | B48: dUoc_b | C48: pp-LFER phase descriptor | E48: 10.5 | F48: 10.5
A49: 46 | B49: dUoc_l | C49: pp-LFER phase descriptor | E49: -11.2 | F49: -11.2
A50: 47 | B50: dUoc_v | C50: pp-LFER phase descriptor | E50: 30.9 | F50: 30.9
A51: 48 | B51: dUoc_e | C51: pp-LFER phase descriptor
A52: 49 | B52: dUoc_c | C52: pp-LFER phase descriptor | E52: 4.2 | F52: 4.2
A53: 50 | B53: dUfish_s | C53: pp-LFER phase descriptor
A54: 51 | B54: dUfish_a | C54: pp-LFER phase descriptor
A55: 52 | B55: dUfish_b | C55: pp-LFER phase descriptor
A56: 53 | B56: dUfish_l | C56: pp-LFER phase descriptor
A57: 54 | B57: dUfish_v | C57: pp-LFER phase descriptor
A58: 55 | B58: dUfish_e | C58: pp-LFER phase descriptor
A59: 56 | B59: dUfish_c | C59: pp-LFER phase descriptor
A60: 57 | B60: Kaw_s | C60: pp-LFER phase descriptor | E60: -2.39 | F60: -2.39
A61: 58 | B61: Kaw_a | C61: pp-LFER phase descriptor | E61: -3.77 | F61: -3.77
A62: 59 | B62: Kaw_b | C62: pp-LFER phase descriptor | E62: -4.89 | F62: -4.89
A63: 60 | B63: Kaw_l | C63: pp-LFER phase descriptor
A64: 61 | B64: Kaw_v | C64: pp-LFER phase descriptor | E64: 0.85 | F64: 0.85
A65: 62 | B65: Kaw_e | C65: pp-LFER phase descriptor | E65: -0.67 | F65: -0.67
A66: 63 | B66: Kaw_c | C66: pp-LFER phase descriptor | E66: 0.96 | F66: 0.96
A67: 64 | B67: Koa_s | C67: pp-LFER phase descriptor | E67: 0.56 | F67: 0.56
A68: 65 | B68: Koa_a | C68: pp-LFER phase descriptor | E68: 3.56 | F68: 3.56
A69: 66 | B69: Koa_b | C69: pp-LFER phase descriptor | E69: 0.702 | F69: 0.702
A70: 67 | B70: Koa_l | C70: pp-LFER phase descriptor | E70: 0.939 | F70: 0.939
A71: 68 | B71: Koa_v | C71: pp-LFER phase descriptor
A72: 69 | B72: Koa_e | C72: pp-LFER phase descriptor | E72: -0.203 | F72: -0.203
A73: 70 | B73: Koa_c | C73: pp-LFER phase descriptor | E73: -0.12 | F73: -0.12
A74: 71 | B74: Kow_s | C74: pp-LFER phase descriptor | E74: -1.054 | F74: -1.054
A75: 72 | B75: Kow_a | C75: pp-LFER phase descriptor | E75: 0.034 | F75: 0.034
A76: 73 | B76: Kow_b | C76: pp-LFER phase descriptor | E76: -3.46 | F76: -3.46
A77: 74 | B77: Kow_l | C77: pp-LFER phase descriptor
A78: 75 | B78: Kow_v | C78: pp-LFER phase descriptor | E78: 3.814 | F78: 3.814
A79: 76 | B79: Kow_e | C79: pp-LFER phase descriptor | E79: 0.562 | F79: 0.562
A80: 77 | B80: Kow_c | C80: pp-LFER phase descriptor | E80: 0.088 | F80: 0.088
A81: 78 | B81: Kq_s | C81: pp-LFER phase descriptor | E81: 1.19 | F81: 1.19
A82: 79 | B82: Kq_a | C82: pp-LFER phase descriptor | E82: 3.37 | F82: 3.37
A83: 80 | B83: Kq_b | C83: pp-LFER phase descriptor | E83: 0.03 | F83: 0.03
A84: 81 | B84: Kq_l | C84: pp-LFER phase descriptor | E84: 0.66 | F84: 0.66
A85: 82 | B85: Kq_v | C85: pp-LFER phase descriptor | E85: 0.73 | F85: 0.73
A86: 83 | B86: Kq_e | C86: pp-LFER phase descriptor
A87: 84 | B87: Kq_c | C87: pp-LFER phase descriptor | E87: -7.08 | F87: -7.08
A88: 85 | B88: KocSoil_s | C88: pp-LFER phase descriptor | E88: -0.24 | F88: -0.24
A89: 86 | B89: KocSoil_a | C89: pp-LFER phase descriptor | E89: -0.31 | F89: -0.31
A90: 87 | B90: KocSoil_b | C90: pp-LFER phase descriptor | E90: -2.4 | F90: -2.4
A91: 88 | B91: KocSoil_l | C91: pp-LFER phase descriptor
A92: 89 | B92: KocSoil_v | C92: pp-LFER phase descriptor | E92: 2 | F92: 2
A93: 90 | B93: KocSoil_e | C93: pp-LFER phase descriptor | E93: 1.01 | F93: 1.01
A94: 91 | B94: KocSoil_c | C94: pp-LFER phase descriptor | E94: 0.04 | F94: 0.04
A95: 92 | B95: KocSusp_s | C95: pp-LFER phase descriptor | E95: -0.79 | F95: -0.79
A96: 93 | B96: KocSusp_a | C96: pp-LFER phase descriptor | E96: -0.21 | F96: -0.21
A97: 94 | B97: KocSusp_b | C97: pp-LFER phase descriptor | E97: -3.29 | F97: -3.29
A98: 95 | B98: KocSusp_l | C98: pp-LFER phase descriptor | E98: 0.29 | F98: 0.29
A99: 96 | B99: KocSusp_v | C99: pp-LFER phase descriptor | E99: 2.5 | F99: 2.5
A100: 97 | B100: KocSusp_e | C100: pp-LFER phase descriptor
A101: 98 | B101: KocSusp_c | C101: pp-LFER phase descriptor | E101: 0.01 | F101: 0.01
A102: 99 | B102: KocSolids_s | C102: pp-LFER phase descriptor | E102: -0.79 | F102: -0.79
A103: 100 | B103: KocSolids_a | C103: pp-LFER phase descriptor | E103: -0.21 | F103: -0.21
A104: 101 | B104: KocSolids_b | C104: pp-LFER phase descriptor | E104: -3.29 | F104: -3.29
A105: 102 | B105: KocSolids_l | C105: pp-LFER phase descriptor | E105: 0.29 | F105: 0.29
A106: 103 | B106: KocSolids_v | C106: pp-LFER phase descriptor | E106: 2.5 | F106: 2.5
A107: 104 | B107: KocSolids_e | C107: pp-LFER phase descriptor
A108: 105 | B108: KocSolids_c | C108: pp-LFER phase descriptor | E108: 0.01 | F108: 0.01
A109: 106 | B109: KbloodMammal_s | C109: pp-LFER phase descriptor | E109: 1.083 | F109: 1.083
A110: 107 | B110: KbloodMammal_a | C110: pp-LFER phase descriptor | E110: 3.738 | F110: 3.738
A111: 108 | B111: KbloodMammal_b | C111: pp-LFER phase descriptor | E111: 2.58 | F111: 2.58
A112: 109 | B112: KbloodMammal_l | C112: pp-LFER phase descriptor | E112: 0.376 | F112: 0.376
A113: 110 | B113: KbloodMammal_v | C113: pp-LFER phase descriptor
A114: 111 | B114: KbloodMammal_e | C114: pp-LFER phase descriptor | E114: 0.456 | F114: 0.456
A115: 112 | B115: KbloodMammal_c | C115: pp-LFER phase descriptor | E115: -1.069 | F115: -1.069
A116: 113 | B116: KmuscleMammal_s | C116: pp-LFER phase descriptor | E116: 0.723 | F116: 0.723
A117: 114 | B117: KmuscleMammal_a | C117: pp-LFER phase descriptor | E117: 3.242 | F117: 3.242
A118: 115 | B118: KmuscleMammal_b | C118: pp-LFER phase descriptor | E118: 2.469 | F118: 2.469
A119: 116 | B119: KmuscleMammal_l | C119: pp-LFER phase descriptor | E119: 0.463 | F119: 0.463
A120: 117 | B120: KmuscleMammal_v | C120: pp-LFER phase descriptor
A121: 118 | B121: KmuscleMammal_e | C121: pp-LFER phase descriptor | E121: 0.207 | F121: 0.207
A122: 119 | B122: KmuscleMammal_c | C122: pp-LFER phase descriptor | E122: -1.039 | F122: -1.039
A123: 120 | B123: KfatMammal_s | C123: pp-LFER phase descriptor | E123: 0.728 | F123: 0.728
A124: 121 | B124: KfatMammal_a | C124: pp-LFER phase descriptor | E124: 1.783 | F124: 1.783
A125: 122 | B125: KfatMammal_b | C125: pp-LFER phase descriptor | E125: 0.332 | F125: 0.332
A126: 123 | B126: KfatMammal_l | C126: pp-LFER phase descriptor | E126: 0.743 | F126: 0.743
A127: 124 | B127: KfatMammal_v | C127: pp-LFER phase descriptor
A128: 125 | B128: KfatMammal_e | C128: pp-LFER phase descriptor | E128: 0.051 | F128: 0.051
A129: 126 | B129: KfatMammal_c | C129: pp-LFER phase descriptor | E129: -0.052 | F129: -0.052
A130: 127 | B130: KliverMammal_s | C130: pp-LFER phase descriptor | E130: 0.836 | F130: 0.836
A131: 128 | B131: KliverMammal_a | C131: pp-LFER phase descriptor | E131: 2.836 | F131: 2.836
A132: 129 | B132: KliverMammal_b | C132: pp-LFER phase descriptor | E132: 2.081 | F132: 2.081
A133: 130 | B133: KliverMammal_l | C133: pp-LFER phase descriptor | E133: 0.564 | F133: 0.564
A134: 131 | B134: KliverMammal_v | C134: pp-LFER phase descriptor
A135: 132 | B135: KliverMammal_e | C135: pp-LFER phase descriptor | E135: 0 | F135: 0
A136: 133 | B136: KliverMammal_c | C136: pp-LFER phase descriptor | E136: -0.943 | F136: -0.943
A137: 134 | B137: KbrainMammal_s | C137: pp-LFER phase descriptor | E137: 0.411 | F137: 0.411
A138: 135 | B138: KbrainMammal_a | C138: pp-LFER phase descriptor | E138: 3.358 | F138: 3.358
A139: 136 | B139: KbrainMammal_b | C139: pp-LFER phase descriptor | E139: 2.025 | F139: 2.025
A140: 137 | B140: KbrainMammal_l | C140: pp-LFER phase descriptor | E140: 0.591 | F140: 0.591
A141: 138 | B141: KbrainMammal_v | C141: pp-LFER phase descriptor
A142: 139 | B142: KbrainMammal_e | C142: pp-LFER phase descriptor | E142: 0.263 | F142: 0.263
A143: 140 | B143: KbrainMammal_c | C143: pp-LFER phase descriptor | E143: -0.987 | F143: -0.987
A144: 141 | B144: KskinMammal_s | C144: pp-LFER phase descriptor
A145: 142 | B145: KskinMammal_a | C145: pp-LFER phase descriptor | E145: -0.189 | F145: -0.189
A146: 143 | B146: KskinMammal_b | C146: pp-LFER phase descriptor | E146: -0.62 | F146: -0.62
A147: 144 | B147: KskinMammal_l | C147: pp-LFER phase descriptor
A148: 145 | B148: KskinMammal_v | C148: pp-LFER phase descriptor | E148: 0.713 | F148: 0.713
A149: 146 | B149: KskinMammal_e | C149: pp-LFER phase descriptor
A150: 147 | B150: KskinMammal_c | C150: pp-LFER phase descriptor | E150: -0.253 | F150: -0.253
A151: 148 | B151: KbloodFish_s | C151: pp-LFER phase descriptor
A152: 149 | B152: KbloodFish_a | C152: pp-LFER phase descriptor
A153: 150 | B153: KbloodFish_b | C153: pp-LFER phase descriptor
A154: 151 | B154: KbloodFish_l | C154: pp-LFER phase descriptor
A155: 152 | B155: KbloodFish_v | C155: pp-LFER phase descriptor
A156: 153 | B156: KbloodFish_e | C156: pp-LFER phase descriptor
A157: 154 | B157: KbloodFish_c | C157: pp-LFER phase descriptor
A158: 155 | B158: KmuscleFish_s | C158: pp-LFER phase descriptor
A159: 156 | B159: KmuscleFish_a | C159: pp-LFER phase descriptor
A160: 157 | B160: KmuscleFish_b | C160: pp-LFER phase descriptor
A161: 158 | B161: KmuscleFish_l | C161: pp-LFER phase descriptor
A162: 159 | B162: KmuscleFish_v | C162: pp-LFER phase descriptor
A163: 160 | B163: KmuscleFish_e | C163: pp-LFER phase descriptor
A164: 161 | B164: KmuscleFish_c | C164: pp-LFER phase descriptor
A165: 162 | B165: KfatFish_s | C165: pp-LFER phase descriptor
A166: 163 | B166: KfatFish_a | C166: pp-LFER phase descriptor
A167: 164 | B167: KfatFish_b | C167: pp-LFER phase descriptor
A168: 165 | B168: KfatFish_l | C168: pp-LFER phase descriptor
A169: 166 | B169: KfatFish_v | C169: pp-LFER phase descriptor
A170: 167 | B170: KfatFish_e | C170: pp-LFER phase descriptor
A171: 168 | B171: KfatFish_c | C171: pp-LFER phase descriptor
A172: 169 | B172: KliverFish_s | C172: pp-LFER phase descriptor
A173: 170 | B173: KliverFish_a | C173: pp-LFER phase descriptor
A174: 171 | B174: KliverFish_b | C174: pp-LFER phase descriptor
A175: 172 | B175: KliverFish_l | C175: pp-LFER phase descriptor
A176: 173 | B176: KliverFish_v | C176: pp-LFER phase descriptor
A177: 174 | B177: KliverFish_e | C177: pp-LFER phase descriptor
A178: 175 | B178: KliverFish_c | C178: pp-LFER phase descriptor
A179: 176 | B179: KbrainFish_s | C179: pp-LFER phase descriptor
A180: 177 | B180: KbrainFish_a | C180: pp-LFER phase descriptor
A181: 178 | B181: KbrainFish_b | C181: pp-LFER phase descriptor
A182: 179 | B182: KbrainFish_l | C182: pp-LFER phase descriptor
A183: 180 | B183: KbrainFish_v | C183: pp-LFER phase descriptor
A184: 181 | B184: KbrainFish_e | C184: pp-LFER phase descriptor
A185: 182 | B185: KbrainFish_c | C185: pp-LFER phase descriptor
A186: 183 | B186: EoHuman_s | C186: pp-LFER phase descriptor | E186: 0 | F186: 0
A187: 184 | B187: EoHuman_a | C187: pp-LFER phase descriptor | E187: -20 | F187: -20
A188: 185 | B188: EoHuman_b | C188: pp-LFER phase descriptor | E188: -19.8 | F188: -19.8
A189: 186 | B189: EoHuman_l | C189: pp-LFER phase descriptor
A190: 187 | B190: EoHuman_v | C190: pp-LFER phase descriptor | E190: 13.9 | F190: 13.9
A191: 188 | B191: EoHuman_e | C191: pp-LFER phase descriptor | E191: 0 | F191: 0
A192: 189 | B192: EoHuman_c | C192: pp-LFER phase descriptor | E192: 96 | F192: 96
A193: 190 | B193: EoCattle_s | C193: pp-LFER phase descriptor
A194: 191 | B194: EoCattle_a | C194: pp-LFER phase descriptor
A195: 192 | B195: EoCattle_b | C195: pp-LFER phase descriptor
A196: 193 | B196: EoCattle_l | C196: pp-LFER phase descriptor
A197: 194 | B197: EoCattle_v | C197: pp-LFER phase descriptor
A198: 195 | B198: EoCattle_e | C198: pp-LFER phase descriptor
A199: 196 | B199: EoCattle_c | C199: pp-LFER phase descriptor
A200: 197 | B200: Eofish_s | C200: pp-LFER phase descriptor
A201: 198 | B201: Eofish_a | C201: pp-LFER phase descriptor
... 421 more rows

Sheet Seal (hidden)
E1: =E4 -> Sediment | F1: =F4 -> zooplankton | G1: Benthos 1 | H1: benthos 2 | I1: Benrhos 3 | J1: Fish 1 | K1: Fish 2 | L1: Egestion | M1: Urination | N1: Respiration | O1: Lipid excretion | P1: metabolism | Q1: =Q4 -> lactation
D2: 15yr old, 15 days after pupping | E2: 1 | F2: 1 | G2: 1 | H2: 1 | I2: 1 | J2: 1 | K2: 1 | L2: 1 | M2: 1 | N2: 1 | O2: 1 | P2: 1 | Q2: 1
A3: Seal | E3: Seal D value
A4: age (yr) | B4: fugacity | C4: concentration | D4: t90 | E4: Sediment | F4: zooplankton | G4: Benthos 1 | H4: benthos 2 | I4: Benrhos 3 | J4: Fish 1 | K4: Fish 2 | L4: Egestion | M4: Urination | N4: Respiration | O4: Lipid excretion | P4: metabolism | Q4: lactation
